BodyName,ServiceAreaCategorisation,ServiceDivisionCategorisation,ExpensesType,Date,TransactionNumber,Amount,CapitalorRevenue,SupplierName,MerchantCategory
Peterborough City Council,Children's & Safeguarding,Access to Resources & Specialist Commissioning,Services,04/04/2018,30118827,"2,770.32",Revenue,Key2,Boarding Out Allowances
Peterborough City Council,Children's & Safeguarding,Access to Resources & Specialist Commissioning,Services,04/04/2018,30124736,"1,332.30",Revenue,Key2,Boarding Out Allowances
Peterborough City Council,Legal Services,Legal Services,Agency Staff,04/04/2018,30169271,713.56,Revenue,Venn Group Ltd,External Temporary Staff
Peterborough City Council,Legal Services,Legal Services,Agency Staff,04/04/2018,30169272,"2,062.50",Revenue,Venn Group Ltd,External Temporary Staff
Peterborough City Council,Adults,Independent Sector Placements,Services,04/04/2018,30169329,"1,225.00",Revenue,Oakhouse Homecare Cambs Ltd,Residential Care
Peterborough City Council,Education,School Standards & Effectiveness,Services,04/04/2018,30169494,950,Revenue,Abbey College,Grant Payment
Peterborough City Council,Westcombe Engineering,Westcombe Engineering,"Tools, Equipment, Furniture & Materials",04/04/2018,30169567,501.84,Revenue,ANGLIA BEARING COMPANY LIMITED,Items For Resale
Peterborough City Council,Westcombe Engineering,Westcombe Engineering,"Tools, Equipment, Furniture & Materials",04/04/2018,30169568,"3,184.00",Revenue,ANGLIA BEARING COMPANY LIMITED,Items For Resale
Peterborough City Council,HR,HR WFD & Training,Services,04/04/2018,30169691,"2,995.00",Revenue,Catch22 Charity Ltd,Subscriptions
Peterborough City Council,Commissioning and Commercial Operations,Commissioning,Services,04/04/2018,30169697,"1,560.00",Revenue,BDP Social Care Ltd,Hired Services
Peterborough City Council,Commercial Group,Strategic Client Services,Rents,04/04/2018,30169815,"6,250.00",Revenue,FCC Recycling (UK) Limited,Rent
Peterborough City Council,Peterborough Highway Services,Highway & Drainage Control,Agency Staff,04/04/2018,30169821,"1,564.20",Revenue,Matchtech,External Temporary Staff
Peterborough City Council,Adults,Therapy/Reablement/Community Equipment,Agency Staff,04/04/2018,30169831,"4,884.00",Revenue,HCL Social Care,External Temporary Staff
Peterborough City Council,Education,Special Educational Needs / Inclusion,Agency Staff,04/04/2018,30169849,"1,321.20",Revenue,Ewing Foundation,External Temporary Staff
Peterborough City Council,Children's & Safeguarding,Children's Social Care,Services,04/04/2018,30169853,"1,406.00",Revenue,NonStop Recruitment Ltd,Hired Services
Peterborough City Council,Adults,Independent Sector Placements,Services,04/04/2018,30169893,"1,008.68",Revenue,Oakhouse Homecare Cambs Ltd,Residential Care
Peterborough City Council,Adults,Independent Sector Placements,Services,04/04/2018,30169944,"3,600.00",Revenue,Alysia Caring Ltd T/a Cherry Blossom care Home,Residential Care
Peterborough City Council,Adults,Independent Sector Placements,Services,04/04/2018,30169946,"2,128.00",Revenue,Alysia Caring Ltd T/a Cherry Blossom care Home,Residential Care
Peterborough City Council,Adults,Independent Sector Placements,Services,04/04/2018,30169947,857.04,Revenue,Alysia Caring Ltd T/a Cherry Blossom care Home,Residential Care
Peterborough City Council,Adults,Independent Sector Placements,Services,04/04/2018,30169948,"3,100.00",Revenue,Alysia Caring Ltd T/a Cherry Blossom care Home,Residential Care
Peterborough City Council,Adults,Independent Sector Placements,Services,04/04/2018,30169949,"2,909.28",Revenue,Alysia Caring Ltd T/a Cherry Blossom care Home,Residential Care
Peterborough City Council,Adults,Independent Sector Placements,Services,04/04/2018,30169950,"1,900.52",Revenue,Alysia Caring Ltd T/a Cherry Blossom care Home,Residential Care
Peterborough City Council,Adults,Independent Sector Placements,Services,04/04/2018,30169951,"2,739.20",Revenue,Alysia Caring Ltd T/a Cherry Blossom care Home,Residential Care
Peterborough City Council,Adults,Independent Sector Placements,Services,04/04/2018,30169952,"3,100.00",Revenue,Alysia Caring Ltd T/a Cherry Blossom care Home,Residential Care
Peterborough City Council,Adults,Independent Sector Placements,Services,04/04/2018,30169953,"2,952.80",Revenue,Alysia Caring Ltd T/a Cherry Blossom care Home,Residential Care
Peterborough City Council,Adults,Independent Sector Placements,Services,04/04/2018,30169954,"2,467.48",Revenue,Alysia Caring Ltd T/a Cherry Blossom care Home,Residential Care
Peterborough City Council,Adults,Independent Sector Placements,Services,04/04/2018,30169955,"1,862.20",Revenue,Alysia Caring Ltd T/a Cherry Blossom care Home,Residential Care
Peterborough City Council,Adults,Independent Sector Placements,Services,04/04/2018,30169957,664.8,Revenue,Alysia Caring Ltd T/a Cherry Blossom care Home,Residential Care
Peterborough City Council,Adults,Independent Sector Placements,Services,04/04/2018,30169958,"2,827.20",Revenue,Alysia Caring Ltd T/a Cherry Blossom care Home,Residential Care
Peterborough City Council,Adults,Independent Sector Placements,Services,04/04/2018,30169959,"3,460.44",Revenue,Alysia Caring Ltd T/a Cherry Blossom care Home,Residential Care
Peterborough City Council,Adults,Independent Sector Placements,Services,04/04/2018,30169960,"1,010.44",Revenue,Alysia Caring Ltd T/a Cherry Blossom care Home,Residential Care
Peterborough City Council,Adults,Independent Sector Placements,Services,04/04/2018,30169961,"1,775.76",Revenue,Alysia Caring Ltd T/a Cherry Blossom care Home,Residential Care
Peterborough City Council,Legal Services,Legal Services,Services,04/04/2018,30170070,660,Revenue,"Bramwell, Mr Christopher",Legal Costs
Peterborough City Council,Adults,Independent Sector Placements,Services,04/04/2018,30170072,"1,140.08",Revenue,Oakhouse Homecare Cambs Ltd,Residential Care
Peterborough City Council,Legal Services,Legal Services,Services,04/04/2018,30170078,550,Revenue,"Elliott, Ms Margot",Legal Costs
Peterborough City Council,Legal Services,Legal Services,Services,04/04/2018,30170079,550,Revenue,"Elliott, Ms Margot",Legal Costs
Peterborough City Council,Education,Special Educational Needs / Inclusion,Services,04/04/2018,30170154,"1,045.50",Revenue,Bricks for Autism,Education Expenses
Peterborough City Council,Adults,Therapy/Reablement/Community Equipment,Agency Staff,04/04/2018,30170211,"3,134.32",Revenue,HCL Social Care,External Temporary Staff
Peterborough City Council,Adults,Day opportunities - Older People,Agency Staff,04/04/2018,30170263,"1,221.00",Revenue,Medicare First Ltd,External Temporary Staff
Peterborough City Council,Adults,Finance,Third Party Payments,04/04/2018,30170267,"9,000.00",Revenue,Lincolnshire Care Association Ltd,Third Party Payments - Contract
Peterborough City Council,Commercial Group,Strategic Client Services,Rents,04/04/2018,30170268,"6,250.00",Revenue,FCC Recycling (UK) Limited,Rent
Peterborough City Council,Corporate Items,Corporate Services,Agency Staff,04/04/2018,30170277,"14,400.00",Revenue,Penna Plc,External Temporary Staff
Peterborough City Council,Regulatory Services,Regulatory Services,"Tools, Equipment, Furniture & Materials",04/04/2018,30170279,778.95,Revenue,SURE24 Limited,Furniture And Equipment Purchase
Peterborough City Council,Corporate,Corporate,Non Revenue,04/04/2018,30170386,"149,302.40",Capital,IIC by Education (P'boro) Ltd,Building And Site Works
Peterborough City Council,Legal Services,Legal Services,Services,04/04/2018,30170390,660,Revenue,"Bramwell, Mr Christopher",Legal Costs
Peterborough City Council,Corporate,Corporate,Non Revenue,04/04/2018,30170398,"2,152.91",Capital,Allworks Home Improvements Ltd,Grant Payment
Peterborough City Council,Corporate,Corporate,Non Revenue,04/04/2018,30170402,"7,068.09",Capital,Allworks Home Improvements Ltd,Grant Payment
Peterborough City Council,Education,Special Educational Needs / Inclusion,"Printing, Stationery & General Office Expenses",04/04/2018,30170412,"1,072.19",Revenue,Kent County Council,Stationery
Peterborough City Council,Adults,Independent Sector Placements,Services,04/04/2018,30170441,"5,600.00",Revenue,Community Care Solutions Ltd,Residential Care
Peterborough City Council,Corporate,Corporate,Non Revenue,04/04/2018,30170480,"6,195.00",Capital,Casbon Building Services,Grant Payment
Peterborough City Council,Corporate,Corporate,Non Revenue,04/04/2018,30170481,"7,312.50",Capital,Dolphin Mobility East Midlands Ltd,Grant Payment
Peterborough City Council,Corporate,Corporate,Non Revenue,04/04/2018,30170482,"5,135.00",Capital,Dolphin Mobility East Midlands Ltd,Grant Payment
Peterborough City Council,Corporate,Corporate,Non Revenue,04/04/2018,30170539,"149,302.40",Capital,IIC by Education (P'boro) Ltd,Building And Site Works
Peterborough City Council,Communities,Cultural Services,Rents,04/04/2018,30170553,540,Revenue,Kingsgate Trading Ltd,Hire of Premises
Peterborough City Council,Education,PFI,Services,04/04/2018,30170696,"6,857.75",Revenue,IIC by Education (P'boro) Ltd,Service Charge
Peterborough City Council,Corporate,Corporate,Non Revenue,04/04/2018,30170910,"5,033.00",Capital,Casbon Building Services,Grant Payment
Peterborough City Council,Corporate,Corporate,Non Revenue,04/04/2018,30170915,"3,980.00",Capital,Dolphin Mobility East Midlands Ltd,Grant Payment
Peterborough City Council,Children's & Safeguarding,CSC Quality Assurance,Services,04/04/2018,30170966,539.1,Revenue,Susan Smith,Consultants Fees
Peterborough City Council,Commissioning and Commercial Operations,Clare Lodge,Cleaning & Domestic Supplies,04/04/2018,30170973,581.22,Revenue,Bunzl UK Ltd t/a Industrial Supplies,Cleaning Materials
Peterborough City Council,Corporate,Corporate,Non Revenue,04/04/2018,30171236,"6,183.14",Capital,Dolphin Mobility East Midlands Ltd,Grant Payment
Peterborough City Council,Corporate,Corporate,Non Revenue,04/04/2018,30171241,"6,832.00",Capital,Casbon Building Services,Grant Payment
Peterborough City Council,Peterborough Highway Services,Transport & Infrastructure Commissioning,Repair & Maintenance of Buildings,04/04/2018,30171431,"18,750.00",Revenue,Jones Lang LaSalle,Service Charges - Premises
Peterborough City Council,Commissioning and Commercial Operations,Early Years & Quality Improvement,Services,04/04/2018,30171552,"14,524.80",Revenue,Helpston Playhouse & Under Fives,Grant Payment
Peterborough City Council,Corporate,Corporate,Non Revenue,04/04/2018,30171576,"4,223.32",Capital,Allworks Home Improvements Ltd,Grant Payment
Peterborough City Council,Corporate,Corporate,Non Revenue,04/04/2018,30171580,956.68,Capital,Allworks Home Improvements Ltd,Grant Payment
Peterborough City Council,Corporate,Corporate,Non Revenue,04/04/2018,30171586,"4,209.50",Capital,Obam Domestic Lift Services Ltd,Grant Payment
Peterborough City Council,Corporate,Corporate,Non Revenue,04/04/2018,30171602,"5,160.75",Capital,Gaswise Services Ltd,Grant Payment
Peterborough City Council,Corporate,Corporate,Non Revenue,04/04/2018,30171603,"4,372.20",Capital,Gaswise Services Ltd,Grant Payment
Peterborough City Council,Corporate,Corporate,Non Revenue,04/04/2018,30171616,"5,447.40",Capital,Rawheat Heating & Plumbing Eng.,Grant Payment
Peterborough City Council,Adults,Independent Sector Placements,Services,04/04/2018,30171626,"5,600.00",Revenue,Community Care Solutions Ltd,Residential Care
Peterborough City Council,Adults,Independent Sector Placements,Services,04/04/2018,30171631,854,Revenue,Sahara Community Care Services,Home Care
Peterborough City Council,Development and Construction,Building Control,Services,04/04/2018,30171645,935,Revenue,Ruck Consultancy Limited,Contract Services
Peterborough City Council,Corporate Property,Office Accomodation,Cleaning & Domestic Supplies,04/04/2018,30171646,"1,477.28",Revenue,Beebys Ltd,Cleaning
Peterborough City Council,Adults,Independent Sector Placements,Services,04/04/2018,30171648,"-3,623.59",Revenue,Athena (Ashlynn Grange),Residential Care
Peterborough City Council,Financial Services,Insurance,Services,04/04/2018,30171652,"1,656.00",Revenue,Browne Jacobson,Legal Costs
Peterborough City Council,Communities,Housing,Services,04/04/2018,30171659,"1,300.00",Revenue,Cookes Property Management,Financial Assistance
Peterborough City Council,Corporate Property,Commercial Propety,Repair & Maintenance of Buildings,04/04/2018,30171692,"1,000.00",Revenue,Stanground Community Space CIC,Service Charges - Premises
Peterborough City Council,Corporate,Corporate,Non Revenue,04/04/2018,30171693,"105,211.62",Capital,Kier Construction Ltd,Building And Site Works
Peterborough City Council,Education,School Standards & Effectiveness,Services,04/04/2018,30171701,"1,950.00",Revenue,Rise Academy,Grant Payment
Peterborough City Council,Education,School Standards & Effectiveness,Services,04/04/2018,30171702,506,Revenue,Sir Harry Smith Community College,Grant Payment
Peterborough City Council,Corporate Items,Corporate Services,Agency Staff,04/04/2018,30171704,"21,796.06",Revenue,Skanska Construction UK Ltd,External Temporary Staff
Peterborough City Council,Commissioning and Commercial Operations,Clare Lodge,Agency Staff,04/04/2018,30171705,"1,040.00",Revenue,Wrixon Care Services,External Temporary Staff
Peterborough City Council,Corporate Items,Corporate Services,Agency Staff,04/04/2018,30171706,"10,986.94",Revenue,Skanska Construction UK Ltd,External Temporary Staff
Peterborough City Council,Commissioning and Commercial Operations,Clare Lodge,Agency Staff,04/04/2018,30171707,"1,776.00",Revenue,Wrixon Care Services,External Temporary Staff
Peterborough City Council,Commissioning and Commercial Operations,Clare Lodge,Agency Staff,04/04/2018,30171708,984,Revenue,Wrixon Care Services,External Temporary Staff
Peterborough City Council,Commissioning and Commercial Operations,Clare Lodge,Agency Staff,04/04/2018,30171711,"1,744.00",Revenue,Wrixon Care Services,External Temporary Staff
Peterborough City Council,Communities,Housing,Services,04/04/2018,30171725,835,Revenue,Robert Lettings Ltd,Financial Assistance
Peterborough City Council,Communities,Housing,Services,04/04/2018,30171726,"1,045.00",Revenue,Woodcock Holmes,Financial Assistance
Peterborough City Council,Communities,Housing,Services,04/04/2018,30171727,695,Revenue,Woodcock Holmes,Financial Assistance
Peterborough City Council,Children's & Safeguarding,External Education Placements,Services,04/04/2018,30171728,"10,628.68",Revenue,Direct Care Limited,Boarding Out Allowances
Peterborough City Council,Commissioning and Commercial Operations,Early Years & Quality Improvement,Services,04/04/2018,30171729,"25,837.50",Revenue,Pakistan Comm Ass of PBoro Pre- School,Grant Payment
Peterborough City Council,Commissioning and Commercial Operations,Early Years & Quality Improvement,Interview & Training Expenses,04/04/2018,30171730,"1,497.20",Revenue,Cambridgeshire County Council,Training
Peterborough City Council,Commissioning and Commercial Operations,Early Years & Quality Improvement,Services,04/04/2018,30171731,"19,363.11",Revenue,Young Generation Playgroup,Grant Payment
Peterborough City Council,Commissioning and Commercial Operations,Early Years & Quality Improvement,Services,04/04/2018,30171739,"38,004.11",Revenue,SDN Ltd t/a Stars Day Nursery Bushfield,Grant Payment
Peterborough City Council,Commissioning and Commercial Operations,Early Years & Quality Improvement,Services,04/04/2018,30171740,"21,673.90",Revenue,Orton Wistow Under Fives,Grant Payment
Peterborough City Council,Commissioning and Commercial Operations,Early Years & Quality Improvement,Services,04/04/2018,30171742,"30,093.73",Revenue,First Steps Nursery (Maxey) Ltd,Grant Payment
Peterborough City Council,Commissioning and Commercial Operations,Early Years & Quality Improvement,Services,04/04/2018,30171746,"1,338.74",Revenue,Redacted Personal Information,Grant Payment
Peterborough City Council,Commissioning and Commercial Operations,Early Years & Quality Improvement,Services,04/04/2018,30171749,"94,481.21",Revenue,Blackberry House Day Nursery,Grant Payment
Peterborough City Council,Commissioning and Commercial Operations,Early Years & Quality Improvement,Services,04/04/2018,30171750,"2,455.80",Revenue,Little Tykes Childcare,Grant Payment
Peterborough City Council,Commissioning and Commercial Operations,Early Years & Quality Improvement,Services,04/04/2018,30171752,"17,624.10",Revenue,Leighton Primary Pre-School,Grant Payment
Peterborough City Council,Commissioning and Commercial Operations,Early Years & Quality Improvement,Services,04/04/2018,30171753,"20,024.72",Revenue,St Michaels Playgroup,Grant Payment
Peterborough City Council,Commissioning and Commercial Operations,Early Years & Quality Improvement,Services,04/04/2018,30171756,"81,356.80",Revenue,Kiddi Caru Day Nursery,Grant Payment
Peterborough City Council,Commissioning and Commercial Operations,Early Years & Quality Improvement,Services,04/04/2018,30171757,"2,477.90",Revenue,Redacted Personal Information,Grant Payment
Peterborough City Council,Commissioning and Commercial Operations,Early Years & Quality Improvement,Services,04/04/2018,30171758,"1,733.94",Revenue,Redacted Personal Information,Grant Payment
Peterborough City Council,Commissioning and Commercial Operations,Early Years & Quality Improvement,Services,04/04/2018,30171759,"1,733.94",Revenue,Redacted Personal Information,Grant Payment
Peterborough City Council,Commissioning and Commercial Operations,Early Years & Quality Improvement,Services,04/04/2018,30171760,"6,228.30",Revenue,Happy Days Playgroup,Grant Payment
Peterborough City Council,Commissioning and Commercial Operations,Early Years & Quality Improvement,Services,04/04/2018,30171761,"36,493.08",Revenue,Bright Star's day Nursery,Grant Payment
Peterborough City Council,Commissioning and Commercial Operations,Early Years & Quality Improvement,Services,04/04/2018,30171762,"73,945.30",Revenue,The Day Nursery Peterborough Ltd,Grant Payment
Peterborough City Council,Commissioning and Commercial Operations,Early Years & Quality Improvement,Services,04/04/2018,30171763,"2,764.24",Revenue,Redacted Personal Information,Grant Payment
Peterborough City Council,Adults,Independent Sector Placements,Services,04/04/2018,30171766,"2,305.92",Revenue,Athena (Ashlynn Grange),Residential Care
Peterborough City Council,Commissioning and Commercial Operations,Commissioning Team,Third Party Payments,04/04/2018,30171767,"6,837.36",Revenue,Axiom Housing Association,Third Party Payments - Contract
Peterborough City Council,ICT,ICT,Services,04/04/2018,30171771,"66,000.00",Revenue,Servelec Corelogic Ltd,Computer Software
Peterborough City Council,Commissioning and Commercial Operations,Early Years & Quality Improvement,Services,04/04/2018,30171776,"8,668.92",Revenue,Play House Pre-School & Out of School Club,Grant Payment
Peterborough City Council,Commissioning and Commercial Operations,Early Years & Quality Improvement,Services,04/04/2018,30171777,"21,210.15",Revenue,Vale Community Pre-School,Grant Payment
Peterborough City Council,Commissioning and Commercial Operations,Early Years & Quality Improvement,Services,04/04/2018,30171783,"6,583.08",Revenue,Redacted Personal Information,Grant Payment
Peterborough City Council,Commissioning and Commercial Operations,Early Years & Quality Improvement,Services,04/04/2018,30171785,"26,013.00",Revenue,South Bretton Pre School,Grant Payment
Peterborough City Council,Commissioning and Commercial Operations,Early Years & Quality Improvement,Services,04/04/2018,30171787,"66,211.24",Revenue,The Hampton Day Nursery,Grant Payment
Peterborough City Council,Adults,Independent Sector Placements,Services,04/04/2018,30171788,739.2,Revenue,Carewatch Care Services Ltd,Home Care
Peterborough City Council,Adults,Independent Sector Placements,Services,04/04/2018,30171790,739.2,Revenue,Carewatch Care Services Ltd,Home Care
Peterborough City Council,Adults,Independent Sector Placements,Services,04/04/2018,30171794,739.2,Revenue,Carewatch Care Services Ltd,Home Care
Peterborough City Council,Commissioning and Commercial Operations,Early Years & Quality Improvement,Services,04/04/2018,30171798,"16,582.80",Revenue,Little Bees Pre-School,Grant Payment
Peterborough City Council,Commissioning and Commercial Operations,Early Years & Quality Improvement,Services,04/04/2018,30171800,"45,976.07",Revenue,Stepping Stones Day Nursery,Grant Payment
Peterborough City Council,Adults,Independent Sector Placements,Services,04/04/2018,30171802,"1,301.34",Revenue,Athena (Ashlynn Grange),Residential Care
Peterborough City Council,Commissioning and Commercial Operations,Early Years & Quality Improvement,Services,04/04/2018,30171803,"23,536.00",Revenue,Stepping Stones Day Nursery,Grant Payment
Peterborough City Council,Adults,Independent Sector Placements,Services,04/04/2018,30171806,739.2,Revenue,Carewatch Care Services Ltd,Home Care
Peterborough City Council,Adults,Independent Sector Placements,Services,04/04/2018,30171808,"2,735.48",Revenue,Kemps Place Ltd,Residential Care
Peterborough City Council,Adults,Independent Sector Placements,Services,04/04/2018,30171809,781.2,Revenue,Carewatch Care Services Ltd,Home Care
Peterborough City Council,Adults,Independent Sector Placements,Services,04/04/2018,30171810,"2,535.48",Revenue,Kemps Place Ltd,Residential Care
Peterborough City Council,Adults,Independent Sector Placements,Services,04/04/2018,30171811,693.5,Revenue,Kemps Place Ltd,Residential Care
Peterborough City Council,Adults,Independent Sector Placements,Services,04/04/2018,30171812,693.5,Revenue,Kemps Place Ltd,Residential Care
Peterborough City Council,Corporate Items,Corporate Services,Services,04/04/2018,30171817,"2,376.00",Revenue,Trowers & Hamlins LLP,Legal Costs
Peterborough City Council,Communities,Housing,Services,04/04/2018,30171819,800,Revenue,Property Line,Financial Assistance
Peterborough City Council,Adults,Independent Sector Placements,Services,04/04/2018,30171823,"4,529.49",Revenue,Athena (Ashlynn Grange),Residential Care
Peterborough City Council,Adults,Independent Sector Placements,Services,04/04/2018,30171827,"5,686.80",Revenue,Lifeways Community Care,Residential Care
Peterborough City Council,Peterborough Highway Services,Highway & Drainage Control,Agency Staff,04/04/2018,30171829,"1,235.80",Revenue,Reed Specialist Recruitment Limited,External Temporary Staff
Peterborough City Council,Adults,Independent Sector Placements,Services,04/04/2018,30171830,"5,686.80",Revenue,Lifeways Community Care,Residential Care
Peterborough City Council,Adults,Independent Sector Placements,Services,04/04/2018,30171831,"5,686.80",Revenue,Lifeways Community Care,Residential Care
Peterborough City Council,Adults,Independent Sector Placements,Services,04/04/2018,30171835,"5,686.80",Revenue,Lifeways Community Care,Residential Care
Peterborough City Council,Children's & Safeguarding,Child Health,Services,04/04/2018,30171836,"1,750.00",Revenue,P'Boro Council For Voluntary Srvs (PCVS),Purchased Social Care Services
Peterborough City Council,HR,HR WFD & Training,Services,04/04/2018,30171837,970,Revenue,The Equality Academy,Course Instructors Fees
Peterborough City Council,Communities,Travellers,Services,04/04/2018,30171838,601.5,Revenue,Bryan Lecoche Ltd,Hired Services
Peterborough City Council,Adults,Independent Sector Placements,Services,04/04/2018,30171840,"3,785.40",Revenue,Community Care Solutions Ltd,Residential Care
Peterborough City Council,Communities,Travellers,Services,04/04/2018,30171841,"1,275.00",Revenue,Bryan Lecoche Ltd,Hired Services
Peterborough City Council,Adults,Independent Sector Placements,Services,04/04/2018,30171843,"3,785.40",Revenue,Community Care Solutions Ltd,Residential Care
Peterborough City Council,Commissioning and Commercial Operations,Clare Lodge,Agency Staff,04/04/2018,30171844,560.95,Revenue,Reed Specialist Recruitment Limited,External Temporary Staff
Peterborough City Council,Adults,Independent Sector Placements,Services,04/04/2018,30171846,"2,925.00",Revenue,Community Care Solutions Ltd,Residential Care
Peterborough City Council,Adults,Independent Sector Placements,Services,04/04/2018,30171850,"3,785.40",Revenue,Community Care Solutions Ltd,Residential Care
Peterborough City Council,Adults,Independent Sector Placements,Services,04/04/2018,30171853,"3,785.40",Revenue,Community Care Solutions Ltd,Residential Care
Peterborough City Council,Adults,Finance,Agency Staff,04/04/2018,30171854,"2,433.60",Revenue,Reed Specialist Recruitment Limited,External Temporary Staff
Peterborough City Council,Adults,Independent Sector Placements,Services,04/04/2018,30171855,"1,542.86",Revenue,Consensus (2013) Ltd,Residential Care
Peterborough City Council,Commissioning and Commercial Operations,Commissioning Team,Agency Staff,04/04/2018,30171856,"1,076.35",Revenue,Reed Specialist Recruitment Limited,External Temporary Staff
Peterborough City Council,Adults,Finance,Agency Staff,04/04/2018,30171857,"2,953.60",Revenue,Reed Specialist Recruitment Limited,External Temporary Staff
Peterborough City Council,Children's & Safeguarding,Access to Resources & Specialist Commissioning,Services,04/04/2018,30171858,"2,617.63",Revenue,Key2,Boarding Out Allowances
Peterborough City Council,Peterborough Highway Services,Highway & Drainage Control,Agency Staff,04/04/2018,30171876,835.16,Revenue,Reed Specialist Recruitment Limited,External Temporary Staff
Peterborough City Council,Adults,Independent Sector Placements,Services,04/04/2018,30171879,"10,800.00",Revenue,Consensus (2013) Ltd,Residential Care
Peterborough City Council,Adults,Independent Sector Placements,Services,04/04/2018,30171880,"3,785.40",Revenue,Community Care Solutions Ltd,Residential Care
Peterborough City Council,Commissioning and Commercial Operations,Commissioning Team,Agency Staff,04/04/2018,30171882,"2,243.60",Revenue,Reed Specialist Recruitment Limited,External Temporary Staff
Peterborough City Council,Peterborough Highway Services,Highway & Drainage Control,Agency Staff,04/04/2018,30171884,"1,404.59",Revenue,Reed Specialist Recruitment Limited,External Temporary Staff
Peterborough City Council,Commissioning and Commercial Operations,Early Years & Quality Improvement,Services,04/04/2018,30171891,592.8,Revenue,Redacted Personal Information,Grant Payment
Peterborough City Council,Commissioning and Commercial Operations,Early Years & Quality Improvement,Services,04/04/2018,30171893,"55,553.26",Revenue,Apricot Childcare,Grant Payment
Peterborough City Council,Commissioning and Commercial Operations,Early Years & Quality Improvement,Services,04/04/2018,30171903,"3,026.24",Revenue,Redacted Personal Information,Grant Payment
Peterborough City Council,Commissioning and Commercial Operations,Early Years & Quality Improvement,Services,04/04/2018,30171905,577.98,Revenue,Redacted Personal Information,Grant Payment
Peterborough City Council,Commissioning and Commercial Operations,Early Years & Quality Improvement,Services,04/04/2018,30171906,"58,068.66",Revenue,Flying Start Pre-School & Day Care Centre,Grant Payment
Peterborough City Council,Commissioning and Commercial Operations,Early Years & Quality Improvement,Services,04/04/2018,30171908,"41,464.41",Revenue,Busy Bunnies Nursery,Grant Payment
Peterborough City Council,Financial Services,Finance,Agency Staff,04/04/2018,30171909,"1,471.60",Revenue,Reed Specialist Recruitment Limited,External Temporary Staff
Peterborough City Council,Commissioning and Commercial Operations,Early Years & Quality Improvement,Services,04/04/2018,30171910,"18,777.64",Revenue,Little Poppets Day Nursery,Grant Payment
Peterborough City Council,Commissioning and Commercial Operations,Early Years & Quality Improvement,Services,04/04/2018,30171912,"104,427.57",Revenue,Little Stars Day Nursery,Grant Payment
Peterborough City Council,Commissioning and Commercial Operations,Early Years & Quality Improvement,Services,04/04/2018,30171914,"41,262.48",Revenue,ABC Nursery,Grant Payment
Peterborough City Council,Commissioning and Commercial Operations,Early Years & Quality Improvement,Services,04/04/2018,30171921,577.98,Revenue,Redacted Personal Information,Grant Payment
Peterborough City Council,Commissioning and Commercial Operations,Early Years & Quality Improvement,Services,04/04/2018,30171922,"39,073.23",Revenue,The Voyager Nursery,Grant Payment
Peterborough City Council,Commissioning and Commercial Operations,Early Years & Quality Improvement,Services,04/04/2018,30171923,"49,329.15",Revenue,Stars Pre-School Welland,Grant Payment
Peterborough City Council,Commissioning and Commercial Operations,Early Years & Quality Improvement,Services,04/04/2018,30171924,"111,559.14",Revenue,Little Tigers Day Nursery,Grant Payment
Peterborough City Council,Commissioning and Commercial Operations,Early Years & Quality Improvement,Services,04/04/2018,30171929,"7,269.60",Revenue,Little Angels,Grant Payment
Peterborough City Council,Commissioning and Commercial Operations,Early Years & Quality Improvement,Services,04/04/2018,30171931,"34,548.85",Revenue,Busy Bunnies Braybrook,Grant Payment
Peterborough City Council,Commissioning and Commercial Operations,Early Years & Quality Improvement,Services,04/04/2018,30171932,"1,173.74",Revenue,Redacted Personal Information,Grant Payment
Peterborough City Council,Commissioning and Commercial Operations,Early Years & Quality Improvement,Services,04/04/2018,30171933,"36,934.61",Revenue,Whiz Kids Day Nursery,Grant Payment
Peterborough City Council,Commissioning and Commercial Operations,Early Years & Quality Improvement,Services,04/04/2018,30171936,"49,018.32",Revenue,Stars Pre-School Parnwell,Grant Payment
Peterborough City Council,Commissioning and Commercial Operations,Early Years & Quality Improvement,Services,04/04/2018,30171937,"32,278.36",Revenue,Sunflower Seed Pre-School,Grant Payment
Peterborough City Council,Commissioning and Commercial Operations,Early Years & Quality Improvement,Services,04/04/2018,30171938,577.98,Revenue,Redacted Personal Information,Grant Payment
Peterborough City Council,Commissioning and Commercial Operations,Early Years & Quality Improvement,Services,04/04/2018,30171939,"29,326.11",Revenue,Stars Preschool Woodston,Grant Payment
Peterborough City Council,Commissioning and Commercial Operations,Early Years & Quality Improvement,Services,04/04/2018,30171941,"33,839.91",Revenue,PSLA,Grant Payment
Peterborough City Council,Adults,Independent Sector Placements,Services,04/04/2018,30171942,602,Revenue,Sahara Community Care Services,Home Care
Peterborough City Council,Commissioning and Commercial Operations,Early Years & Quality Improvement,Services,04/04/2018,30171943,"2,889.90",Revenue,Redacted Personal Information,Grant Payment
Peterborough City Council,Commissioning and Commercial Operations,Clare Lodge,Agency Staff,04/04/2018,30171944,536.9,Revenue,Reed Specialist Recruitment Limited,External Temporary Staff
Peterborough City Council,Commissioning and Commercial Operations,Early Years & Quality Improvement,Services,04/04/2018,30171945,962.57,Revenue,Redacted Personal Information,Grant Payment
Peterborough City Council,Commissioning and Commercial Operations,Early Years & Quality Improvement,Services,04/04/2018,30171948,"10,931.25",Revenue,East Community Playgroup,Grant Payment
Peterborough City Council,Commissioning and Commercial Operations,Early Years & Quality Improvement,Services,04/04/2018,30171949,"10,875.15",Revenue,Husaini Pre-School,Grant Payment
Peterborough City Council,Adults,Independent Sector Placements,Services,04/04/2018,30171950,"1,176.00",Revenue,Sahara Community Care Services,Home Care
Peterborough City Council,Commissioning and Commercial Operations,Early Years & Quality Improvement,Services,04/04/2018,30171951,"10,315.50",Revenue,Shiny Stars Pre-School,Grant Payment
Peterborough City Council,Adults,Independent Sector Placements,Services,04/04/2018,30171952,"1,064.00",Revenue,Sahara Community Care Services,Home Care
Peterborough City Council,Commissioning and Commercial Operations,Early Years & Quality Improvement,Services,04/04/2018,30171953,647.24,Revenue,Redacted Personal Information,Grant Payment
Peterborough City Council,Adults,Independent Sector Placements,Services,04/04/2018,30171954,784,Revenue,Sahara Community Care Services,Home Care
Peterborough City Council,Commissioning and Commercial Operations,Early Years & Quality Improvement,Services,04/04/2018,30171955,577.98,Revenue,Redacted Personal Information,Grant Payment
Peterborough City Council,Adults,Independent Sector Placements,Services,04/04/2018,30171958,896,Revenue,Sahara Community Care Services,Home Care
Peterborough City Council,Adults,Independent Sector Placements,Services,04/04/2018,30171960,854,Revenue,Sahara Community Care Services,Home Care
Peterborough City Council,Commissioning and Commercial Operations,Clare Lodge,Agency Staff,04/04/2018,30171962,689.67,Revenue,Reed Specialist Recruitment Limited,External Temporary Staff
Peterborough City Council,Adults,Independent Sector Placements,Services,04/04/2018,30171964,"1,074.50",Revenue,Sahara Community Care Services,Home Care
Peterborough City Council,Adults,Independent Sector Placements,Services,04/04/2018,30171966,"3,775.60",Revenue,Community Care Solutions Ltd,Residential Care
Peterborough City Council,Adults,Independent Sector Placements,Services,04/04/2018,30171967,"3,775.60",Revenue,Community Care Solutions Ltd,Residential Care
Peterborough City Council,Adults,Independent Sector Placements,Services,04/04/2018,30171968,"1,092.00",Revenue,Sahara Community Care Services,Home Care
Peterborough City Council,Adults,Independent Sector Placements,Services,04/04/2018,30171969,"3,775.60",Revenue,Community Care Solutions Ltd,Residential Care
Peterborough City Council,Adults,Independent Sector Placements,Services,04/04/2018,30171970,"1,176.00",Revenue,Sahara Community Care Services,Home Care
Peterborough City Council,Adults,Independent Sector Placements,Services,04/04/2018,30171971,"3,775.60",Revenue,Community Care Solutions Ltd,Residential Care
Peterborough City Council,Adults,Independent Sector Placements,Services,04/04/2018,30171973,756,Revenue,Sahara Community Care Services,Home Care
Peterborough City Council,Adults,Independent Sector Placements,Services,04/04/2018,30171974,"3,775.60",Revenue,Community Care Solutions Ltd,Residential Care
Peterborough City Council,Adults,Independent Sector Placements,Services,04/04/2018,30171975,"3,775.60",Revenue,Community Care Solutions Ltd,Residential Care
Peterborough City Council,Adults,Independent Sector Placements,Services,04/04/2018,30171977,"3,775.60",Revenue,Community Care Solutions Ltd,Residential Care
Peterborough City Council,Adults,Independent Sector Placements,Services,04/04/2018,30171978,"10,103.46",Revenue,Anchor Homes,Residential Care
Peterborough City Council,Adults,Independent Sector Placements,Services,04/04/2018,30171979,"3,775.60",Revenue,Community Care Solutions Ltd,Residential Care
Peterborough City Council,Adults,Independent Sector Placements,Services,04/04/2018,30171980,"25,546.94",Revenue,Anchor Homes,Residential Care
Peterborough City Council,Adults,Independent Sector Placements,Services,04/04/2018,30171982,-560,Revenue,Anchor Homes,Residential Care
Peterborough City Council,Adults,Independent Sector Placements,Services,04/04/2018,30171984,"3,775.60",Revenue,Community Care Solutions Ltd,Residential Care
Peterborough City Council,Adults,Independent Sector Placements,Services,04/04/2018,30171985,"3,775.60",Revenue,Community Care Solutions Ltd,Residential Care
Peterborough City Council,Adults,Independent Sector Placements,Services,04/04/2018,30171986,"3,775.60",Revenue,Community Care Solutions Ltd,Residential Care
Peterborough City Council,Adults,Independent Sector Placements,Services,04/04/2018,30171987,"3,775.60",Revenue,Community Care Solutions Ltd,Residential Care
Peterborough City Council,Adults,Independent Sector Placements,Services,04/04/2018,30171991,596.7,Revenue,Cross Keys Homes,Home Care
Peterborough City Council,Commissioning and Commercial Operations,Early Years & Quality Improvement,Services,04/04/2018,30172015,"9,917.48",Revenue,Brookside Playgroup,Grant Payment
Peterborough City Council,Commissioning and Commercial Operations,Early Years & Quality Improvement,Services,04/04/2018,30172017,"2,888.60",Revenue,Stars Pre-School Parnwell,Grant Payment
Peterborough City Council,Communities,Cultural Services,Services,04/04/2018,30172037,"1,745.00",Revenue,Peterborough Centre for Young Musicians,Hired Services
Peterborough City Council,Communities,Cultural Services,Services,04/04/2018,30172038,650,Revenue,Peterborough Centre for Young Musicians,Hired Services
Peterborough City Council,Communities,Cultural Services,Services,04/04/2018,30172039,500,Revenue,Peterborough Centre for Young Musicians,Hired Services
Peterborough City Council,Communities,Cultural Services,Services,04/04/2018,30172040,"7,730.50",Revenue,Peterborough Centre for Young Musicians,Hired Services
Peterborough City Council,Adults,Independent Sector Placements,Services,04/04/2018,30172062,710,Revenue,Carewatch Care Services Ltd,Home Care
Peterborough City Council,Adults,Independent Sector Placements,Services,04/04/2018,30172073,630.3,Revenue,Carewatch Care Services Ltd,Home Care
Peterborough City Council,Commissioning and Commercial Operations,Clare Lodge,Agency Staff,04/04/2018,30172084,"1,648.00",Revenue,Wrixon Care Services,External Temporary Staff
Peterborough City Council,Commissioning and Commercial Operations,Clare Lodge,Agency Staff,04/04/2018,30172085,"2,656.00",Revenue,Wrixon Care Services,External Temporary Staff
Peterborough City Council,Adults,Independent Sector Placements,Services,04/04/2018,30172087,"1,386.00",Revenue,Sahara Community Care Services,Home Care
Peterborough City Council,Commissioning and Commercial Operations,Clare Lodge,Agency Staff,04/04/2018,30172090,"1,680.00",Revenue,Wrixon Care Services,External Temporary Staff
Peterborough City Council,Commissioning and Commercial Operations,Clare Lodge,Agency Staff,04/04/2018,30172091,848,Revenue,Wrixon Care Services,External Temporary Staff
Peterborough City Council,Adults,Independent Sector Placements,Services,04/04/2018,30172094,"1,606.98",Revenue,Athena (Ashlynn Grange),Residential Care
Peterborough City Council,Adults,Independent Sector Placements,Services,04/04/2018,30172105,"1,764.00",Revenue,Sahara Community Care Services,Home Care
Peterborough City Council,Adults,Independent Sector Placements,Services,04/04/2018,30172109,966,Revenue,Sahara Community Care Services,Home Care
Peterborough City Council,Adults,Independent Sector Placements,Services,04/04/2018,30172112,"2,352.00",Revenue,Sahara Community Care Services,Home Care
Peterborough City Council,Adults,Independent Sector Placements,Services,04/04/2018,30172114,686,Revenue,Sahara Community Care Services,Home Care
Peterborough City Council,Adults,Independent Sector Placements,Services,04/04/2018,30172115,787.5,Revenue,Sahara Community Care Services,Home Care
Peterborough City Council,Commissioning and Commercial Operations,Clare Lodge,Agency Staff,04/04/2018,30172117,"2,144.00",Revenue,Wrixon Care Services,External Temporary Staff
Peterborough City Council,Commissioning and Commercial Operations,Clare Lodge,Agency Staff,04/04/2018,30172119,"1,032.00",Revenue,Wrixon Care Services,External Temporary Staff
Peterborough City Council,Commissioning and Commercial Operations,Clare Lodge,Agency Staff,04/04/2018,30172121,"2,304.00",Revenue,Wrixon Care Services,External Temporary Staff
Peterborough City Council,Adults,Independent Sector Placements,Services,04/04/2018,30172124,784,Revenue,Sahara Community Care Services,Home Care
Peterborough City Council,Adults,Independent Sector Placements,Services,04/04/2018,30172128,896,Revenue,Sahara Community Care Services,Home Care
Peterborough City Council,Adults,Independent Sector Placements,Services,04/04/2018,30172129,"2,758.00",Revenue,Sahara Community Care Services,Home Care
Peterborough City Council,Commissioning and Commercial Operations,Clare Lodge,Agency Staff,04/04/2018,30172133,504,Revenue,Wrixon Care Services,External Temporary Staff
Peterborough City Council,Commissioning and Commercial Operations,Clare Lodge,Agency Staff,04/04/2018,30172135,960,Revenue,Wrixon Care Services,External Temporary Staff
Peterborough City Council,Commissioning and Commercial Operations,Early Years & Quality Improvement,Services,04/04/2018,30172139,"11,370.54",Revenue,Apricot Childcare,Grant Payment
Peterborough City Council,Commissioning and Commercial Operations,Clare Lodge,Agency Staff,04/04/2018,30172146,552,Revenue,Wrixon Care Services,External Temporary Staff
Peterborough City Council,Corporate,Corporate,Non Revenue,04/04/2018,30172154,"4,592.90",Capital,NPS Peterborough Ltd,Consultants Fees
Peterborough City Council,Corporate,Corporate,Non Revenue,04/04/2018,30172155,500,Capital,NPS Peterborough Ltd,Consultants Fees
Peterborough City Council,Corporate,Corporate,Non Revenue,04/04/2018,30172158,"5,760.00",Capital,NPS Peterborough Ltd,Consultants Fees
Peterborough City Council,Corporate,Corporate,Non Revenue,04/04/2018,30172159,"4,628.66",Capital,NPS Peterborough Ltd,Consultants Fees
Peterborough City Council,Commissioning and Commercial Operations,Clare Lodge,Agency Staff,04/04/2018,30172168,"1,184.00",Revenue,Wrixon Care Services,External Temporary Staff
Peterborough City Council,Commissioning and Commercial Operations,Clare Lodge,Agency Staff,04/04/2018,30172192,"1,600.00",Revenue,Wrixon Care Services,External Temporary Staff
Peterborough City Council,Commissioning and Commercial Operations,Clare Lodge,Agency Staff,04/04/2018,30172193,912,Revenue,Wrixon Care Services,External Temporary Staff
Peterborough City Council,Commissioning and Commercial Operations,Clare Lodge,Agency Staff,04/04/2018,30172194,"1,880.00",Revenue,Wrixon Care Services,External Temporary Staff
Peterborough City Council,Corporate,Corporate,Non Revenue,04/04/2018,30172196,"770,104.36",Balance Sheet,Teachers Pensions,Pensions
Peterborough City Council,Commissioning and Commercial Operations,Clare Lodge,Agency Staff,04/04/2018,30172204,"2,256.00",Revenue,Wrixon Care Services,External Temporary Staff
Peterborough City Council,Commissioning and Commercial Operations,Clare Lodge,Agency Staff,04/04/2018,30172206,"1,072.00",Revenue,Wrixon Care Services,External Temporary Staff
Peterborough City Council,Adults,Independent Sector Placements,Services,04/04/2018,30172215,553.8,Revenue,Cross Keys Homes,Home Care
Peterborough City Council,Children's & Safeguarding,External Education Placements,Services,04/04/2018,30172240,"8,051.29",Revenue,William de Yaxley School,Out Of Area Education Costs
Peterborough City Council,Commissioning and Commercial Operations,Early Years & Quality Improvement,Services,04/04/2018,30172246,628.32,Revenue,Redacted Personal Information,Grant Payment
Peterborough City Council,Adults,Independent Sector Placements,Services,04/04/2018,30172266,"1,158.12",Revenue,Barchester Healthcare (Werrington Lodge),Residential Care
Peterborough City Council,Adults,Independent Sector Placements,Services,04/04/2018,30172268,-509.45,Revenue,Barchester Healthcare (Werrington Lodge),Residential Care
Peterborough City Council,Adults,Independent Sector Placements,Services,04/04/2018,30172269,"1,791.68",Revenue,Barchester Healthcare (Werrington Lodge),Residential Care
Peterborough City Council,Adults,Independent Sector Placements,Services,04/04/2018,30172270,"2,366.17",Revenue,Barchester Healthcare (Werrington Lodge),Residential Care
Peterborough City Council,Adults,Independent Sector Placements,Services,04/04/2018,30172271,"1,791.68",Revenue,Barchester Healthcare (Werrington Lodge),Residential Care
Peterborough City Council,Adults,Independent Sector Placements,Services,04/04/2018,30172272,"1,791.68",Revenue,Barchester Healthcare (Werrington Lodge),Residential Care
Peterborough City Council,Adults,Independent Sector Placements,Services,04/04/2018,30172273,"1,791.68",Revenue,Barchester Healthcare (Werrington Lodge),Residential Care
Peterborough City Council,Adults,Independent Sector Placements,Services,04/04/2018,30172274,527.72,Revenue,Barchester Healthcare (Werrington Lodge),Residential Care
Peterborough City Council,Adults,Independent Sector Placements,Services,04/04/2018,30172275,"1,791.68",Revenue,Barchester Healthcare (Werrington Lodge),Residential Care
Peterborough City Council,Adults,Independent Sector Placements,Services,04/04/2018,30172276,"1,791.68",Revenue,Barchester Healthcare (Werrington Lodge),Residential Care
Peterborough City Council,Adults,Independent Sector Placements,Services,04/04/2018,30172277,"4,740.10",Revenue,Barchester Healthcare (Werrington Lodge),Residential Care
Peterborough City Council,Adults,Independent Sector Placements,Services,04/04/2018,30172278,"1,461.47",Revenue,Barchester Healthcare (Werrington Lodge),Residential Care
Peterborough City Council,Adults,Independent Sector Placements,Services,04/04/2018,30172279,"1,791.68",Revenue,Barchester Healthcare (Werrington Lodge),Residential Care
Peterborough City Council,Adults,Independent Sector Placements,Services,04/04/2018,30172280,664.5,Revenue,Barchester Healthcare (Werrington Lodge),Residential Care
Peterborough City Council,Adults,Independent Sector Placements,Services,04/04/2018,30172281,"1,791.68",Revenue,Barchester Healthcare (Werrington Lodge),Residential Care
Peterborough City Council,Adults,Independent Sector Placements,Services,04/04/2018,30172282,620.2,Revenue,Barchester Healthcare (Werrington Lodge),Residential Care
Peterborough City Council,Adults,Independent Sector Placements,Services,04/04/2018,30172283,"2,411.88",Revenue,Barchester Healthcare (Werrington Lodge),Residential Care
Peterborough City Council,Adults,Independent Sector Placements,Services,04/04/2018,30172284,"2,400.36",Revenue,Barchester Healthcare (Werrington Lodge),Residential Care
Peterborough City Council,Adults,Independent Sector Placements,Services,04/04/2018,30172285,"2,466.81",Revenue,Barchester Healthcare (Werrington Lodge),Residential Care
Peterborough City Council,Adults,Independent Sector Placements,Services,04/04/2018,30172314,503.7,Revenue,Merit Homecare Ltd,Home Care
Peterborough City Council,Adults,Independent Sector Placements,Services,04/04/2018,30172317,517.5,Revenue,Merit Homecare Ltd,Home Care
Peterborough City Council,Adults,Independent Sector Placements,Services,04/04/2018,30172320,979.8,Revenue,Merit Homecare Ltd,Home Care
Peterborough City Council,Corporate,Corporate,Non Revenue,04/04/2018,30172321,"1,696.00",Capital,NPS Peterborough Ltd,Consultants Fees
Peterborough City Council,Adults,Independent Sector Placements,Services,04/04/2018,30172322,"1,304.10",Revenue,Merit Homecare Ltd,Home Care
Peterborough City Council,Adults,Independent Sector Placements,Services,04/04/2018,30172324,"2,125.20",Revenue,Merit Homecare Ltd,Home Care
Peterborough City Council,Adults,Independent Sector Placements,Services,04/04/2018,30172328,921.15,Revenue,Merit Homecare Ltd,Home Care
Peterborough City Council,Adults,Independent Sector Placements,Services,04/04/2018,30172330,"1,159.20",Revenue,Merit Homecare Ltd,Home Care
Peterborough City Council,Adults,Independent Sector Placements,Services,04/04/2018,30172335,552,Revenue,Merit Homecare Ltd,Home Care
Peterborough City Council,Adults,Independent Sector Placements,Services,04/04/2018,30172344,"1,559.40",Revenue,Merit Homecare Ltd,Home Care
Peterborough City Council,Adults,Independent Sector Placements,Services,04/04/2018,30172345,955.65,Revenue,Merit Homecare Ltd,Home Care
Peterborough City Council,Adults,Independent Sector Placements,Services,04/04/2018,30172348,"1,738.80",Revenue,Merit Homecare Ltd,Home Care
Peterborough City Council,Adults,Independent Sector Placements,Services,04/04/2018,30172351,510.6,Revenue,Merit Homecare Ltd,Home Care
Peterborough City Council,Adults,Independent Sector Placements,Services,04/04/2018,30172353,555.45,Revenue,Merit Homecare Ltd,Home Care
Peterborough City Council,Adults,Independent Sector Placements,Services,04/04/2018,30172354,800.4,Revenue,Merit Homecare Ltd,Home Care
Peterborough City Council,Adults,Independent Sector Placements,Services,04/04/2018,30172360,693.45,Revenue,Merit Homecare Ltd,Home Care
Peterborough City Council,Adults,Independent Sector Placements,Services,04/04/2018,30172371,579.6,Revenue,Merit Homecare Ltd,Home Care
Peterborough City Council,Adults,Independent Sector Placements,Services,04/04/2018,30172372,517.5,Revenue,Merit Homecare Ltd,Home Care
Peterborough City Council,Adults,Independent Sector Placements,Services,04/04/2018,30172377,607.2,Revenue,Merit Homecare Ltd,Home Care
Peterborough City Council,Adults,Independent Sector Placements,Services,04/04/2018,30172379,876.3,Revenue,Merit Homecare Ltd,Home Care
Peterborough City Council,Adults,Independent Sector Placements,Services,04/04/2018,30172416,"-3,000.00",Revenue,Anchor Homes,Residential Care
Peterborough City Council,Adults,Independent Sector Placements,Services,04/04/2018,30172417,"-2,400.00",Revenue,Anchor Homes,Residential Care
Peterborough City Council,Adults,Independent Sector Placements,Services,04/04/2018,30172418,"-2,400.00",Revenue,Anchor Homes,Residential Care
Peterborough City Council,Adults,Independent Sector Placements,Services,04/04/2018,30172419,"-3,000.00",Revenue,Anchor Homes,Residential Care
Peterborough City Council,Adults,Independent Sector Placements,Services,04/04/2018,30172420,"2,171.52",Revenue,Hales Group Ltd,Home Care
Peterborough City Council,Adults,Independent Sector Placements,Services,04/04/2018,30172421,827.86,Revenue,Hales Group Ltd,Home Care
Peterborough City Council,Adults,Independent Sector Placements,Services,04/04/2018,30172426,797.96,Revenue,THE CLAIR FRANCIS RETIREMENT HOME,Residential Care
Peterborough City Council,Adults,Independent Sector Placements,Services,04/04/2018,30172435,"1,161.24",Revenue,THE CLAIR FRANCIS RETIREMENT HOME,Residential Care
Peterborough City Council,Communities,Housing,Services,04/04/2018,30172436,560,Revenue,Singh and Sons Property Management Ltd,Homelessness Bed & Breakfast Costs
Peterborough City Council,Adults,Independent Sector Placements,Services,04/04/2018,30172438,"1,103.04",Revenue,THE CLAIR FRANCIS RETIREMENT HOME,Residential Care
Peterborough City Council,Adults,Independent Sector Placements,Services,04/04/2018,30172440,"1,821.88",Revenue,THE CLAIR FRANCIS RETIREMENT HOME,Residential Care
Peterborough City Council,Adults,Independent Sector Placements,Services,04/04/2018,30172442,"1,821.88",Revenue,THE CLAIR FRANCIS RETIREMENT HOME,Residential Care
Peterborough City Council,Adults,Independent Sector Placements,Services,04/04/2018,30172443,"1,276.78",Revenue,THE CLAIR FRANCIS RETIREMENT HOME,Residential Care
Peterborough City Council,Adults,Independent Sector Placements,Services,04/04/2018,30172445,965.64,Revenue,THE CLAIR FRANCIS RETIREMENT HOME,Residential Care
Peterborough City Council,Adults,Independent Sector Placements,Services,04/04/2018,30172447,"1,821.88",Revenue,THE CLAIR FRANCIS RETIREMENT HOME,Residential Care
Peterborough City Council,Adults,Independent Sector Placements,Services,04/04/2018,30172448,"1,038.44",Revenue,THE CLAIR FRANCIS RETIREMENT HOME,Residential Care
Peterborough City Council,Adults,Independent Sector Placements,Services,04/04/2018,30172449,938.32,Revenue,THE CLAIR FRANCIS RETIREMENT HOME,Residential Care
Peterborough City Council,Adults,Independent Sector Placements,Services,04/04/2018,30172450,921.72,Revenue,THE CLAIR FRANCIS RETIREMENT HOME,Residential Care
Peterborough City Council,Adults,Independent Sector Placements,Services,04/04/2018,30172457,"5,046.20",Revenue,Turning Point Services Ltd,Residential Care
Peterborough City Council,Adults,Independent Sector Placements,Services,04/04/2018,30172459,"5,635.20",Revenue,Turning Point Services Ltd,Residential Care
Peterborough City Council,Adults,Independent Sector Placements,Services,04/04/2018,30172460,"6,172.88",Revenue,Turning Point Services Ltd,Residential Care
Peterborough City Council,Adults,Independent Sector Placements,Services,04/04/2018,30172461,"5,061.84",Revenue,Turning Point Services Ltd,Residential Care
Peterborough City Council,Adults,Independent Sector Placements,Services,04/04/2018,30172463,"5,635.20",Revenue,Turning Point Services Ltd,Residential Care
Peterborough City Council,Adults,Independent Sector Placements,Services,04/04/2018,30172467,"6,939.08",Revenue,Turning Point Services Ltd,Residential Care
Peterborough City Council,Adults,Independent Sector Placements,Services,04/04/2018,30172468,"6,886.68",Revenue,Turning Point Services Ltd,Residential Care
Peterborough City Council,Adults,Independent Sector Placements,Services,04/04/2018,30172469,"5,449.76",Revenue,Turning Point Services Ltd,Residential Care
Peterborough City Council,Adults,Independent Sector Placements,Services,04/04/2018,30172471,"6,167.28",Revenue,Turning Point Services Ltd,Residential Care
Peterborough City Council,Adults,Independent Sector Placements,Services,04/04/2018,30172474,"5,078.04",Revenue,Turning Point Services Ltd,Residential Care
Peterborough City Council,Adults,Independent Sector Placements,Services,04/04/2018,30172476,"4,101.64",Revenue,Turning Point Services Ltd,Residential Care
Peterborough City Council,Adults,Independent Sector Placements,Services,04/04/2018,30172477,"4,677.96",Revenue,Turning Point Services Ltd,Residential Care
Peterborough City Council,Adults,Independent Sector Placements,Services,04/04/2018,30172479,"6,473.88",Revenue,Turning Point Services Ltd,Residential Care
Peterborough City Council,Adults,Independent Sector Placements,Services,04/04/2018,30172483,"6,473.88",Revenue,Turning Point Services Ltd,Residential Care
Peterborough City Council,Adults,Independent Sector Placements,Services,04/04/2018,30172486,500.8,Revenue,Turning Point Services Ltd,Residential Care
Peterborough City Council,Communities,Housing,Services,04/04/2018,30172504,525,Revenue,Eastfield Guesthouse,Homelessness Bed & Breakfast Costs
Peterborough City Council,Communities,Housing,Services,04/04/2018,30172547,560,Revenue,Singh and Sons Property Management Ltd,Homelessness Bed & Breakfast Costs
Peterborough City Council,Adults,Independent Sector Placements,Services,04/04/2018,30172589,"1,284.08",Revenue,THE CLAIR FRANCIS RETIREMENT HOME,Residential Care
Peterborough City Council,Adults,Independent Sector Placements,Services,04/04/2018,30172591,"1,576.24",Revenue,THE CLAIR FRANCIS RETIREMENT HOME,Residential Care
Peterborough City Council,Adults,Independent Sector Placements,Services,04/04/2018,30172592,"1,281.84",Revenue,THE CLAIR FRANCIS RETIREMENT HOME,Residential Care
Peterborough City Council,Adults,Independent Sector Placements,Services,04/04/2018,30172593,"1,237.16",Revenue,THE CLAIR FRANCIS RETIREMENT HOME,Residential Care
Peterborough City Council,Adults,Independent Sector Placements,Services,04/04/2018,30172599,676.2,Revenue,Merit Homecare Ltd,Home Care
Peterborough City Council,Adults,Independent Sector Placements,Services,04/04/2018,30172607,"1,708.57",Revenue,Buchan Healthcare Ltd.,Residential Care
Peterborough City Council,Adults,Independent Sector Placements,Services,04/04/2018,30172608,"2,080.00",Revenue,Buchan Healthcare Ltd.,Residential Care
Peterborough City Council,Adults,Independent Sector Placements,Services,04/04/2018,30172610,"2,080.00",Revenue,Buchan Healthcare Ltd.,Residential Care
Peterborough City Council,Adults,Independent Sector Placements,Services,04/04/2018,30172613,"2,080.00",Revenue,Buchan Healthcare Ltd.,Residential Care
Peterborough City Council,Commissioning and Commercial Operations,Clare Lodge,Services,04/04/2018,30172614,"2,400.00",Revenue,M Caton Associates Ltd,Hired Services
Peterborough City Council,Peterborough Highway Services,Highway & Drainage Control,Agency Staff,04/04/2018,30172639,"1,262.38",Revenue,Reed Specialist Recruitment Limited,External Temporary Staff
Peterborough City Council,Peterborough Highway Services,Highway & Drainage Control,Agency Staff,04/04/2018,30172640,"1,235.80",Revenue,Reed Specialist Recruitment Limited,External Temporary Staff
Peterborough City Council,Adults,Independent Sector Placements,Services,04/04/2018,8000112357,563.4,Revenue,MEARS GROUP,Home Care
Peterborough City Council,Adults,Independent Sector Placements,Services,04/04/2018,8000112362,846.75,Revenue,MEARS GROUP,Home Care
Peterborough City Council,Adults,Independent Sector Placements,Services,04/04/2018,8000112370,979.95,Revenue,MEARS GROUP,Home Care
Peterborough City Council,Adults,Independent Sector Placements,Services,04/04/2018,8000112373,774.45,Revenue,MEARS GROUP,Home Care
Peterborough City Council,Adults,Independent Sector Placements,Services,04/04/2018,8000112382,995.55,Revenue,MEARS GROUP,Home Care
Peterborough City Council,Adults,Independent Sector Placements,Services,04/04/2018,8000112385,"1,735.65",Revenue,MEARS GROUP,Home Care
Peterborough City Council,Adults,Independent Sector Placements,Services,04/04/2018,8000112388,671.85,Revenue,MEARS GROUP,Home Care
Peterborough City Council,Adults,Independent Sector Placements,Services,04/04/2018,8000112391,967.2,Revenue,MEARS GROUP,Home Care
Peterborough City Council,Adults,Independent Sector Placements,Services,04/04/2018,8000112393,810.9,Revenue,MEARS GROUP,Home Care
Peterborough City Council,Adults,Independent Sector Placements,Services,04/04/2018,8000112394,"1,605.30",Revenue,MEARS GROUP,Home Care
Peterborough City Council,Adults,Independent Sector Placements,Services,04/04/2018,8000112395,533.7,Revenue,MEARS GROUP,Home Care
Peterborough City Council,Adults,Independent Sector Placements,Services,04/04/2018,8000112401,561,Revenue,MEARS GROUP,Home Care
Peterborough City Council,Adults,Independent Sector Placements,Services,04/04/2018,8000112402,994.05,Revenue,MEARS GROUP,Home Care
Peterborough City Council,Adults,Independent Sector Placements,Services,04/04/2018,8000112404,964.35,Revenue,MEARS GROUP,Home Care
Peterborough City Council,Adults,Independent Sector Placements,Services,04/04/2018,8000112412,575.85,Revenue,MEARS GROUP,Home Care
Peterborough City Council,Adults,Independent Sector Placements,Services,04/04/2018,8000112421,685.65,Revenue,MEARS GROUP,Home Care
Peterborough City Council,Adults,Independent Sector Placements,Services,04/04/2018,8000112424,"1,843.20",Revenue,MEARS GROUP,Home Care
Peterborough City Council,Adults,Independent Sector Placements,Services,04/04/2018,8000112426,757.5,Revenue,MEARS GROUP,Home Care
Peterborough City Council,Adults,Independent Sector Placements,Services,04/04/2018,8000112427,555.45,Revenue,MEARS GROUP,Home Care
Peterborough City Council,Adults,Independent Sector Placements,Services,04/04/2018,8000112428,522.6,Revenue,MEARS GROUP,Home Care
Peterborough City Council,Adults,Independent Sector Placements,Services,04/04/2018,8000112429,"1,652.40",Revenue,MEARS GROUP,Home Care
Peterborough City Council,Adults,Independent Sector Placements,Services,04/04/2018,8000112432,855.9,Revenue,MEARS GROUP,Home Care
Peterborough City Council,Adults,Independent Sector Placements,Services,04/04/2018,8000112433,"1,291.50",Revenue,MEARS GROUP,Home Care
Peterborough City Council,Adults,Independent Sector Placements,Services,04/04/2018,8000112434,726.15,Revenue,MEARS GROUP,Home Care
Peterborough City Council,Adults,Independent Sector Placements,Services,04/04/2018,8000112438,861.45,Revenue,MEARS GROUP,Home Care
Peterborough City Council,Adults,Independent Sector Placements,Services,04/04/2018,8000112439,850.8,Revenue,MEARS GROUP,Home Care
Peterborough City Council,Adults,Independent Sector Placements,Services,04/04/2018,8000112442,701.85,Revenue,MEARS GROUP,Home Care
Peterborough City Council,Adults,Independent Sector Placements,Services,04/04/2018,8000112447,"1,256.40",Revenue,MEARS GROUP,Home Care
Peterborough City Council,Adults,Independent Sector Placements,Services,04/04/2018,8000112450,523.65,Revenue,MEARS GROUP,Home Care
Peterborough City Council,Adults,Independent Sector Placements,Services,04/04/2018,8000112452,736.35,Revenue,MEARS GROUP,Home Care
Peterborough City Council,Adults,Independent Sector Placements,Services,04/04/2018,8000112453,583.65,Revenue,MEARS GROUP,Home Care
Peterborough City Council,Adults,Independent Sector Placements,Services,04/04/2018,8000112455,849.15,Revenue,MEARS GROUP,Home Care
Peterborough City Council,Adults,Independent Sector Placements,Services,04/04/2018,8000112463,"2,143.95",Revenue,MEARS GROUP,Home Care
Peterborough City Council,Adults,Independent Sector Placements,Services,04/04/2018,8000112467,797.55,Revenue,MEARS GROUP,Home Care
Peterborough City Council,Adults,Independent Sector Placements,Services,04/04/2018,8000112471,"2,878.03",Revenue,Sagecare,Home Care
Peterborough City Council,Adults,Independent Sector Placements,Services,04/04/2018,8000112473,"1,018.71",Revenue,Sagecare,Home Care
Peterborough City Council,Adults,Independent Sector Placements,Services,04/04/2018,8000112474,769.23,Revenue,Sagecare,Home Care
Peterborough City Council,Adults,Independent Sector Placements,Services,04/04/2018,8000112554,"1,594.60",Revenue,Axiom Housing Association Ltd,Home Care
Peterborough City Council,Adults,Independent Sector Placements,Services,04/04/2018,8000112556,"1,594.60",Revenue,Axiom Housing Association Ltd,Home Care
Peterborough City Council,Adults,Independent Sector Placements,Services,04/04/2018,8000112559,666.4,Revenue,Axiom Housing Association Ltd,Home Care
Peterborough City Council,Adults,Independent Sector Placements,Services,04/04/2018,8000112560,583.1,Revenue,Axiom Housing Association Ltd,Home Care
Peterborough City Council,Adults,Independent Sector Placements,Services,04/04/2018,8000112562,"1,249.50",Revenue,Axiom Housing Association Ltd,Home Care
Peterborough City Council,Adults,Independent Sector Placements,Services,04/04/2018,8000112564,"1,100.75",Revenue,Axiom Housing Association Ltd,Home Care
Peterborough City Council,Adults,Independent Sector Placements,Services,04/04/2018,8000112565,"1,594.60",Revenue,Axiom Housing Association Ltd,Home Care
Peterborough City Council,Adults,Independent Sector Placements,Services,04/04/2018,8000112566,"1,190.00",Revenue,Axiom Housing Association Ltd,Home Care
Peterborough City Council,Adults,Independent Sector Placements,Services,04/04/2018,8000112571,666.4,Revenue,Axiom Housing Association Ltd,Home Care
Peterborough City Council,Adults,Independent Sector Placements,Services,04/04/2018,8000112574,852.6,Revenue,Axiom Housing Association Ltd,Home Care
Peterborough City Council,Children's & Safeguarding,Commissioning - CSC,Services,04/04/2018,8000112747,851.5,Revenue,Redacted Personal Information,Financial Assistance
Peterborough City Council,Children's & Safeguarding,Commissioning - CSC,Services,04/04/2018,8000112747,940.85,Revenue,Redacted Personal Information,Financial Assistance
Peterborough City Council,Commissioning and Commercial Operations,Clare Lodge,Agency Staff,06/04/2018,30168511,"1,048.00",Revenue,Wrixon Care Services,External Temporary Staff
Peterborough City Council,Legal Services,Legal Services,Services,06/04/2018,30169799,986.25,Revenue,Core Assets Experts Services Ltd T/A Carter Brown The Expert Service,Jurors/Expert Witnesses
Peterborough City Council,Children's & Safeguarding,Commissioning - CSC,Third Party Payments,06/04/2018,30169850,"4,990.00",Revenue,Taylorfitch Ltd,Third Party Payments - Contract
Peterborough City Council,ICT,ICT,Agency Staff,06/04/2018,30170058,"2,500.00",Revenue,Cranford Solutions (UK) Ltd,External Temporary Staff
Peterborough City Council,Legal Services,Legal Services,Services,06/04/2018,30170077,550,Revenue,"Sleight, Mr Nigel",Legal Costs
Peterborough City Council,Legal Services,Legal Services,Services,06/04/2018,30170081,550,Revenue,"Elliott, Ms Margot",Legal Costs
Peterborough City Council,Communities,Community Safety,"Tools, Equipment, Furniture & Materials",06/04/2018,30170085,999,Revenue,Direct Comms Radio Services Ltd,Furniture And Equipment Purchase
Peterborough City Council,Children's & Safeguarding,Children's Social Care,Agency Staff,06/04/2018,30170086,"1,406.00",Revenue,NonStop Recruitment Ltd,External Temporary Staff
Peterborough City Council,Corporate Property,Commercial Propety,Repair & Maintenance of Buildings,06/04/2018,30170089,"2,845.00",Revenue,Tesam Distribution Ltd,Premises Repairs
Peterborough City Council,Adults,Finance,Agency Staff,06/04/2018,30170102,"5,823.51",Revenue,Badenoch & Clark Ltd,External Temporary Staff
Peterborough City Council,Adults,Finance,Agency Staff,06/04/2018,30170104,"5,823.51",Revenue,Badenoch & Clark Ltd,External Temporary Staff
Peterborough City Council,Financial Services,Finance,Agency Staff,06/04/2018,30170285,931,Revenue,Morgan Hunt UK Ltd,External Temporary Staff
Peterborough City Council,Corporate,Corporate,Non Revenue,06/04/2018,30170401,"3,692.00",Capital,Casbon Building Services,Grant Payment
Peterborough City Council,Adults,Home Services Delivery Model,Services,06/04/2018,30170421,582.25,Revenue,Nightingale Services,Contractors
Peterborough City Council,Westcombe Engineering,Westcombe Engineering,"Tools, Equipment, Furniture & Materials",06/04/2018,30170547,585,Revenue,Olis Machine Tools Ltd,Furniture And Equipment Repairs
Peterborough City Council,HR,HR WFD & Training,Services,06/04/2018,30170614,775,Revenue,Do the Write Thing Ltd,Course Instructors Fees
Peterborough City Council,Adults,Independent Sector Placements,Services,06/04/2018,30171061,568,Revenue,Voyage,Home Care
Peterborough City Council,Adults,Independent Sector Placements,Services,06/04/2018,30171062,568,Revenue,Voyage,Home Care
Peterborough City Council,Adults,Independent Sector Placements,Services,06/04/2018,30171063,568,Revenue,Voyage,Home Care
Peterborough City Council,Adults,Independent Sector Placements,Services,06/04/2018,30171064,568,Revenue,Voyage,Home Care
Peterborough City Council,Adults,Independent Sector Placements,Services,06/04/2018,30171065,568,Revenue,Voyage,Home Care
Peterborough City Council,Adults,Independent Sector Placements,Services,06/04/2018,30171066,568,Revenue,Voyage,Home Care
Peterborough City Council,Adults,Independent Sector Placements,Services,06/04/2018,30171067,568,Revenue,Voyage,Home Care
Peterborough City Council,Adults,Independent Sector Placements,Services,06/04/2018,30171074,"2,017.08",Revenue,Bestcare Ltd,Residential Care
Peterborough City Council,Corporate,Corporate,Non Revenue,06/04/2018,30171102,"4,144.00",Capital,Stannah Lift Services Ltd,Grant Payment
Peterborough City Council,Corporate,Corporate,Non Revenue,06/04/2018,30171233,"3,306.00",Capital,A W Morley T/A Morley Building Services,Grant Payment
Peterborough City Council,Corporate,Corporate,Non Revenue,06/04/2018,30171240,"8,381.00",Capital,A W Morley T/A Morley Building Services,Grant Payment
Peterborough City Council,Various,Various,Services,06/04/2018,30171437,"2,687.12",Revenue,Whistl UK Ltd,Postage
Peterborough City Council,ICT,ICT,Services,06/04/2018,30171502,"4,593.30",Revenue,Capita Business Services Ltd,Computer Software
Peterborough City Council,Adults,Independent Sector Placements,Services,06/04/2018,30171515,916.08,Revenue,Pilgrim Havens,Residential Care
Peterborough City Council,Adults,Independent Sector Placements,Services,06/04/2018,30171516,"1,631.76",Revenue,Pilgrim Havens,Residential Care
Peterborough City Council,Adults,Independent Sector Placements,Services,06/04/2018,30171517,926.64,Revenue,Pilgrim Havens,Residential Care
Peterborough City Council,Adults,Independent Sector Placements,Services,06/04/2018,30171518,"1,320.08",Revenue,Pilgrim Havens,Residential Care
Peterborough City Council,Adults,Independent Sector Placements,Services,06/04/2018,30171519,"1,284.08",Revenue,Pilgrim Havens,Residential Care
Peterborough City Council,Adults,Independent Sector Placements,Services,06/04/2018,30171520,"1,585.20",Revenue,Pilgrim Havens,Residential Care
Peterborough City Council,Adults,Independent Sector Placements,Services,06/04/2018,30171709,"1,626.69",Revenue,Pilgrim Havens,Residential Care
Peterborough City Council,Development and Construction,Development Management,Agency Staff,06/04/2018,30171848,"1,000.21",Revenue,Reed Specialist Recruitment Limited,External Temporary Staff
Peterborough City Council,Children's & Safeguarding,Early Help ASC/CSC,Agency Staff,06/04/2018,30171851,532.43,Revenue,Reed Specialist Recruitment Limited,External Temporary Staff
Peterborough City Council,Communities,Performance & Information,Agency Staff,06/04/2018,30171868,920.15,Revenue,Reed Specialist Recruitment Limited,External Temporary Staff
Peterborough City Council,Development and Construction,Development Management,Agency Staff,06/04/2018,30171870,"1,137.50",Revenue,Reed Specialist Recruitment Limited,External Temporary Staff
Peterborough City Council,Peterborough Highway Services,Highway Services - HoS,Agency Staff,06/04/2018,30171874,921.31,Revenue,Reed Specialist Recruitment Limited,External Temporary Staff
Peterborough City Council,Financial Services,Finance,Agency Staff,06/04/2018,30171885,664.24,Revenue,Reed Specialist Recruitment Limited,External Temporary Staff
Peterborough City Council,Commissioning and Commercial Operations,Clare Lodge,Agency Staff,06/04/2018,30172170,"1,920.00",Revenue,Wrixon Care Services,External Temporary Staff
Peterborough City Council,Commissioning and Commercial Operations,Clare Lodge,Agency Staff,06/04/2018,30172208,"2,064.00",Revenue,Wrixon Care Services,External Temporary Staff
Peterborough City Council,Commissioning and Commercial Operations,Clare Lodge,Agency Staff,06/04/2018,30172209,"2,080.00",Revenue,Wrixon Care Services,External Temporary Staff
Peterborough City Council,Commissioning and Commercial Operations,Clare Lodge,Agency Staff,06/04/2018,30172214,976,Revenue,Wrixon Care Services,External Temporary Staff
Peterborough City Council,Commissioning and Commercial Operations,Clare Lodge,Agency Staff,06/04/2018,30172216,"1,640.00",Revenue,Wrixon Care Services,External Temporary Staff
Peterborough City Council,Commissioning and Commercial Operations,Clare Lodge,Agency Staff,06/04/2018,30172217,"1,064.00",Revenue,Wrixon Care Services,External Temporary Staff
Peterborough City Council,Commissioning and Commercial Operations,Clare Lodge,Agency Staff,06/04/2018,30172222,944,Revenue,Wrixon Care Services,External Temporary Staff
Peterborough City Council,Communities,Housing,Services,06/04/2018,30172237,507.5,Revenue,Eastfield Guesthouse,Homelessness Bed & Breakfast Costs
Peterborough City Council,Communities,Housing,Services,06/04/2018,30172242,507.5,Revenue,Eastfield Guesthouse,Homelessness Bed & Breakfast Costs
Peterborough City Council,Communities,Housing,Services,06/04/2018,30172244,507.5,Revenue,Eastfield Guesthouse,Homelessness Bed & Breakfast Costs
Peterborough City Council,Communities,Housing,Services,06/04/2018,30172249,525,Revenue,Eastfield Guesthouse,Homelessness Bed & Breakfast Costs
Peterborough City Council,Communities,Housing,Services,06/04/2018,30172250,525,Revenue,Eastfield Guesthouse,Homelessness Bed & Breakfast Costs
Peterborough City Council,Commissioning and Commercial Operations,Early Years & Quality Improvement,Services,06/04/2018,30172251,"1,501.50",Revenue,Peterborough Regional College,Grant Payment
Peterborough City Council,Commissioning and Commercial Operations,Early Years & Quality Improvement,Services,06/04/2018,30172252,585,Revenue,The Owls' Nest Pre-School,Grant Payment
Peterborough City Council,Communities,Housing,Services,06/04/2018,30172254,525,Revenue,Eastfield Guesthouse,Homelessness Bed & Breakfast Costs
Peterborough City Council,Communities,Housing,Services,06/04/2018,30172257,525,Revenue,Eastfield Guesthouse,Homelessness Bed & Breakfast Costs
Peterborough City Council,Commissioning and Commercial Operations,Early Years & Quality Improvement,Services,06/04/2018,30172258,"1,300.00",Revenue,Little Tigers Day Nursery,Grant Payment
Peterborough City Council,Commissioning and Commercial Operations,Early Years & Quality Improvement,Services,06/04/2018,30172261,"110,000.00",Revenue,Toddlers Inn Day Nursery,Grant Payment
Peterborough City Council,Communities,Housing,Services,06/04/2018,30172262,525,Revenue,Eastfield Guesthouse,Homelessness Bed & Breakfast Costs
Peterborough City Council,Communities,Housing,Services,06/04/2018,30172342,525,Revenue,Eastfield Guesthouse,Homelessness Bed & Breakfast Costs
Peterborough City Council,Communities,Housing,Services,06/04/2018,30172350,525,Revenue,Eastfield Guesthouse,Homelessness Bed & Breakfast Costs
Peterborough City Council,Communities,Housing,Services,06/04/2018,30172352,525,Revenue,Eastfield Guesthouse,Homelessness Bed & Breakfast Costs
Peterborough City Council,Communities,Housing,Services,06/04/2018,30172358,525,Revenue,Eastfield Guesthouse,Homelessness Bed & Breakfast Costs
Peterborough City Council,Communities,Housing,Services,06/04/2018,30172370,525,Revenue,Eastfield Guesthouse,Homelessness Bed & Breakfast Costs
Peterborough City Council,Communities,Housing,Services,06/04/2018,30172381,507.5,Revenue,Eastfield Guesthouse,Homelessness Bed & Breakfast Costs
Peterborough City Council,Communities,Housing,Services,06/04/2018,30172393,525,Revenue,Eastfield Guesthouse,Homelessness Bed & Breakfast Costs
Peterborough City Council,Adults,Independent Sector Placements,Services,06/04/2018,30172462,"16,651.60",Revenue,Turning Point Services Ltd,Residential Care
Peterborough City Council,Adults,Independent Sector Placements,Services,06/04/2018,30172480,"11,632.60",Revenue,Turning Point Services Ltd,Residential Care
Peterborough City Council,Adults,Independent Sector Placements,Services,06/04/2018,30172621,"2,297.60",Revenue,Sense,Day Care
Peterborough City Council,Adults,Independent Sector Placements,Services,06/04/2018,30172622,"2,297.60",Revenue,Sense,Day Care
Peterborough City Council,Adults,Independent Sector Placements,Services,06/04/2018,30172624,"4,595.20",Revenue,Sense,Day Care
Peterborough City Council,Adults,Independent Sector Placements,Services,06/04/2018,30172625,522.72,Revenue,Sense,Day Care
Peterborough City Council,Adults,Independent Sector Placements,Services,06/04/2018,30172626,"2,297.60",Revenue,Sense,Day Care
Peterborough City Council,Adults,Independent Sector Placements,Services,06/04/2018,30172628,"2,297.60",Revenue,Sense,Day Care
Peterborough City Council,Children's & Safeguarding,Early Help ASC/CSC,Agency Staff,06/04/2018,30172634,533.64,Revenue,Reed Specialist Recruitment Limited,External Temporary Staff
Peterborough City Council,Adults,Independent Sector Placements,Services,06/04/2018,30172635,"5,686.80",Revenue,Lifeways Community Care,Residential Care
Peterborough City Council,Adults,Independent Sector Placements,Services,06/04/2018,30172641,"5,686.80",Revenue,Lifeways Community Care,Residential Care
Peterborough City Council,Adults,Independent Sector Placements,Services,06/04/2018,30172647,666.4,Revenue,Axiom Housing Association Ltd,Home Care
Peterborough City Council,Adults,Independent Sector Placements,Services,06/04/2018,30172649,823.8,Revenue,Axiom Housing Association Ltd,Home Care
Peterborough City Council,Adults,Independent Sector Placements,Services,06/04/2018,30172650,"2,648.00",Revenue,PHILIA LODGE REST HOME,Residential Care
Peterborough City Council,Adults,Independent Sector Placements,Services,06/04/2018,30172651,"5,279.40",Revenue,Voyage,Home Care
Peterborough City Council,Adults,Independent Sector Placements,Services,06/04/2018,30172652,823.2,Revenue,Axiom Housing Association Ltd,Home Care
Peterborough City Council,Adults,Independent Sector Placements,Services,06/04/2018,30172653,"3,224.00",Revenue,STAR RESIDENTIAL HOME LTD,Residential Care
Peterborough City Council,Adults,Independent Sector Placements,Services,06/04/2018,30172654,"1,727.14",Revenue,STAR RESIDENTIAL HOME LTD,Residential Care
Peterborough City Council,Corporate,Corporate,Non Revenue,06/04/2018,30172661,"13,040.00",Capital,Bourne Skip Hire and Recycling Limited,Building And Site Works
Peterborough City Council,Adults,Independent Sector Placements,Services,06/04/2018,30172665,570.75,Revenue,COMFORCARE SENIOR SERVICES,Home Care
Peterborough City Council,Adults,Independent Sector Placements,Services,06/04/2018,30172668,"10,800.00",Revenue,Consensus (2013) Ltd,Residential Care
Peterborough City Council,Energy,Environment Capital,Services,06/04/2018,30172670,840,Revenue,Rolton Group Ltd,Professional Services
Peterborough City Council,Adults,Independent Sector Placements,Services,06/04/2018,30172674,"3,285.71",Revenue,FIELD HOUSE (EYE) LTD,Residential Care
Peterborough City Council,Adults,Independent Sector Placements,Contract Hire and Operating Leases,06/04/2018,30172681,"1,425.00",Revenue,King Carz Ltd,Hired Transport
Peterborough City Council,Adults,Independent Sector Placements,Contract Hire and Operating Leases,06/04/2018,30172683,"1,500.00",Revenue,King Carz Ltd,Hired Transport
Peterborough City Council,Financial Services,Finance,Agency Staff,06/04/2018,30172735,572.9,Revenue,Reed Specialist Recruitment Limited,External Temporary Staff
Peterborough City Council,Peterborough Highway Services,Highway Services - HoS,Agency Staff,06/04/2018,30172744,849.46,Revenue,Reed Specialist Recruitment Limited,External Temporary Staff
Peterborough City Council,Commissioning and Commercial Operations,Clare Lodge,Agency Staff,06/04/2018,30172751,611.1,Revenue,Reed Specialist Recruitment Limited,External Temporary Staff
Peterborough City Council,Financial Services,Finance,Agency Staff,06/04/2018,30172754,"1,471.60",Revenue,Reed Specialist Recruitment Limited,External Temporary Staff
Peterborough City Council,Adults,Independent Sector Placements,Services,06/04/2018,30172755,"6,420.00",Revenue,Transitions Supported Living Ltd,Home Care
Peterborough City Council,Adults,Independent Sector Placements,Services,06/04/2018,30172782,644.95,Revenue,Sagecare,Home Care
Peterborough City Council,Communities,Housing,Services,06/04/2018,30172790,525,Revenue,Redacted Personal Information,Financial Assistance
Peterborough City Council,Adults,Independent Sector Placements,Services,06/04/2018,30172794,"3,294.17",Revenue,Athena (Ashlynn Grange),Residential Care
Peterborough City Council,Adults,Independent Sector Placements,Services,06/04/2018,30172795,659.78,Revenue,Athena (Ashlynn Grange),Residential Care
Peterborough City Council,Adults,Independent Sector Placements,Services,06/04/2018,30172796,"-1,048.20",Revenue,Voyage,Home Care
Peterborough City Council,Communities,Cohesion,Rents,06/04/2018,30172802,625,Revenue,Rightroom Lettings Ltd,Rent
Peterborough City Council,Communities,Cohesion,Rents,06/04/2018,30172803,575,Revenue,Record Property Solutions,Rent
Peterborough City Council,Communities,Cohesion,Rents,06/04/2018,30172805,625,Revenue,Record Property Solutions,Rent
Peterborough City Council,Communities,Cohesion,Rents,06/04/2018,30172809,800,Revenue,Hope Into Action,Rent
Peterborough City Council,Communities,Cohesion,Rents,06/04/2018,30172812,800,Revenue,Rightroom Lettings Ltd,Rent
Peterborough City Council,Communities,Cohesion,Rents,06/04/2018,30172814,750,Revenue,Redacted Personal Information,Rent
Peterborough City Council,Communities,Cohesion,Rents,06/04/2018,30172816,575,Revenue,Redacted Personal Information,Rent
Peterborough City Council,Communities,Cohesion,Rents,06/04/2018,30172818,"1,250.00",Revenue,Record Property Solutions,Rent
Peterborough City Council,Development and Construction,Building Control,Services,06/04/2018,30172832,"2,250.00",Revenue,Humphrey Contracting Ltd,Contractors
Peterborough City Council,Education,Service Director Education,Employee Costs,06/04/2018,30172844,"26,641.68",Revenue,Teachers Pensions,Pensions
Peterborough City Council,Corporate,Corporate,Non Revenue,06/04/2018,30172854,"1,916.12",Balance Sheet,The Prudential Assurance Company Ltd,Pensions
Peterborough City Council,"Waste, Cleansing and Open Spaces",Waste Management,Services,06/04/2018,30172855,"3,923.50",Revenue,Environment Agency,Licences
Peterborough City Council,Corporate,Corporate,Non Revenue,06/04/2018,30172856,"4,318.28",Balance Sheet,The Prudential Assurance Company Ltd,Pensions
Peterborough City Council,"Waste, Cleansing and Open Spaces",Waste Management,Services,06/04/2018,30172857,"1,795.50",Revenue,Environment Agency,Licences
Peterborough City Council,Legal Services,Legal Services,Services,06/04/2018,30172858,550,Revenue,"Elliott, Ms Margot",Legal Costs
Peterborough City Council,Legal Services,Legal Services,Services,06/04/2018,30172859,550,Revenue,"Elliott, Ms Margot",Legal Costs
Peterborough City Council,Commissioning and Commercial Operations,Commissioning,Third Party Payments,06/04/2018,30172910,"12,008.00",Revenue,Cambs & P'boro NHS Foundation Trust,Third Party Payments - Contract
Peterborough City Council,Children's & Safeguarding,Children's Social Care,Services,06/04/2018,30173001,630,Revenue,PC Homes,Financial Assistance
Peterborough City Council,Corporate,Corporate,Non Revenue,06/04/2018,30173032,"3,629.28",Capital,Garfield Builders Ltd,Building And Site Works
Peterborough City Council,Commissioning and Commercial Operations,Early Years & Quality Improvement,Services,06/04/2018,30173063,501.15,Revenue,Redacted Personal Information,Grant Payment
Peterborough City Council,Commissioning and Commercial Operations,Early Years & Quality Improvement,Services,06/04/2018,30173065,"63,160.41",Revenue,Anna-Ca-Soo Day Nursery,Grant Payment
Peterborough City Council,Commissioning and Commercial Operations,Early Years & Quality Improvement,Services,06/04/2018,30173066,"2,869.15",Revenue,Redacted Personal Information,Grant Payment
Peterborough City Council,Commissioning and Commercial Operations,Early Years & Quality Improvement,Services,06/04/2018,30173081,"54,644.46",Revenue,Acorn Academy Day Nursery Ltd,Grant Payment
Peterborough City Council,Commissioning and Commercial Operations,Early Years & Quality Improvement,Services,06/04/2018,30173082,"19,348.68",Revenue,Barnack Pre-School,Grant Payment
Peterborough City Council,Legal Services,Legal Services,Agency Staff,06/04/2018,30173113,"1,089.38",Revenue,Giant Professional Limited,External Temporary Staff
Peterborough City Council,"Waste, Cleansing and Open Spaces",Waste Management,Services,06/04/2018,30173122,"5,894.76",Revenue,Material Change Composting Ltd,Recycling
Peterborough City Council,"Waste, Cleansing and Open Spaces",Waste Management,Services,06/04/2018,30173123,"9,903.68",Revenue,Material Change Composting Ltd,Recycling
Peterborough City Council,City Centre Management,"Markets, Tourism & Events",Services,06/04/2018,30173125,"1,952.00",Revenue,Elveden Farms Ltd,Contractors
Peterborough City Council,Children's & Safeguarding,Access to Resources & Specialist Commissioning,Services,06/04/2018,30173127,"2,671.38",Revenue,Key2,Boarding Out Allowances
Peterborough City Council,Children's & Safeguarding,Access to Resources & Specialist Commissioning,Services,06/04/2018,30173130,"3,067.14",Revenue,Key2,Boarding Out Allowances
Peterborough City Council,Children's & Safeguarding,Access to Resources & Specialist Commissioning,Services,06/04/2018,30173166,"7,063.75",Revenue,Rochdale Borough Council,Boarding Out Allowances
Peterborough City Council,Adults,Independent Sector Placements,Services,06/04/2018,8000112653,757,Revenue,COMFORCARE SENIOR SERVICES,Home Care
Peterborough City Council,Adults,Independent Sector Placements,Services,06/04/2018,8000112658,"2,878.25",Revenue,COMFORCARE SENIOR SERVICES,Home Care
Peterborough City Council,Adults,Independent Sector Placements,Services,06/04/2018,8000112660,630,Revenue,COMFORCARE SENIOR SERVICES,Home Care
Peterborough City Council,Adults,Independent Sector Placements,Services,06/04/2018,8000112661,"1,048.75",Revenue,COMFORCARE SENIOR SERVICES,Home Care
Peterborough City Council,Adults,Independent Sector Placements,Services,06/04/2018,8000112662,619.25,Revenue,COMFORCARE SENIOR SERVICES,Home Care
Peterborough City Council,Adults,Independent Sector Placements,Services,06/04/2018,8000112663,755,Revenue,COMFORCARE SENIOR SERVICES,Home Care
Peterborough City Council,Adults,Independent Sector Placements,Services,06/04/2018,8000112664,"1,461.75",Revenue,COMFORCARE SENIOR SERVICES,Home Care
Peterborough City Council,Adults,Independent Sector Placements,Services,06/04/2018,8000112665,947.5,Revenue,COMFORCARE SENIOR SERVICES,Home Care
Peterborough City Council,Adults,Independent Sector Placements,Services,06/04/2018,8000112669,712.75,Revenue,COMFORCARE SENIOR SERVICES,Home Care
Peterborough City Council,Adults,Independent Sector Placements,Services,06/04/2018,8000112670,"1,008.75",Revenue,COMFORCARE SENIOR SERVICES,Home Care
Peterborough City Council,Adults,Independent Sector Placements,Services,06/04/2018,8000112671,"2,260.00",Revenue,COMFORCARE SENIOR SERVICES,Home Care
Peterborough City Council,Adults,Independent Sector Placements,Services,06/04/2018,8000112672,"1,072.50",Revenue,COMFORCARE SENIOR SERVICES,Home Care
Peterborough City Council,Adults,Independent Sector Placements,Services,06/04/2018,8000112673,700.75,Revenue,COMFORCARE SENIOR SERVICES,Home Care
Peterborough City Council,Adults,Independent Sector Placements,Services,06/04/2018,8000112676,839.25,Revenue,COMFORCARE SENIOR SERVICES,Home Care
Peterborough City Council,Adults,Independent Sector Placements,Services,06/04/2018,8000112677,"2,163.50",Revenue,COMFORCARE SENIOR SERVICES,Home Care
Peterborough City Council,Adults,Independent Sector Placements,Services,06/04/2018,8000112679,580.5,Revenue,COMFORCARE SENIOR SERVICES,Home Care
Peterborough City Council,Adults,Independent Sector Placements,Services,06/04/2018,8000112680,537.75,Revenue,COMFORCARE SENIOR SERVICES,Home Care
Peterborough City Council,Adults,Independent Sector Placements,Services,06/04/2018,8000112681,"2,058.75",Revenue,COMFORCARE SENIOR SERVICES,Home Care
Peterborough City Council,Adults,Independent Sector Placements,Services,06/04/2018,8000112682,"1,297.50",Revenue,COMFORCARE SENIOR SERVICES,Home Care
Peterborough City Council,Adults,Independent Sector Placements,Services,06/04/2018,8000112685,"1,509.00",Revenue,COMFORCARE SENIOR SERVICES,Home Care
Peterborough City Council,Adults,Independent Sector Placements,Services,06/04/2018,8000112688,739.5,Revenue,COMFORCARE SENIOR SERVICES,Home Care
Peterborough City Council,Adults,Independent Sector Placements,Services,06/04/2018,8000112689,630.75,Revenue,COMFORCARE SENIOR SERVICES,Home Care
Peterborough City Council,Adults,Independent Sector Placements,Services,06/04/2018,8000112690,727.25,Revenue,COMFORCARE SENIOR SERVICES,Home Care
Peterborough City Council,Adults,Independent Sector Placements,Services,06/04/2018,8000112691,"1,878.75",Revenue,COMFORCARE SENIOR SERVICES,Home Care
Peterborough City Council,Adults,Independent Sector Placements,Services,06/04/2018,8000112696,"1,852.00",Revenue,COMFORCARE SENIOR SERVICES,Home Care
Peterborough City Council,Adults,Independent Sector Placements,Services,06/04/2018,8000112697,634.25,Revenue,COMFORCARE SENIOR SERVICES,Home Care
Peterborough City Council,Adults,Independent Sector Placements,Services,06/04/2018,8000112698,941.5,Revenue,COMFORCARE SENIOR SERVICES,Home Care
Peterborough City Council,Adults,Independent Sector Placements,Services,06/04/2018,8000112699,670.25,Revenue,COMFORCARE SENIOR SERVICES,Home Care
Peterborough City Council,Adults,Independent Sector Placements,Services,06/04/2018,8000112700,"2,313.00",Revenue,COMFORCARE SENIOR SERVICES,Home Care
Peterborough City Council,Adults,Independent Sector Placements,Services,06/04/2018,8000112770,"1,244.40",Revenue,Redacted Personal Information,Adult Social Care Direct Payment
Peterborough City Council,Adults,Independent Sector Placements,Services,06/04/2018,8000112773,791.52,Revenue,Redacted Personal Information,Adult Social Care Direct Payment
Peterborough City Council,Adults,Independent Sector Placements,Services,06/04/2018,8000112775,"3,411.04",Revenue,Redacted Personal Information,Adult Social Care Direct Payment
Peterborough City Council,Adults,Independent Sector Placements,Services,06/04/2018,8000112782,"3,102.38",Revenue,Redacted Personal Information,Adult Social Care Direct Payment
Peterborough City Council,Adults,Independent Sector Placements,Services,06/04/2018,8000112784,"1,470.00",Revenue,Redacted Personal Information,Adult Social Care Direct Payment
Peterborough City Council,Children's & Safeguarding,Commissioning - CSC,Services,06/04/2018,8000112801,669.04,Revenue,Redacted Personal Information,Financial Assistance
Peterborough City Council,Children's & Safeguarding,Commissioning - CSC,Services,06/04/2018,8000112801,739.24,Revenue,Redacted Personal Information,Financial Assistance
Peterborough City Council,Children's & Safeguarding,Commissioning - CSC,Third Party Payments,06/04/2018,8000114650,"531,035.67",Revenue,IAS TACT,Third Party Payments - Contract
Peterborough City Council,Children's & Safeguarding,Early Help ASC/CSC,Services,09/04/2018,30170082,"2,838.00",Revenue,Triangle Consulting Social Enterprise Ltd,Subscriptions
Peterborough City Council,Peterborough Highway Services,Network and Traffic Management,Services,09/04/2018,30170155,"3,677.00",Revenue,Dynniq UK Ltd,Contractors
Peterborough City Council,Communities,Community Safety,Services,09/04/2018,30170158,588.46,Revenue,Cambridgeshire Constabulary,Road Safety
Peterborough City Council,Adults,Therapy/Reablement/Community Equipment,"Tools, Equipment, Furniture & Materials",09/04/2018,30170369,721.15,Revenue,Action on Hearing Loss,Occupational Therapy Equipment
Peterborough City Council,Adults,Home Services Delivery Model,Services,09/04/2018,30170384,769.25,Revenue,Handyman Steve,Contractors
Peterborough City Council,Corporate,Corporate,Non Revenue,09/04/2018,30170410,"260,186.69",Capital,Coulson & Son Ltd,Building And Site Works
Peterborough City Council,Adults,Home Services Delivery Model,Third Party Payments,09/04/2018,30170538,"1,777.80",Revenue,Mind in Cambridgeshire,Grant-Third Party
Peterborough City Council,Corporate,Corporate,Non Revenue,09/04/2018,30170550,840,Capital,NPS Peterborough Ltd,Consultants Fees
Peterborough City Council,Corporate,Corporate,Non Revenue,09/04/2018,30170903,"6,683.00",Capital,Casbon Building Services,Grant Payment
Peterborough City Council,Adults,Independent Sector Placements,Services,09/04/2018,30171076,"7,331.48",Revenue,Longueville Court (Barchester),Residential Care
Peterborough City Council,Corporate,Corporate,Non Revenue,09/04/2018,30171099,"5,086.00",Capital,A W Morley T/A Morley Building Services,Grant Payment
Peterborough City Council,Adults,Independent Sector Placements,Services,09/04/2018,30171371,"6,332.04",Revenue,NORTH EAST AUTISM SOCIETY,Residential Care
Peterborough City Council,Communities,Housing,Services,09/04/2018,30171440,"1,120.00",Revenue,DA Rosalia Hotel,Homelessness Bed & Breakfast Costs
Peterborough City Council,Communities,Housing,Services,09/04/2018,30171441,595.56,Revenue,DA Rosalia Hotel,Homelessness Bed & Breakfast Costs
Peterborough City Council,Communities,Housing,Services,09/04/2018,30171442,714.56,Revenue,DA Rosalia Hotel,Homelessness Bed & Breakfast Costs
Peterborough City Council,Communities,Housing,Services,09/04/2018,30171443,595.56,Revenue,DA Rosalia Hotel,Homelessness Bed & Breakfast Costs
Peterborough City Council,Communities,Housing,Services,09/04/2018,30171444,933.38,Revenue,DA Rosalia Hotel,Homelessness Bed & Breakfast Costs
Peterborough City Council,Communities,Housing,Services,09/04/2018,30171445,"1,061.62",Revenue,DA Rosalia Hotel,Homelessness Bed & Breakfast Costs
Peterborough City Council,Communities,Housing,Services,09/04/2018,30171446,595.56,Revenue,DA Rosalia Hotel,Homelessness Bed & Breakfast Costs
Peterborough City Council,Communities,Housing,Services,09/04/2018,30171447,"1,061.62",Revenue,DA Rosalia Hotel,Homelessness Bed & Breakfast Costs
Peterborough City Council,Communities,Housing,Services,09/04/2018,30171448,714.56,Revenue,DA Rosalia Hotel,Homelessness Bed & Breakfast Costs
Peterborough City Council,Communities,Housing,Services,09/04/2018,30171449,595.56,Revenue,DA Rosalia Hotel,Homelessness Bed & Breakfast Costs
Peterborough City Council,Communities,Housing,Services,09/04/2018,30171450,595.56,Revenue,DA Rosalia Hotel,Homelessness Bed & Breakfast Costs
Peterborough City Council,Communities,Housing,Services,09/04/2018,30171451,714.56,Revenue,DA Rosalia Hotel,Homelessness Bed & Breakfast Costs
Peterborough City Council,Communities,Housing,Services,09/04/2018,30171452,"1,834.56",Revenue,DA Rosalia Hotel,Homelessness Bed & Breakfast Costs
Peterborough City Council,Communities,Housing,Services,09/04/2018,30171453,595.56,Revenue,DA Rosalia Hotel,Homelessness Bed & Breakfast Costs
Peterborough City Council,Communities,Housing,Services,09/04/2018,30171454,816.62,Revenue,DA Rosalia Hotel,Homelessness Bed & Breakfast Costs
Peterborough City Council,Communities,Housing,Services,09/04/2018,30171455,595.56,Revenue,DA Rosalia Hotel,Homelessness Bed & Breakfast Costs
Peterborough City Council,Communities,Housing,Services,09/04/2018,30171456,758.29,Revenue,DA Rosalia Hotel,Homelessness Bed & Breakfast Costs
Peterborough City Council,Communities,Housing,Services,09/04/2018,30171457,595.56,Revenue,DA Rosalia Hotel,Homelessness Bed & Breakfast Costs
Peterborough City Council,Communities,Housing,Services,09/04/2018,30171458,714.56,Revenue,DA Rosalia Hotel,Homelessness Bed & Breakfast Costs
Peterborough City Council,Communities,Housing,Services,09/04/2018,30171459,595.56,Revenue,DA Rosalia Hotel,Homelessness Bed & Breakfast Costs
Peterborough City Council,Communities,Housing,Services,09/04/2018,30171461,"1,310.12",Revenue,DA Rosalia Hotel,Homelessness Bed & Breakfast Costs
Peterborough City Council,Communities,Housing,Services,09/04/2018,30171462,933.38,Revenue,DA Rosalia Hotel,Homelessness Bed & Breakfast Costs
Peterborough City Council,Communities,Housing,Services,09/04/2018,30171463,714.56,Revenue,DA Rosalia Hotel,Homelessness Bed & Breakfast Costs
Peterborough City Council,Communities,Housing,Services,09/04/2018,30171464,816.62,Revenue,DA Rosalia Hotel,Homelessness Bed & Breakfast Costs
Peterborough City Council,Communities,Housing,Services,09/04/2018,30171465,"1,310.12",Revenue,DA Rosalia Hotel,Homelessness Bed & Breakfast Costs
Peterborough City Council,Communities,Housing,Services,09/04/2018,30171466,595.56,Revenue,DA Rosalia Hotel,Homelessness Bed & Breakfast Costs
Peterborough City Council,Communities,Housing,Services,09/04/2018,30171467,714.56,Revenue,DA Rosalia Hotel,Homelessness Bed & Breakfast Costs
Peterborough City Council,Communities,Housing,Services,09/04/2018,30171468,595.56,Revenue,DA Rosalia Hotel,Homelessness Bed & Breakfast Costs
Peterborough City Council,Communities,Housing,Services,09/04/2018,30171469,816.62,Revenue,DA Rosalia Hotel,Homelessness Bed & Breakfast Costs
Peterborough City Council,Communities,Housing,Services,09/04/2018,30171470,510.48,Revenue,DA Rosalia Hotel,Homelessness Bed & Breakfast Costs
Peterborough City Council,Communities,Housing,Services,09/04/2018,30171471,816.62,Revenue,DA Rosalia Hotel,Homelessness Bed & Breakfast Costs
Peterborough City Council,Communities,Housing,Services,09/04/2018,30171477,816.62,Revenue,DA Rosalia Hotel,Homelessness Bed & Breakfast Costs
Peterborough City Council,Communities,Housing,Services,09/04/2018,30171527,816.62,Revenue,DA Rosalia Hotel,Homelessness Bed & Breakfast Costs
Peterborough City Council,Communities,Housing,Services,09/04/2018,30171537,595.56,Revenue,DA Rosalia Hotel,Homelessness Bed & Breakfast Costs
Peterborough City Council,Communities,Housing,Services,09/04/2018,30171539,595.56,Revenue,DA Rosalia Hotel,Homelessness Bed & Breakfast Costs
Peterborough City Council,Communities,Housing,Services,09/04/2018,30171541,"1,180.62",Revenue,DA Rosalia Hotel,Homelessness Bed & Breakfast Costs
Peterborough City Council,Communities,Housing,Services,09/04/2018,30171542,"1,310.12",Revenue,DA Rosalia Hotel,Homelessness Bed & Breakfast Costs
Peterborough City Council,Communities,Housing,Services,09/04/2018,30171546,714.56,Revenue,DA Rosalia Hotel,Homelessness Bed & Breakfast Costs
Peterborough City Council,Communities,Cohesion,Services,09/04/2018,30171567,-875,Revenue,PARCA,Childcare
Peterborough City Council,Communities,Housing,Repair & Maintenance of Buildings,09/04/2018,30171774,"4,069.00",Revenue,Casbon Building Services,Premises Repairs
Peterborough City Council,Peterborough Serco Strategic Partnership,PSSP Retained Services,Services,09/04/2018,30172016,"15,000.00",Revenue,Pitney Bowes Limited,Postage
Peterborough City Council,Commissioning and Commercial Operations,Clare Lodge,Agency Staff,09/04/2018,30172223,"1,368.00",Revenue,Wrixon Care Services,External Temporary Staff
Peterborough City Council,Westcombe Engineering,Westcombe Engineering,"Tools, Equipment, Furniture & Materials",09/04/2018,30172472,946.96,Revenue,Barron Clark Castings Ltd,Items For Resale
Peterborough City Council,Westcombe Engineering,Westcombe Engineering,"Tools, Equipment, Furniture & Materials",09/04/2018,30172482,507.3,Revenue,Barron Clark Castings Ltd,Items For Resale
Peterborough City Council,Westcombe Engineering,Westcombe Engineering,"Tools, Equipment, Furniture & Materials",09/04/2018,30172491,540.28,Revenue,Barron Clark Castings Ltd,Items For Resale
Peterborough City Council,Westcombe Engineering,Westcombe Engineering,"Tools, Equipment, Furniture & Materials",09/04/2018,30172494,777.86,Revenue,Barron Clark Castings Ltd,Items For Resale
Peterborough City Council,Westcombe Engineering,Westcombe Engineering,"Tools, Equipment, Furniture & Materials",09/04/2018,30172497,914.8,Revenue,Barron Clark Castings Ltd,Items For Resale
Peterborough City Council,Commissioning and Commercial Operations,Clare Lodge,Agency Staff,09/04/2018,30172877,"1,750.00",Revenue,Southview Building Solutions Ltd,External Temporary Staff
Peterborough City Council,Corporate Property,Office Accomodation,Repair & Maintenance of Buildings,09/04/2018,30172959,"-12,837.32",Revenue,Alps Group Ltd,Service Charges - Premises
Peterborough City Council,Corporate Property,Office Accomodation,Repair & Maintenance of Buildings,09/04/2018,30172964,"8,772.25",Revenue,Alps Group Ltd,Service Charges - Premises
Peterborough City Council,Corporate Property,Office Accomodation,Rents,09/04/2018,30172973,"62,144.02",Revenue,Alps Group Ltd,Rent
Peterborough City Council,Corporate Property,Office Accomodation,Premises Insurances,09/04/2018,30172979,881.53,Revenue,Alps Group Ltd,Insurance - Premises
Peterborough City Council,Corporate,Corporate,Non Revenue,09/04/2018,30173031,"9,956.31",Capital,Garfield Builders Ltd,Building And Site Works
Peterborough City Council,Communities,Housing,Services,09/04/2018,30173067,850,Revenue,Redacted Personal Information,Financial Assistance
Peterborough City Council,Communities,Housing,Services,09/04/2018,30173083,870,Revenue,Redacted Personal Information,Financial Assistance
Peterborough City Council,Commissioning and Commercial Operations,Early Years & Quality Improvement,Services,09/04/2018,30173088,"7,093.81",Revenue,"Family Action ,  Birchtree Pre- School",Grant Payment
Peterborough City Council,Commissioning and Commercial Operations,Commissioning Team,Third Party Payments,09/04/2018,30173239,"2,200.00",Revenue,LAVENDER HOUSE RESIDENTIAL HOME,Third Party Payments - Contract
Peterborough City Council,Commissioning and Commercial Operations,Commissioning Team,Third Party Payments,09/04/2018,30173240,"2,200.00",Revenue,LAVENDER HOUSE RESIDENTIAL HOME,Third Party Payments - Contract
Peterborough City Council,Commissioning and Commercial Operations,Commissioning Team,Third Party Payments,09/04/2018,30173241,"2,200.00",Revenue,LAVENDER HOUSE RESIDENTIAL HOME,Third Party Payments - Contract
Peterborough City Council,Adults,Day opportunities - Older People,Catering,09/04/2018,30173250,"1,091.50",Revenue,The Cresset (Peterborough) Ltd,Catering Provisions
Peterborough City Council,Legal Services,Legal Services,Services,09/04/2018,30173290,"3,273.50",Revenue,Pinsent Masons,Legal Costs
Peterborough City Council,Communities,Housing,Services,09/04/2018,30173303,875,Revenue,Quentin Marks Estate Agents,Financial Assistance
Peterborough City Council,HR,HR WFD & Training,Services,09/04/2018,30173307,"11,960.00",Revenue,MA Education Ltd,Subscriptions
Peterborough City Council,Communities,Cohesion,Third Party Payments,09/04/2018,30173314,"71,018.40",Revenue,PARCA,Grant-Third Party
Peterborough City Council,Financial Services,Insurance,Services,09/04/2018,30173335,"1,052.00",Revenue,Weightmans LLP,Legal Costs
Peterborough City Council,Financial Services,Insurance,Services,09/04/2018,30173341,"3,501.34",Revenue,Weightmans LLP,Legal Costs
Peterborough City Council,HR,HR WFD & Training,Services,09/04/2018,30173344,"14,560.00",Revenue,MA Education Ltd,Subscriptions
Peterborough City Council,Adults,Finance,Agency Staff,09/04/2018,30173380,"9,544.14",Revenue,Badenoch & Clark Ltd,External Temporary Staff
Peterborough City Council,Financial Services,Insurance,Services,09/04/2018,30173384,501,Revenue,Clyde & Co LLP,Legal Costs
Peterborough City Council,Adults,Block Contracts,Third Party Payments,09/04/2018,30173388,"7,583.33",Revenue,Home Group Ltd,Third Party Payments - Contract
Peterborough City Council,Westcombe Engineering,Westcombe Engineering,"Tools, Equipment, Furniture & Materials",09/04/2018,30173424,930.24,Revenue,Parkside Steel (Stockholders) Ltd,Items For Resale
Peterborough City Council,Corporate,Corporate,Non Revenue,09/04/2018,30173448,"2,583.60",Capital,Reed Specialist Recruitment Limited,Consultants Fees
Peterborough City Council,Corporate,Corporate,Non Revenue,09/04/2018,30174144,"1,763.53",Capital,T Clarke Contracting Ltd,Building And Site Works
Peterborough City Council,Children's & Safeguarding,Commissioning - CSC,Services,09/04/2018,8000112844,725.72,Revenue,Redacted Personal Information,Financial Assistance
Peterborough City Council,Children's & Safeguarding,Commissioning - CSC,Services,09/04/2018,8000112844,673.84,Revenue,Redacted Personal Information,Financial Assistance
Peterborough City Council,Children's & Safeguarding,Commissioning - CSC,Services,09/04/2018,8000112844,766.34,Revenue,Redacted Personal Information,Financial Assistance
Peterborough City Council,Children's & Safeguarding,Commissioning - CSC,Services,09/04/2018,8000112844,576.38,Revenue,Redacted Personal Information,Financial Assistance
Peterborough City Council,Children's & Safeguarding,Commissioning - CSC,Services,09/04/2018,8000112844,577.96,Revenue,Redacted Personal Information,Financial Assistance
Peterborough City Council,Children's & Safeguarding,Commissioning - CSC,Services,09/04/2018,8000112844,866.92,Revenue,Redacted Personal Information,Financial Assistance
Peterborough City Council,Children's & Safeguarding,Commissioning - CSC,Services,09/04/2018,8000112844,"1,830.72",Revenue,Redacted Personal Information,Financial Assistance
Peterborough City Council,Children's & Safeguarding,Commissioning - CSC,Services,09/04/2018,8000112844,"2,022.82",Revenue,Redacted Personal Information,Financial Assistance
Peterborough City Council,Children's & Safeguarding,Commissioning - CSC,Services,09/04/2018,8000112844,627.18,Revenue,Redacted Personal Information,Financial Assistance
Peterborough City Council,Children's & Safeguarding,Commissioning - CSC,Services,09/04/2018,8000112844,748.76,Revenue,Redacted Personal Information,Financial Assistance
Peterborough City Council,Children's & Safeguarding,Commissioning - CSC,Services,09/04/2018,8000112844,748.76,Revenue,Redacted Personal Information,Financial Assistance
Peterborough City Council,Adults,Independent Sector Placements,Services,09/04/2018,8000112852,826.35,Revenue,MEARS GROUP,Home Care
Peterborough City Council,Adults,Independent Sector Placements,Services,09/04/2018,8000113055,663.75,Revenue,COMFORCARE SENIOR SERVICES,Home Care
Peterborough City Council,Adults,Independent Sector Placements,Services,09/04/2018,8000113056,903.75,Revenue,COMFORCARE SENIOR SERVICES,Home Care
Peterborough City Council,Adults,Independent Sector Placements,Services,09/04/2018,8000113057,567.75,Revenue,COMFORCARE SENIOR SERVICES,Home Care
Peterborough City Council,Adults,Independent Sector Placements,Services,09/04/2018,8000113059,"1,671.00",Revenue,COMFORCARE SENIOR SERVICES,Home Care
Peterborough City Council,Children's & Safeguarding,Commissioning - CSC,Services,11/04/2018,30170222,750.4,Revenue,Sahara Community Care Services,Purchased Social Care Services
Peterborough City Council,Legal Services,Legal Services,Services,11/04/2018,30170393,"1,500.00",Revenue,Carl Fender,Legal Costs
Peterborough City Council,Adults,Day opportunities - Older People,Agency Staff,11/04/2018,30170397,"1,221.00",Revenue,Medicare First Ltd,External Temporary Staff
Peterborough City Council,Adults,Mental Capacity Act & DoLs,Services,11/04/2018,30170406,"2,270.00",Revenue,Dr Nauman Khalil Ltd,Hired Services
Peterborough City Council,Marketing & Communications,Marketing & Communications,Services,11/04/2018,30170451,640,Revenue,RAW Creative Design Ltd,Printing
Peterborough City Council,Parking Services,Parking Services,Services,11/04/2018,30170466,"19,008.36",Revenue,Parkeon Limited,Contractors
Peterborough City Council,Commissioning and Commercial Operations,Commissioning,Services,11/04/2018,30170544,"2,500.00",Revenue,121 Social Care Limited,Hired Services
Peterborough City Council,Commissioning and Commercial Operations,Commissioning,Third Party Payments,11/04/2018,30170546,"190,290.75",Revenue,Barnardo Services Limited,Third Party Payments - Contract
Peterborough City Council,Westcombe Engineering,Westcombe Engineering,"Tools, Equipment, Furniture & Materials",11/04/2018,30170556,"5,950.00",Revenue,Percy Martin Ltd,Furniture And Equipment Purchase
Peterborough City Council,Communities,Community Safety,Services,11/04/2018,30170560,975,Revenue,Road Safety GB,Road Safety
Peterborough City Council,ICT,ICT,Services,11/04/2018,30170569,"5,000.00",Revenue,Idox Software Ltd,Computer Software
Peterborough City Council,Peterborough Highway Services,Highway & Drainage Control,Agency Staff,11/04/2018,30170572,"1,623.60",Revenue,Matchtech,External Temporary Staff
Peterborough City Council,Constitutional Services,Democratic Services,Services,11/04/2018,30170581,798,Revenue,Principal Protection Ltd,Civic Events
Peterborough City Council,Corporate Property,Strategic Projects,Services,11/04/2018,30170582,"13,250.00",Revenue,NPS Peterborough Ltd,Consultants Fees
Peterborough City Council,Marketing & Communications,Marketing & Communications,Services,11/04/2018,30170584,"1,695.00",Revenue,NLA Media Access,Licences
Peterborough City Council,Education,PFI,Services,11/04/2018,30170608,"14,662.50",Revenue,IIC by Education (P'boro) Ltd,Service Charge
Peterborough City Council,Corporate,Corporate,Non Revenue,11/04/2018,30170613,"1,725.00",Capital,NPS Peterborough Ltd,Consultants Fees
Peterborough City Council,Corporate,Corporate,Non Revenue,11/04/2018,30170616,750.38,Capital,NPS Peterborough Ltd,Consultants Fees
Peterborough City Council,Commissioning and Commercial Operations,Commissioning,Services,11/04/2018,30170619,"2,000.00",Revenue,Cambs & P'boro NHS Foundation Trust,Hired Services
Peterborough City Council,Westcombe Engineering,Westcombe Engineering,"Tools, Equipment, Furniture & Materials",11/04/2018,30170620,"1,613.25",Revenue,Thomas Dudley Ltd,Items For Resale
Peterborough City Council,Children's & Safeguarding,CSC Quality Assurance,Third Party Payments,11/04/2018,30170623,"33,965.00",Revenue,Cambs & P'boro NHS Foundation Trust,Contributions
Peterborough City Council,Children's & Safeguarding,External Education Placements,Services,11/04/2018,30170632,"17,257.32",Revenue,Direct Care Limited,Boarding Out Allowances
Peterborough City Council,Corporate Property,Office Accomodation,Services,11/04/2018,30170633,"5,958.00",Revenue,NPS Peterborough Ltd,Consultants Fees
Peterborough City Council,ICT,ICT,Services,11/04/2018,30170636,"10,388.18",Revenue,Serco Ltd,Computer Software
Peterborough City Council,Corporate,Corporate,Non Revenue,11/04/2018,30170639,"3,138.94",Capital,Serco Ltd,Computer Hardware
Peterborough City Council,ICT,ICT,Services,11/04/2018,30170643,"1,092.50",Revenue,Serco Ltd,Computer Software
Peterborough City Council,Various,Various,Services,11/04/2018,30170645,"19,050.05",Revenue,Serco Ltd,Mobile Telephones
Peterborough City Council,ICT,ICT,Services,11/04/2018,30170647,"29,563.33",Revenue,Serco Ltd,Computer Software
Peterborough City Council,ICT,ICT,Services,11/04/2018,30170648,"3,375.58",Revenue,Serco Ltd,Computer Software
Peterborough City Council,ICT,ICT,Services,11/04/2018,30170649,"68,811.95",Revenue,Serco Ltd,Computer Software
Peterborough City Council,ICT,ICT,Services,11/04/2018,30170650,"4,599.26",Revenue,Serco Ltd,Computer Software
Peterborough City Council,ICT,ICT,Services,11/04/2018,30170651,"5,749.82",Revenue,Serco Ltd,Computer Software
Peterborough City Council,ICT,ICT,Services,11/04/2018,30170653,"15,222.78",Revenue,Serco Ltd,Computer Software
Peterborough City Council,ICT,ICT,Services,11/04/2018,30170654,"1,016.00",Revenue,Serco Ltd,Computer Software
Peterborough City Council,ICT,ICT,Services,11/04/2018,30170655,"1,016.00",Revenue,Serco Ltd,Computer Software
Peterborough City Council,Communities,Targeted Youth Service,Services,11/04/2018,30170659,660,Revenue,British Youth Council,Programmes
Peterborough City Council,Development and Construction,Planning Compliance,Agency Staff,11/04/2018,30170662,"3,100.50",Revenue,Park Avenue Recruitment Limited,External Temporary Staff
Peterborough City Council,Adults,Mental Capacity Act & DoLs,Services,11/04/2018,30170663,"1,138.00",Revenue,Raj Medical Consultancy Limited,Hired Services
Peterborough City Council,Education,PFI,Services,11/04/2018,30170756,"1,815.16",Revenue,IIC by Education (P'boro) Ltd,Service Charge
Peterborough City Council,Education,PFI,Services,11/04/2018,30170782,"3,239.73",Revenue,IIC by Education (P'boro) Ltd,Service Charge
Peterborough City Council,Peterborough Highway Services,Highway & Drainage Control,Services,11/04/2018,30170943,614.5,Revenue,AECOM I & E Ltd,Consultants Fees 
Peterborough City Council,Peterborough Highway Services,Highway Services - HoS,Agency Staff,11/04/2018,30170947,"5,112.80",Revenue,AECOM I & E Ltd,External Temporary Staff
Peterborough City Council,Corporate,Corporate,Non Revenue,11/04/2018,30170971,"25,000.00",Capital,WYG,Building And Site Works
Peterborough City Council,Commissioning and Commercial Operations,Commissioning,Services,11/04/2018,30170976,"16,500.00",Revenue,NewArk Play Association Ltd,Hired Services
Peterborough City Council,"Cemeteries, Cremation & Registrars",Bereavement Service,Repair & Maintenance of Buildings,11/04/2018,30170977,"1,689.96",Revenue,Facultatieve Technologies Ltd,Cremators
Peterborough City Council,Children's & Safeguarding,Commissioning - CSC,Services,11/04/2018,30170978,"52,000.00",Revenue,Cambridgeshire County Council,Hired Services
Peterborough City Council,HR,HR WFD & Training,Interview & Training Expenses,11/04/2018,30170981,"16,750.00",Revenue,Northamptonshire  County Council,Training
Peterborough City Council,Adults,Independent Sector Placements,Services,11/04/2018,30170999,"2,305.92",Revenue,Athena (Ashlynn Grange),Residential Care
Peterborough City Council,Adults,Independent Sector Placements,Services,11/04/2018,30171002,"1,624.12",Revenue,Athena (Ashlynn Grange),Residential Care
Peterborough City Council,Adults,Independent Sector Placements,Services,11/04/2018,30171004,"2,305.92",Revenue,Athena (Ashlynn Grange),Residential Care
Peterborough City Council,Adults,Independent Sector Placements,Services,11/04/2018,30171005,"1,796.12",Revenue,Athena (Ashlynn Grange),Residential Care
Peterborough City Council,Adults,Independent Sector Placements,Services,11/04/2018,30171007,"1,164.76",Revenue,Athena (Ashlynn Grange),Residential Care
Peterborough City Council,Adults,Independent Sector Placements,Services,11/04/2018,30171022,"6,591.12",Revenue,SOCIAL CARE SOLUTIONS LTD,Home Care
Peterborough City Council,Adults,Independent Sector Placements,Services,11/04/2018,30171024,"6,591.12",Revenue,SOCIAL CARE SOLUTIONS LTD,Home Care
Peterborough City Council,Adults,Independent Sector Placements,Services,11/04/2018,30171025,"6,591.12",Revenue,SOCIAL CARE SOLUTIONS LTD,Home Care
Peterborough City Council,Adults,Independent Sector Placements,Services,11/04/2018,30171026,"6,591.12",Revenue,SOCIAL CARE SOLUTIONS LTD,Home Care
Peterborough City Council,Adults,Independent Sector Placements,Services,11/04/2018,30171027,"6,591.12",Revenue,SOCIAL CARE SOLUTIONS LTD,Home Care
Peterborough City Council,Adults,Independent Sector Placements,Services,11/04/2018,30171028,"6,591.12",Revenue,SOCIAL CARE SOLUTIONS LTD,Home Care
Peterborough City Council,Adults,Independent Sector Placements,Services,11/04/2018,30171029,"2,639.72",Revenue,SOCIAL CARE SOLUTIONS LTD,Home Care
Peterborough City Council,Adults,Independent Sector Placements,Services,11/04/2018,30171030,"2,639.72",Revenue,SOCIAL CARE SOLUTIONS LTD,Home Care
Peterborough City Council,Adults,Independent Sector Placements,Services,11/04/2018,30171031,"2,639.72",Revenue,SOCIAL CARE SOLUTIONS LTD,Home Care
Peterborough City Council,Adults,Independent Sector Placements,Services,11/04/2018,30171033,"3,740.28",Revenue,SOCIAL CARE SOLUTIONS LTD,Home Care
Peterborough City Council,Adults,Independent Sector Placements,Services,11/04/2018,30171034,"3,740.28",Revenue,SOCIAL CARE SOLUTIONS LTD,Home Care
Peterborough City Council,Adults,Independent Sector Placements,Services,11/04/2018,30171035,"7,700.40",Revenue,SOCIAL CARE SOLUTIONS LTD,Home Care
Peterborough City Council,Adults,Independent Sector Placements,Services,11/04/2018,30171036,"3,740.28",Revenue,SOCIAL CARE SOLUTIONS LTD,Home Care
Peterborough City Council,Adults,Independent Sector Placements,Services,11/04/2018,30171037,565.67,Revenue,SOCIAL CARE SOLUTIONS LTD,Home Care
Peterborough City Council,Adults,Independent Sector Placements,Services,11/04/2018,30171038,"3,740.28",Revenue,SOCIAL CARE SOLUTIONS LTD,Home Care
Peterborough City Council,Adults,Independent Sector Placements,Services,11/04/2018,30171039,"3,740.28",Revenue,SOCIAL CARE SOLUTIONS LTD,Home Care
Peterborough City Council,Adults,Independent Sector Placements,Services,11/04/2018,30171040,"3,740.28",Revenue,SOCIAL CARE SOLUTIONS LTD,Home Care
Peterborough City Council,Adults,Independent Sector Placements,Services,11/04/2018,30171041,"2,639.72",Revenue,SOCIAL CARE SOLUTIONS LTD,Home Care
Peterborough City Council,Adults,Independent Sector Placements,Services,11/04/2018,30171044,"2,639.72",Revenue,SOCIAL CARE SOLUTIONS LTD,Home Care
Peterborough City Council,Adults,Independent Sector Placements,Services,11/04/2018,30171045,"2,639.72",Revenue,SOCIAL CARE SOLUTIONS LTD,Home Care
Peterborough City Council,Corporate,Corporate,Non Revenue,11/04/2018,30171094,"3,779.00",Capital,Casbon Building Services,Grant Payment
Peterborough City Council,Corporate,Corporate,Non Revenue,11/04/2018,30171100,"2,950.00",Capital,Casbon Building Services,Grant Payment
Peterborough City Council,Corporate,Corporate,Non Revenue,11/04/2018,30171101,"4,011.00",Capital,Casbon Building Services,Grant Payment
Peterborough City Council,Corporate,Corporate,Non Revenue,11/04/2018,30171108,"7,548.00",Capital,M J Greaves,Grant Payment
Peterborough City Council,Corporate,Corporate,Non Revenue,11/04/2018,30171110,"4,633.65",Capital,Rawheat Heating & Plumbing Eng.,Grant Payment
Peterborough City Council,Corporate,Corporate,Non Revenue,11/04/2018,30171112,"3,778.00",Capital,Casbon Building Services,Grant Payment
Peterborough City Council,Adults,Independent Sector Placements,Services,11/04/2018,30171132,"1,472.40",Revenue,Athena (Ashlynn Grange),Residential Care
Peterborough City Council,Adults,Independent Sector Placements,Services,11/04/2018,30171133,"1,821.88",Revenue,Athena (Ashlynn Grange),Residential Care
Peterborough City Council,Adults,Independent Sector Placements,Services,11/04/2018,30171134,"1,703.28",Revenue,Athena (Ashlynn Grange),Residential Care
Peterborough City Council,Children's & Safeguarding,Commissioning - CSC,Third Party Payments,11/04/2018,30171141,"9,179.87",Revenue,Cambridgeshire County Council,Third Party Payments - Contract
Peterborough City Council,Adults,Independent Sector Placements,Services,11/04/2018,30171145,944.16,Revenue,Athena (Ashlynn Grange),Residential Care
Peterborough City Council,Adults,Independent Sector Placements,Services,11/04/2018,30171148,"1,594.12",Revenue,Athena (Ashlynn Grange),Residential Care
Peterborough City Council,Adults,Independent Sector Placements,Services,11/04/2018,30171152,"2,058.86",Revenue,Athena (Ashlynn Grange),Residential Care
Peterborough City Council,Adults,Independent Sector Placements,Services,11/04/2018,30171154,974.4,Revenue,Athena (Ashlynn Grange),Residential Care
Peterborough City Council,Adults,Independent Sector Placements,Services,11/04/2018,30171158,"1,054.40",Revenue,Athena (Ashlynn Grange),Residential Care
Peterborough City Council,Adults,Independent Sector Placements,Services,11/04/2018,30171161,"1,032.56",Revenue,Athena (Ashlynn Grange),Residential Care
Peterborough City Council,Adults,Independent Sector Placements,Services,11/04/2018,30171168,"1,579.84",Revenue,Athena (Ashlynn Grange),Residential Care
Peterborough City Council,Adults,Independent Sector Placements,Services,11/04/2018,30171170,"1,821.88",Revenue,Athena (Ashlynn Grange),Residential Care
Peterborough City Council,Adults,Independent Sector Placements,Services,11/04/2018,30171173,"1,002.40",Revenue,Athena (Ashlynn Grange),Residential Care
Peterborough City Council,Adults,Independent Sector Placements,Services,11/04/2018,30171174,"2,305.92",Revenue,Athena (Ashlynn Grange),Residential Care
Peterborough City Council,Adults,Independent Sector Placements,Services,11/04/2018,30171178,"1,209.28",Revenue,Athena (Ashlynn Grange),Residential Care
Peterborough City Council,Adults,Independent Sector Placements,Services,11/04/2018,30171186,"1,549.86",Revenue,Athena (Ashlynn Grange),Residential Care
Peterborough City Council,Adults,Independent Sector Placements,Services,11/04/2018,30171188,859.64,Revenue,Athena (Ashlynn Grange),Residential Care
Peterborough City Council,Adults,Independent Sector Placements,Services,11/04/2018,30171210,518.8,Revenue,Cross Keys Homes,Home Care
Peterborough City Council,Adults,Independent Sector Placements,Services,11/04/2018,30171211,"6,426.00",Revenue,SOCIAL CARE SOLUTIONS LTD,Home Care
Peterborough City Council,Commissioning and Commercial Operations,Early Years & Quality Improvement,Rents,11/04/2018,30171250,520,Revenue,Italian Community Association,Hire of Premises
Peterborough City Council,Corporate Property,Commercial Propety,Repair & Maintenance of Buildings,11/04/2018,30171256,"3,700.74",Revenue,Opportunity Peterborough,Other Occupancy Costs
Peterborough City Council,Adults,Independent Sector Placements,Services,11/04/2018,30171266,"2,115.48",Revenue,Voyage,Home Care
Peterborough City Council,Adults,Independent Sector Placements,Services,11/04/2018,30171267,"1,755.77",Revenue,Voyage,Home Care
Peterborough City Council,Adults,Independent Sector Placements,Services,11/04/2018,30171269,"1,705.56",Revenue,Voyage,Home Care
Peterborough City Council,Commissioning and Commercial Operations,Commissioning Team,Services,11/04/2018,30171359,"15,000.00",Revenue,Cambridgeshire County Council,Hired Services
Peterborough City Council,Adults,Independent Sector Placements,Services,11/04/2018,30171360,"1,427.72",Revenue,Athena (Ashlynn Grange),Residential Care
Peterborough City Council,Adults,Independent Sector Placements,Services,11/04/2018,30171362,"1,980.00",Revenue,Athena (Ashlynn Grange),Residential Care
Peterborough City Council,Adults,Independent Sector Placements,Services,11/04/2018,30171369,"1,736.76",Revenue,Athena (Ashlynn Grange),Residential Care
Peterborough City Council,Adults,Independent Sector Placements,Services,11/04/2018,30171372,"1,685.72",Revenue,Athena (Ashlynn Grange),Residential Care
Peterborough City Council,Adults,Independent Sector Placements,Services,11/04/2018,30171382,"1,302.72",Revenue,Athena (Ashlynn Grange),Residential Care
Peterborough City Council,Adults,Independent Sector Placements,Services,11/04/2018,30171385,"1,756.12",Revenue,Athena (Ashlynn Grange),Residential Care
Peterborough City Council,Adults,Independent Sector Placements,Services,11/04/2018,30171387,"1,244.68",Revenue,Athena (Ashlynn Grange),Residential Care
Peterborough City Council,Adults,Independent Sector Placements,Services,11/04/2018,30171388,"10,833.60",Revenue,Voyage,Home Care
Peterborough City Council,Adults,Independent Sector Placements,Services,11/04/2018,30171395,"1,152.12",Revenue,Athena (Ashlynn Grange),Residential Care
Peterborough City Council,Adults,Independent Sector Placements,Services,11/04/2018,30171398,"1,804.12",Revenue,Athena (Ashlynn Grange),Residential Care
Peterborough City Council,Adults,Independent Sector Placements,Services,11/04/2018,30171400,"1,762.36",Revenue,Athena (Ashlynn Grange),Residential Care
Peterborough City Council,Adults,Independent Sector Placements,Services,11/04/2018,30171402,843.8,Revenue,Athena (Ashlynn Grange),Residential Care
Peterborough City Council,Adults,Independent Sector Placements,Services,11/04/2018,30171403,"2,305.88",Revenue,Athena (Ashlynn Grange),Residential Care
Peterborough City Council,Adults,Independent Sector Placements,Services,11/04/2018,30171404,"1,821.88",Revenue,Athena (Ashlynn Grange),Residential Care
Peterborough City Council,Adults,Independent Sector Placements,Services,11/04/2018,30171406,"1,146.32",Revenue,Athena (Ashlynn Grange),Residential Care
Peterborough City Council,Adults,Independent Sector Placements,Services,11/04/2018,30171407,519.99,Revenue,Athena (Ashlynn Grange),Residential Care
Peterborough City Council,Adults,Independent Sector Placements,Services,11/04/2018,30171408,"1,672.96",Revenue,Athena (Ashlynn Grange),Residential Care
Peterborough City Council,Adults,Independent Sector Placements,Services,11/04/2018,30171409,"1,315.92",Revenue,Athena (Ashlynn Grange),Residential Care
Peterborough City Council,Adults,Independent Sector Placements,Services,11/04/2018,30171410,"1,632.28",Revenue,Athena (Ashlynn Grange),Residential Care
Peterborough City Council,Peterborough Highway Services,Transport & Infrastructure Commissioning,Third Party Payments,11/04/2018,30171421,"1,136.50",Revenue,Royal Voluntary Service,Grant-Third Party
Peterborough City Council,Sustainable Growth Strategy,Housing & Strategic Planning,Services,11/04/2018,30171425,"6,000.00",Revenue,North Kesteven District Council,Consultants Fees
Peterborough City Council,Education,Special Educational Needs / Inclusion,Agency Staff,11/04/2018,30171481,"2,120.00",Revenue,Permanent Futures Ltd,External Temporary Staff
Peterborough City Council,Westcombe Engineering,Westcombe Engineering,"Tools, Equipment, Furniture & Materials",11/04/2018,30171688,"7,347.20",Revenue,Perkins Engines Co Ltd,Items For Resale
Peterborough City Council,Westcombe Engineering,Westcombe Engineering,"Tools, Equipment, Furniture & Materials",11/04/2018,30171745,976.62,Revenue,Howsafe Ltd,Uniform/Protective Clothing
Peterborough City Council,Westcombe Engineering,Westcombe Engineering,"Tools, Equipment, Furniture & Materials",11/04/2018,30171747,539.55,Revenue,Howsafe Ltd,Uniform/Protective Clothing
Peterborough City Council,Westcombe Engineering,Westcombe Engineering,"Tools, Equipment, Furniture & Materials",11/04/2018,30171772,929.35,Revenue,Rowes Precision Products Ltd,Items For Resale
Peterborough City Council,Legal Services,Legal Services,Agency Staff,11/04/2018,30171793,572,Revenue,Venn Group Ltd,External Temporary Staff
Peterborough City Council,Legal Services,Legal Services,Agency Staff,11/04/2018,30171795,937.8,Revenue,Venn Group Ltd,External Temporary Staff
Peterborough City Council,Legal Services,Legal Services,Agency Staff,11/04/2018,30171804,722.11,Revenue,Venn Group Ltd,External Temporary Staff
Peterborough City Council,Parking Services,Parking Services,Agency Staff,11/04/2018,30171824,"1,543.61",Revenue,Reed Specialist Recruitment Limited,External Temporary Staff
Peterborough City Council,Legal Services,Legal Services,Agency Staff,11/04/2018,30171863,854.4,Revenue,Reed Specialist Recruitment Limited,External Temporary Staff
Peterborough City Council,Financial Services,Finance,Agency Staff,11/04/2018,30171866,587.45,Revenue,Reed Specialist Recruitment Limited,External Temporary Staff
Peterborough City Council,Adults,Independent Sector Placements,Services,11/04/2018,30171886,665.28,Revenue,Carers Trust Cambridgeshire,Home Care
Peterborough City Council,Legal Services,Legal Services,Agency Staff,11/04/2018,30171892,"2,025.38",Revenue,Reed Specialist Recruitment Limited,External Temporary Staff
Peterborough City Council,Adults,Independent Sector Placements,Services,11/04/2018,30171894,544.32,Revenue,Carers Trust Cambridgeshire,Home Care
Peterborough City Council,Legal Services,Legal Services,Agency Staff,11/04/2018,30171899,"1,666.27",Revenue,Reed Specialist Recruitment Limited,External Temporary Staff
Peterborough City Council,Adults,Independent Sector Placements,Services,11/04/2018,30171911,544.32,Revenue,Carers Trust Cambridgeshire,Home Care
Peterborough City Council,Adults,Independent Sector Placements,Services,11/04/2018,30171917,544.32,Revenue,Carers Trust Cambridgeshire,Home Care
Peterborough City Council,Corporate,Corporate,Non Revenue,11/04/2018,30172013,"2,508.20",Balance Sheet,Graysons with Watson Esam Solicitors,Insurance Claims
Peterborough City Council,"Director, OP & JV",Growth HoS,Third Party Payments,11/04/2018,30172219,"3,376,844.65",Revenue,Skanska Construction UK Ltd,Third Party Payments - Contract
Peterborough City Council,Commissioning and Commercial Operations,Clare Lodge,Agency Staff,11/04/2018,30172227,"1,184.00",Revenue,Wrixon Care Services,External Temporary Staff
Peterborough City Council,Commissioning and Commercial Operations,Clare Lodge,Agency Staff,11/04/2018,30172229,"1,584.00",Revenue,Wrixon Care Services,External Temporary Staff
Peterborough City Council,Adults,Independent Sector Placements,Services,11/04/2018,30172400,"4,200.00",Revenue,FIELD HOUSE (EYE) LTD,Residential Care
Peterborough City Council,Adults,Independent Sector Placements,Services,11/04/2018,30172404,"1,457.14",Revenue,FIELD HOUSE (EYE) LTD,Residential Care
Peterborough City Council,Adults,Independent Sector Placements,Services,11/04/2018,30172406,"3,500.00",Revenue,FIELD HOUSE (EYE) LTD,Residential Care
Peterborough City Council,Adults,Independent Sector Placements,Services,11/04/2018,30172408,"1,800.00",Revenue,FIELD HOUSE (EYE) LTD,Residential Care
Peterborough City Council,Adults,Independent Sector Placements,Services,11/04/2018,30172410,"1,725.00",Revenue,FIELD HOUSE (EYE) LTD,Residential Care
Peterborough City Council,Adults,Independent Sector Placements,Services,11/04/2018,30172413,605.71,Revenue,FIELD HOUSE (EYE) LTD,Residential Care
Peterborough City Council,Westcombe Engineering,Westcombe Engineering,"Tools, Equipment, Furniture & Materials",11/04/2018,30172521,914.8,Revenue,Barron Clark Castings Ltd,Items For Resale
Peterborough City Council,Westcombe Engineering,Westcombe Engineering,"Tools, Equipment, Furniture & Materials",11/04/2018,30172525,"1,641.38",Revenue,Barron Clark Castings Ltd,Items For Resale
Peterborough City Council,Westcombe Engineering,Westcombe Engineering,"Tools, Equipment, Furniture & Materials",11/04/2018,30172529,637.56,Revenue,Barron Clark Castings Ltd,Items For Resale
Peterborough City Council,Legal Services,Legal Services,Agency Staff,11/04/2018,30172631,"2,025.38",Revenue,Reed Specialist Recruitment Limited,External Temporary Staff
Peterborough City Council,Adults,Independent Sector Placements,Services,11/04/2018,30172687,"1,809.50",Revenue,Deafblind Enablement Ltd,Home Care
Peterborough City Council,Communities,Performance & Information,Agency Staff,11/04/2018,30172736,716.4,Revenue,Reed Specialist Recruitment Limited,External Temporary Staff
Peterborough City Council,Legal Services,Legal Services,Agency Staff,11/04/2018,30172741,"2,025.38",Revenue,Reed Specialist Recruitment Limited,External Temporary Staff
Peterborough City Council,Legal Services,Legal Services,Agency Staff,11/04/2018,30172746,"1,641.95",Revenue,Reed Specialist Recruitment Limited,External Temporary Staff
Peterborough City Council,Corporate,Corporate,Non Revenue,11/04/2018,30172890,780,Capital,Smooth Removals (Peterborough) Ltd,Building And Site Works
Peterborough City Council,Corporate,Corporate,Non Revenue,11/04/2018,30172892,873,Capital,Smooth Removals (Peterborough) Ltd,Building And Site Works
Peterborough City Council,Adults,Independent Sector Placements,Services,11/04/2018,30172924,"2,082.15",Revenue,Avery House (Peterborough) t/a Brighterkind,Residential Care
Peterborough City Council,Adults,Independent Sector Placements,Services,11/04/2018,30172946,652.18,Revenue,LAVENDER HOUSE RESIDENTIAL HOME,Residential Care
Peterborough City Council,Adults,Independent Sector Placements,Services,11/04/2018,30172949,"2,195.96",Revenue,LAVENDER HOUSE RESIDENTIAL HOME,Residential Care
Peterborough City Council,Adults,Independent Sector Placements,Services,11/04/2018,30172951,"7,450.80",Revenue,Sense,Day Care
Peterborough City Council,Adults,Independent Sector Placements,Services,11/04/2018,30173018,"1,038.44",Revenue,Park Vista Care Home,Residential Care
Peterborough City Council,Adults,Learning Disability,Services,11/04/2018,30173101,931.2,Revenue,Enabling Independence Service,Grant Payment
Peterborough City Council,City Centre Management,"Markets, Tourism & Events",Services,11/04/2018,30173118,"5,908.28",Revenue,National Express Ltd,Contractors
Peterborough City Council,City Centre Management,"Markets, Tourism & Events",Services,11/04/2018,30173120,704.42,Revenue,The K A Wing Group Ltd,Electrical Maintenance
Peterborough City Council,City Centre Management,"Markets, Tourism & Events",Services,11/04/2018,30173121,685.6,Revenue,National Express Ltd,Contractors
Peterborough City Council,Adults,Independent Sector Placements,Services,11/04/2018,30173132,"2,657.14",Revenue,FIELD HOUSE (EYE) LTD,Residential Care
Peterborough City Council,Corporate,Corporate,Non Revenue,11/04/2018,30173152,705,Balance Sheet,DAC Beachcroft Claims Ltd,Insurance Claims
Peterborough City Council,Adults,Independent Sector Placements,Services,11/04/2018,30173217,"3,292.00",Revenue,Richmond Fellowship,Residential Care
Peterborough City Council,Adults,Independent Sector Placements,Services,11/04/2018,30173220,"3,292.00",Revenue,Richmond Fellowship,Residential Care
Peterborough City Council,Adults,Independent Sector Placements,Services,11/04/2018,30173221,"3,292.00",Revenue,Richmond Fellowship,Residential Care
Peterborough City Council,Adults,Independent Sector Placements,Services,11/04/2018,30173227,"3,292.00",Revenue,Richmond Fellowship,Residential Care
Peterborough City Council,Adults,Independent Sector Placements,Services,11/04/2018,30173228,"3,244.00",Revenue,Richmond Fellowship,Residential Care
Peterborough City Council,Adults,Independent Sector Placements,Services,11/04/2018,30173229,"3,292.00",Revenue,Richmond Fellowship,Residential Care
Peterborough City Council,Adults,Independent Sector Placements,Services,11/04/2018,30173230,"3,244.00",Revenue,Richmond Fellowship,Residential Care
Peterborough City Council,Adults,Independent Sector Placements,Services,11/04/2018,30173253,"3,244.00",Revenue,Richmond Fellowship,Residential Care
Peterborough City Council,Adults,Independent Sector Placements,Services,11/04/2018,30173254,"3,244.00",Revenue,Richmond Fellowship,Residential Care
Peterborough City Council,Adults,Independent Sector Placements,Services,11/04/2018,30173255,"3,244.00",Revenue,Richmond Fellowship,Residential Care
Peterborough City Council,Adults,Independent Sector Placements,Services,11/04/2018,30173292,"1,284.08",Revenue,FIELD HOUSE (EYE) LTD,Residential Care
Peterborough City Council,Adults,Independent Sector Placements,Services,11/04/2018,30173464,"1,192.80",Revenue,Augusta Care Ltd,Home Care
Peterborough City Council,Adults,Independent Sector Placements,Services,11/04/2018,30173466,978.75,Revenue,COMFORCARE SENIOR SERVICES,Home Care
Peterborough City Council,Adults,Independent Sector Placements,Services,11/04/2018,30173468,"1,768.92",Revenue,Ashmere,Residential Care
Peterborough City Council,Adults,Independent Sector Placements,Services,11/04/2018,30173472,"-2,964.75",Revenue,Athena (Ashlynn Grange),Residential Care
Peterborough City Council,Adults,Independent Sector Placements,Services,11/04/2018,30173475,"1,549.81",Revenue,Augusta Care Ltd,Home Care
Peterborough City Council,Adults,Independent Sector Placements,Services,11/04/2018,30173488,"1,801.20",Revenue,LAVENDER HOUSE RESIDENTIAL HOME,Residential Care
Peterborough City Council,Adults,Independent Sector Placements,Services,11/04/2018,30173492,"1,067.86",Revenue,GCH (North London) Ltd - Tudors,Residential Care
Peterborough City Council,Adults,Independent Sector Placements,Services,11/04/2018,30173493,"1,950.00",Revenue,GCH (North London) Ltd - Tudors,Residential Care
Peterborough City Council,Adults,Independent Sector Placements,Services,11/04/2018,30173502,"2,181.60",Revenue,Southwark Park Nursing Homes - Blenheim Care Centre,Residential Care
Peterborough City Council,Adults,Independent Sector Placements,Services,11/04/2018,30173505,"2,500.00",Revenue,PHILIA LODGE REST HOME,Residential Care
Peterborough City Council,Communities,Cohesion,Agency Staff,11/04/2018,30173529,946.8,Revenue,Reed Specialist Recruitment Limited,External Temporary Staff
Peterborough City Council,"Cemeteries, Cremation & Registrars",Bereavement Service,Services,11/04/2018,30173530,"1,597.00",Revenue,Anglia Co-operative Funerals,Contract Funerals
Peterborough City Council,"Cemeteries, Cremation & Registrars",Bereavement Service,Services,11/04/2018,30173534,"1,474.00",Revenue,Anglia Co-operative Funerals,Contract Funerals
Peterborough City Council,Financial Services,Finance,Agency Staff,11/04/2018,30173550,541.88,Revenue,Reed Specialist Recruitment Limited,External Temporary Staff
Peterborough City Council,Commissioning and Commercial Operations,Clare Lodge,Agency Staff,11/04/2018,30173555,563.09,Revenue,Reed Specialist Recruitment Limited,External Temporary Staff
Peterborough City Council,Adults,Independent Sector Placements,Contract Hire and Operating Leases,11/04/2018,30173575,560,Revenue,Peterborough Cars,Hired Transport
Peterborough City Council,Adults,Independent Sector Placements,Contract Hire and Operating Leases,11/04/2018,30173576,770.1,Revenue,Peterborough Cars,Hired Transport
Peterborough City Council,Commissioning and Commercial Operations,Clare Lodge,Agency Staff,11/04/2018,30173580,650.39,Revenue,Reed Specialist Recruitment Limited,External Temporary Staff
Peterborough City Council,Commissioning and Commercial Operations,Clare Lodge,Agency Staff,11/04/2018,30173588,557.1,Revenue,Reed Specialist Recruitment Limited,External Temporary Staff
Peterborough City Council,Communities,Targeted Youth Service,Services,11/04/2018,30173591,"8,381.59",Revenue,Cambs & P'boro NHS Foundation Trust,Purchased Social Care Services
Peterborough City Council,Communities,Targeted Youth Service,Services,11/04/2018,30173594,"8,237.79",Revenue,Cambs & P'boro NHS Foundation Trust,Purchased Social Care Services
Peterborough City Council,Adults,Independent Sector Placements,Services,11/04/2018,30173649,"2,148.00",Revenue,ABOUT ME CARE AND SUPPORT LTD,Home Care
Peterborough City Council,Adults,Independent Sector Placements,Services,11/04/2018,30173650,716,Revenue,ABOUT ME CARE AND SUPPORT LTD,Home Care
Peterborough City Council,Adults,Independent Sector Placements,Services,11/04/2018,30173652,"2,586.55",Revenue,ABOUT ME CARE AND SUPPORT LTD,Home Care
Peterborough City Council,Financial Services,Finance,Services,11/04/2018,30173653,"3,995.00",Revenue,LG Futures,Subscriptions
Peterborough City Council,Adults,Independent Sector Placements,Services,11/04/2018,30173654,"1,074.00",Revenue,ABOUT ME CARE AND SUPPORT LTD,Home Care
Peterborough City Council,Adults,Independent Sector Placements,Services,11/04/2018,30173656,"1,324.88",Revenue,ABOUT ME CARE AND SUPPORT LTD,Home Care
Peterborough City Council,Adults,Independent Sector Placements,Services,11/04/2018,30173659,626.5,Revenue,ABOUT ME CARE AND SUPPORT LTD,Home Care
Peterborough City Council,Children's & Safeguarding,Children's Social Care,Services,11/04/2018,30173660,"3,450.00",Revenue,Paloma Systems Ltd,Computer Software
Peterborough City Council,Adults,Independent Sector Placements,Services,11/04/2018,30173661,"1,575.20",Revenue,ABOUT ME CARE AND SUPPORT LTD,Home Care
Peterborough City Council,Adults,Independent Sector Placements,Services,11/04/2018,30173662,"2,251.00",Revenue,ABOUT ME CARE AND SUPPORT LTD,Home Care
Peterborough City Council,Adults,Independent Sector Placements,Services,11/04/2018,30173664,"1,843.70",Revenue,ABOUT ME CARE AND SUPPORT LTD,Home Care
Peterborough City Council,Adults,Independent Sector Placements,Services,11/04/2018,30173667,"1,861.61",Revenue,ABOUT ME CARE AND SUPPORT LTD,Home Care
Peterborough City Council,Adults,Independent Sector Placements,Services,11/04/2018,30173668,"1,074.00",Revenue,ABOUT ME CARE AND SUPPORT LTD,Home Care
Peterborough City Council,Education,Special Educational Needs / Inclusion,Services,11/04/2018,30173671,"1,125.00",Revenue,The National Teaching & Advisory Service,Education Expenses
Peterborough City Council,Communities,Targeted Youth Service,Services,11/04/2018,30173713,"8,210.76",Revenue,Cambs & P'boro NHS Foundation Trust,Purchased Social Care Services
Peterborough City Council,Commissioning and Commercial Operations,Early Years & Quality Improvement,Services,11/04/2018,30173716,693.58,Revenue,Redacted Personal Information,Grant Payment
Peterborough City Council,Education,Special Educational Needs / Inclusion,Interview & Training Expenses,11/04/2018,30173720,"4,100.00",Revenue,"EDGE Services,The Manual Handling Training Co.Ltd",Training
Peterborough City Council,Commissioning and Commercial Operations,Early Years & Quality Improvement,Services,11/04/2018,30173721,"21,422.31",Revenue,Winyates Pre School,Grant Payment
Peterborough City Council,Commissioning and Commercial Operations,Early Years & Quality Improvement,Services,11/04/2018,30173738,942.48,Revenue,Redacted Personal Information,Grant Payment
Peterborough City Council,Commissioning and Commercial Operations,Early Years & Quality Improvement,Services,11/04/2018,30173740,"1,012.00",Revenue,ABC Nursery,Grant Payment
Peterborough City Council,Commissioning and Commercial Operations,Early Years & Quality Improvement,Services,11/04/2018,30173741,"5,127.54",Revenue,Acorn Academy Day Nursery Ltd,Grant Payment
Peterborough City Council,Commissioning and Commercial Operations,Early Years & Quality Improvement,Services,11/04/2018,30173742,"2,615.71",Revenue,Anna-Ca-Soo Day Nursery,Grant Payment
Peterborough City Council,Commissioning and Commercial Operations,Early Years & Quality Improvement,Services,11/04/2018,30173745,696.15,Revenue,Beeches Pre-School,Grant Payment
Peterborough City Council,Commissioning and Commercial Operations,Early Years & Quality Improvement,Services,11/04/2018,30173747,"1,307.24",Revenue,Bright Star's day Nursery,Grant Payment
Peterborough City Council,Commissioning and Commercial Operations,Early Years & Quality Improvement,Services,11/04/2018,30173749,"2,071.52",Revenue,Blackberry House Day Nursery,Grant Payment
Peterborough City Council,Commissioning and Commercial Operations,Early Years & Quality Improvement,Services,11/04/2018,30173751,675.62,Revenue,Bretton Community Pre-School,Grant Payment
Peterborough City Council,Commissioning and Commercial Operations,Early Years & Quality Improvement,Services,11/04/2018,30173753,831.6,Revenue,Busy Bunnies Nursery,Grant Payment
Peterborough City Council,Corporate,Corporate,Non Revenue,11/04/2018,30173755,"9,121.36",Balance Sheet,NHS Pensions,Pensions
Peterborough City Council,Corporate,Corporate,Non Revenue,11/04/2018,30173758,"4,977.71",Balance Sheet,NHS Pensions,Pensions
Peterborough City Council,Corporate,Corporate,Non Revenue,11/04/2018,30173759,"1,725.62",Balance Sheet,NHS Pensions,Pensions
Peterborough City Council,Commissioning and Commercial Operations,Early Years & Quality Improvement,Services,11/04/2018,30173760,"1,164.13",Revenue,Castor & Ailsworth Pre School,Grant Payment
Peterborough City Council,Corporate,Corporate,Non Revenue,11/04/2018,30173761,"1,152.50",Balance Sheet,NHS Pensions,Pensions
Peterborough City Council,Corporate,Corporate,Non Revenue,11/04/2018,30173762,"78,870.93",Balance Sheet,LGSS Cambridgeshire Pension Fund,Pensions
Peterborough City Council,Commissioning and Commercial Operations,Early Years & Quality Improvement,Services,11/04/2018,30173763,865.23,Revenue,Family Action,Grant Payment
Peterborough City Council,Corporate,Corporate,Non Revenue,11/04/2018,30173764,"460,081.72",Balance Sheet,LGSS Cambridgeshire Pension Fund,Pensions
Peterborough City Council,Commissioning and Commercial Operations,Early Years & Quality Improvement,Services,11/04/2018,30173766,925.2,Revenue,Discovery Pre School,Grant Payment
Peterborough City Council,Commissioning and Commercial Operations,Early Years & Quality Improvement,Services,11/04/2018,30173769,992.46,Revenue,Pakistan Comm Ass of PBoro Pre- School,Grant Payment
Peterborough City Council,Corporate,Corporate,Non Revenue,11/04/2018,30173770,"19,060.85",Balance Sheet,LGSS Cambridgeshire Pension Fund,Pensions
Peterborough City Council,Corporate,Corporate,Non Revenue,11/04/2018,30173771,"187,844.21",Balance Sheet,LGSS Cambridgeshire Pension Fund,Pensions
Peterborough City Council,Adults,Day opportunities - Older People,Catering,11/04/2018,30173774,"1,265.40",Revenue,The Cresset (Peterborough) Ltd,Catering Provisions
Peterborough City Council,Adults,Independent Sector Placements,Services,11/04/2018,30173779,-715.24,Revenue,Avery House (Peterborough) t/a Brighterkind,Residential Care
Peterborough City Council,Adults,Day opportunities - Older People,Catering,11/04/2018,30173782,"1,550.30",Revenue,The Cresset (Peterborough) Ltd,Catering Provisions
Peterborough City Council,Adults,Independent Sector Placements,Services,11/04/2018,30173795,"2,421.88",Revenue,Avery House (Peterborough) t/a Brighterkind,Residential Care
Peterborough City Council,Adults,Independent Sector Placements,Services,11/04/2018,30173796,"2,421.88",Revenue,Avery House (Peterborough) t/a Brighterkind,Residential Care
Peterborough City Council,Adults,Independent Sector Placements,Services,11/04/2018,30173797,-883.53,Revenue,Avery House (Peterborough) t/a Brighterkind,Residential Care
Peterborough City Council,Adults,Independent Sector Placements,Services,11/04/2018,30173799,"1,884.08",Revenue,Avery House (Peterborough) t/a Brighterkind,Residential Care
Peterborough City Council,Legal Services,Legal Services,Services,11/04/2018,30173872,515.63,Revenue,The Psychological Service,Jurors/Expert Witnesses
Peterborough City Council,Children's & Safeguarding,External Education Placements,Services,11/04/2018,30173901,"1,000.00",Revenue,Barford Children's Services,Boarding Out Allowances
Peterborough City Council,Children's & Safeguarding,Access to Resources & Specialist Commissioning,Services,11/04/2018,30173904,"86,164.32",Revenue,Seashell Trust,Boarding Out Allowances
Peterborough City Council,Children's & Safeguarding,External Education Placements,Services,11/04/2018,30173965,"17,224.00",Revenue,Blue Mountain Homes,Boarding Out Allowances
Peterborough City Council,Legal Services,Legal Services,Services,11/04/2018,30173991,"6,950.00",Revenue,Browne Jacobson,Legal Costs
Peterborough City Council,Corporate,Corporate,Non Revenue,11/04/2018,30174021,"25,000.00",Capital,RMS Engineers LTD,Furniture And Equipment Purchase
Peterborough City Council,Children's & Safeguarding,Access to Resources & Specialist Commissioning,Services,11/04/2018,30174023,"1,072.00",Revenue,Youth Justice Board for England and Wales,Boarding Out Allowances
Peterborough City Council,Education,HTS & CSC Transport,Contract Hire and Operating Leases,11/04/2018,8000113074,"1,925.50",Revenue,Redacted Personal Information,Hired Transport
Peterborough City Council,Education,HTS & CSC Transport,Contract Hire and Operating Leases,11/04/2018,8000113075,"1,576.12",Revenue,Redacted Personal Information,Hired Transport
Peterborough City Council,Education,HTS & CSC Transport,Contract Hire and Operating Leases,11/04/2018,8000113077,929.25,Revenue,Redacted Personal Information,Hired Transport
Peterborough City Council,Education,HTS & CSC Transport,Contract Hire and Operating Leases,11/04/2018,8000113078,575.62,Revenue,Redacted Personal Information,Hired Transport
Peterborough City Council,Education,HTS & CSC Transport,Contract Hire and Operating Leases,11/04/2018,8000113079,916.5,Revenue,Redacted Personal Information,Hired Transport
Peterborough City Council,Education,HTS & CSC Transport,Contract Hire and Operating Leases,11/04/2018,8000113080,"1,809.16",Revenue,Redacted Personal Information,Hired Transport
Peterborough City Council,Education,HTS & CSC Transport,Contract Hire and Operating Leases,11/04/2018,8000113092,"1,190.21",Revenue,Peterborough Cars,Hired Transport
Peterborough City Council,Education,HTS & CSC Transport,Contract Hire and Operating Leases,11/04/2018,8000113093,"1,142.60",Revenue,Peterborough Cars,Hired Transport
Peterborough City Council,Education,HTS & CSC Transport,Contract Hire and Operating Leases,11/04/2018,8000113094,"1,071.26",Revenue,Peterborough Cars,Hired Transport
Peterborough City Council,Education,HTS & CSC Transport,Contract Hire and Operating Leases,11/04/2018,8000113095,"1,000.50",Revenue,Peterborough Cars,Hired Transport
Peterborough City Council,Education,HTS & CSC Transport,Contract Hire and Operating Leases,11/04/2018,8000113096,"1,367.35",Revenue,Peterborough Cars,Hired Transport
Peterborough City Council,Education,HTS & CSC Transport,Contract Hire and Operating Leases,11/04/2018,8000113097,"1,305.00",Revenue,Peterborough Cars,Hired Transport
Peterborough City Council,Education,HTS & CSC Transport,Contract Hire and Operating Leases,11/04/2018,8000113098,766.41,Revenue,Peterborough Cars,Hired Transport
Peterborough City Council,Education,HTS & CSC Transport,Contract Hire and Operating Leases,11/04/2018,8000113099,883.23,Revenue,Peterborough Cars,Hired Transport
Peterborough City Council,Education,HTS & CSC Transport,Contract Hire and Operating Leases,11/04/2018,8000113100,959.3,Revenue,Peterborough Cars,Hired Transport
Peterborough City Council,Education,HTS & CSC Transport,Contract Hire and Operating Leases,11/04/2018,8000113101,"1,053.93",Revenue,Peterborough Cars,Hired Transport
Peterborough City Council,Education,HTS & CSC Transport,Contract Hire and Operating Leases,11/04/2018,8000113102,771.74,Revenue,Peterborough Cars,Hired Transport
Peterborough City Council,Education,HTS & CSC Transport,Contract Hire and Operating Leases,11/04/2018,8000113110,578.67,Revenue,Redacted Personal Information,Hired Transport
Peterborough City Council,Education,HTS & CSC Transport,Contract Hire and Operating Leases,11/04/2018,8000113122,"2,096.64",Revenue,Peterborough Cars,Hired Transport
Peterborough City Council,Education,HTS & CSC Transport,Contract Hire and Operating Leases,11/04/2018,8000113123,"1,472.63",Revenue,Peterborough Cars,Hired Transport
Peterborough City Council,Education,HTS & CSC Transport,Contract Hire and Operating Leases,11/04/2018,8000113129,"1,914.00",Revenue,Goldstar Cabs Ltd,Hired Transport
Peterborough City Council,Education,HTS & CSC Transport,Contract Hire and Operating Leases,11/04/2018,8000113157,905.62,Revenue,Redacted Personal Information,Hired Transport
Peterborough City Council,Education,HTS & CSC Transport,Contract Hire and Operating Leases,11/04/2018,8000113161,"2,992.50",Revenue,Grettons Coaches,Hired Transport
Peterborough City Council,Education,HTS & CSC Transport,Contract Hire and Operating Leases,11/04/2018,8000113178,974.54,Revenue,Peterborough Cars,Hired Transport
Peterborough City Council,Education,HTS & CSC Transport,Contract Hire and Operating Leases,11/04/2018,8000113179,882.05,Revenue,Peterborough Cars,Hired Transport
Peterborough City Council,Legal & Democratic,Democratic Services,Contract Hire and Operating Leases,11/04/2018,8000113712,534.32,Revenue,Lex Autolease Ltd,Leasing Charges
Peterborough City Council,Adults,Independent Sector Placements,Services,12/04/2018,8000113193,930.48,Revenue,Redacted Personal Information,Adult Social Care Direct Payment
Peterborough City Council,Adults,Independent Sector Placements,Services,12/04/2018,8000113195,"1,537.20",Revenue,Redacted Personal Information,Adult Social Care Direct Payment
Peterborough City Council,Adults,Independent Sector Placements,Services,12/04/2018,8000113196,"1,214.48",Revenue,Redacted Personal Information,Adult Social Care Direct Payment
Peterborough City Council,Adults,Independent Sector Placements,Services,12/04/2018,8000113197,"1,390.12",Revenue,Redacted Personal Information,Adult Social Care Direct Payment
Peterborough City Council,Adults,Independent Sector Placements,Services,12/04/2018,8000113200,"2,950.84",Revenue,Redacted Personal Information,Adult Social Care Direct Payment
Peterborough City Council,Adults,Independent Sector Placements,Services,12/04/2018,8000113201,"2,829.00",Revenue,Redacted Personal Information,Adult Social Care Direct Payment
Peterborough City Council,Adults,Independent Sector Placements,Services,12/04/2018,8000113203,"1,037.84",Revenue,Redacted Personal Information,Adult Social Care Direct Payment
Peterborough City Council,Adults,Independent Sector Placements,Services,12/04/2018,8000113204,820.4,Revenue,Redacted Personal Information,Adult Social Care Direct Payment
Peterborough City Council,Adults,Independent Sector Placements,Services,12/04/2018,8000113205,"1,608.36",Revenue,Redacted Personal Information,Adult Social Care Direct Payment
Peterborough City Council,Adults,Independent Sector Placements,Services,12/04/2018,8000113207,"1,179.56",Revenue,Redacted Personal Information,Adult Social Care Direct Payment
Peterborough City Council,Adults,Independent Sector Placements,Services,12/04/2018,8000113208,"2,249.00",Revenue,Redacted Personal Information,Adult Social Care Direct Payment
Peterborough City Council,Adults,Independent Sector Placements,Services,12/04/2018,8000113209,"1,090.92",Revenue,Redacted Personal Information,Adult Social Care Direct Payment
Peterborough City Council,Adults,Independent Sector Placements,Services,12/04/2018,8000113210,620.64,Revenue,Redacted Personal Information,Adult Social Care Direct Payment
Peterborough City Council,Adults,Independent Sector Placements,Services,12/04/2018,8000113212,"1,336.92",Revenue,Redacted Personal Information,Adult Social Care Direct Payment
Peterborough City Council,Adults,Independent Sector Placements,Services,12/04/2018,8000113213,544.8,Revenue,Redacted Personal Information,Adult Social Care Direct Payment
Peterborough City Council,Adults,Independent Sector Placements,Services,12/04/2018,8000113214,534.48,Revenue,Redacted Personal Information,Adult Social Care Direct Payment
Peterborough City Council,Adults,Independent Sector Placements,Services,12/04/2018,8000113215,574.68,Revenue,Redacted Personal Information,Adult Social Care Direct Payment
Peterborough City Council,Adults,Independent Sector Placements,Services,12/04/2018,8000113216,"1,293.60",Revenue,Redacted Personal Information,Adult Social Care Direct Payment
Peterborough City Council,Adults,Independent Sector Placements,Services,12/04/2018,8000113219,"6,124.16",Revenue,Redacted Personal Information,Adult Social Care Direct Payment
Peterborough City Council,Adults,Independent Sector Placements,Services,12/04/2018,8000113220,550.72,Revenue,Redacted Personal Information,Adult Social Care Direct Payment
Peterborough City Council,Adults,Independent Sector Placements,Services,12/04/2018,8000113221,"2,391.04",Revenue,Redacted Personal Information,Adult Social Care Direct Payment
Peterborough City Council,Adults,Independent Sector Placements,Services,12/04/2018,8000113222,820.36,Revenue,Redacted Personal Information,Adult Social Care Direct Payment
Peterborough City Council,Adults,Independent Sector Placements,Services,12/04/2018,8000113223,700.04,Revenue,Redacted Personal Information,Adult Social Care Direct Payment
Peterborough City Council,Adults,Independent Sector Placements,Services,12/04/2018,8000113224,"1,664.40",Revenue,Redacted Personal Information,Adult Social Care Direct Payment
Peterborough City Council,Adults,Independent Sector Placements,Services,12/04/2018,8000113227,"1,666.36",Revenue,Redacted Personal Information,Adult Social Care Direct Payment
Peterborough City Council,Adults,Independent Sector Placements,Services,12/04/2018,8000113228,"1,251.04",Revenue,Redacted Personal Information,Adult Social Care Direct Payment
Peterborough City Council,Adults,Independent Sector Placements,Services,12/04/2018,8000113229,"1,050.48",Revenue,Redacted Personal Information,Adult Social Care Direct Payment
Peterborough City Council,Adults,Independent Sector Placements,Services,12/04/2018,8000113230,648.72,Revenue,Redacted Personal Information,Adult Social Care Direct Payment
Peterborough City Council,Adults,Independent Sector Placements,Services,12/04/2018,8000113231,"4,364.36",Revenue,Redacted Personal Information,Adult Social Care Direct Payment
Peterborough City Council,Adults,Independent Sector Placements,Services,12/04/2018,8000113232,"1,010.64",Revenue,Redacted Personal Information,Adult Social Care Direct Payment
Peterborough City Council,Adults,Independent Sector Placements,Services,12/04/2018,8000113233,"7,956.76",Revenue,Redacted Personal Information,Adult Social Care Direct Payment
Peterborough City Council,Adults,Independent Sector Placements,Services,12/04/2018,8000113235,"1,329.44",Revenue,Redacted Personal Information,Adult Social Care Direct Payment
Peterborough City Council,Adults,Independent Sector Placements,Services,12/04/2018,8000113236,"2,118.60",Revenue,Redacted Personal Information,Adult Social Care Direct Payment
Peterborough City Council,Adults,Independent Sector Placements,Services,12/04/2018,8000113237,557.2,Revenue,Redacted Personal Information,Adult Social Care Direct Payment
Peterborough City Council,Adults,Independent Sector Placements,Services,12/04/2018,8000113238,758.08,Revenue,Redacted Personal Information,Adult Social Care Direct Payment
Peterborough City Council,Adults,Independent Sector Placements,Services,12/04/2018,8000113243,980.88,Revenue,Redacted Personal Information,Adult Social Care Direct Payment
Peterborough City Council,Adults,Independent Sector Placements,Services,12/04/2018,8000113245,"1,085.36",Revenue,Redacted Personal Information,Adult Social Care Direct Payment
Peterborough City Council,Adults,Independent Sector Placements,Services,12/04/2018,8000113248,590.08,Revenue,Redacted Personal Information,Adult Social Care Direct Payment
Peterborough City Council,Adults,Independent Sector Placements,Services,12/04/2018,8000113250,897.92,Revenue,Redacted Personal Information,Adult Social Care Direct Payment
Peterborough City Council,Adults,Independent Sector Placements,Services,12/04/2018,8000113251,"5,684.00",Revenue,Redacted Personal Information,Adult Social Care Direct Payment
Peterborough City Council,Adults,Independent Sector Placements,Services,12/04/2018,8000113252,"6,740.40",Revenue,Redacted Personal Information,Adult Social Care Direct Payment
Peterborough City Council,Adults,Independent Sector Placements,Services,12/04/2018,8000113253,666.08,Revenue,Redacted Personal Information,Adult Social Care Direct Payment
Peterborough City Council,Adults,Independent Sector Placements,Services,12/04/2018,8000113254,"8,333.00",Revenue,Redacted Personal Information,Adult Social Care Direct Payment
Peterborough City Council,Adults,Independent Sector Placements,Services,12/04/2018,8000113255,"1,113.28",Revenue,Redacted Personal Information,Adult Social Care Direct Payment
Peterborough City Council,Adults,Independent Sector Placements,Services,12/04/2018,8000113257,818.88,Revenue,Redacted Personal Information,Adult Social Care Direct Payment
Peterborough City Council,Adults,Independent Sector Placements,Services,12/04/2018,8000113258,"3,753.12",Revenue,Redacted Personal Information,Adult Social Care Direct Payment
Peterborough City Council,Adults,Independent Sector Placements,Services,12/04/2018,8000113259,681.08,Revenue,Redacted Personal Information,Adult Social Care Direct Payment
Peterborough City Council,Adults,Independent Sector Placements,Services,12/04/2018,8000113260,"1,279.96",Revenue,Redacted Personal Information,Adult Social Care Direct Payment
Peterborough City Council,Adults,Independent Sector Placements,Services,12/04/2018,8000113261,"1,884.00",Revenue,Redacted Personal Information,Adult Social Care Direct Payment
Peterborough City Council,Adults,Independent Sector Placements,Services,12/04/2018,8000113262,612.8,Revenue,Redacted Personal Information,Adult Social Care Direct Payment
Peterborough City Council,Adults,Independent Sector Placements,Services,12/04/2018,8000113263,579.08,Revenue,Redacted Personal Information,Adult Social Care Direct Payment
Peterborough City Council,Adults,Independent Sector Placements,Services,12/04/2018,8000113264,"2,529.24",Revenue,Redacted Personal Information,Adult Social Care Direct Payment
Peterborough City Council,Adults,Independent Sector Placements,Services,12/04/2018,8000113265,"2,168.08",Revenue,Redacted Personal Information,Adult Social Care Direct Payment
Peterborough City Council,Adults,Independent Sector Placements,Services,12/04/2018,8000113266,569.68,Revenue,Redacted Personal Information,Adult Social Care Direct Payment
Peterborough City Council,Adults,Independent Sector Placements,Services,12/04/2018,8000113267,988.68,Revenue,Redacted Personal Information,Adult Social Care Direct Payment
Peterborough City Council,Adults,Independent Sector Placements,Services,12/04/2018,8000113268,705.36,Revenue,Redacted Personal Information,Adult Social Care Direct Payment
Peterborough City Council,Adults,Independent Sector Placements,Services,12/04/2018,8000113270,672.16,Revenue,Redacted Personal Information,Adult Social Care Direct Payment
Peterborough City Council,Adults,Independent Sector Placements,Services,12/04/2018,8000113271,"1,140.48",Revenue,Redacted Personal Information,Adult Social Care Direct Payment
Peterborough City Council,Adults,Independent Sector Placements,Services,12/04/2018,8000113273,623.04,Revenue,Redacted Personal Information,Adult Social Care Direct Payment
Peterborough City Council,Adults,Independent Sector Placements,Services,12/04/2018,8000113274,543.44,Revenue,Redacted Personal Information,Adult Social Care Direct Payment
Peterborough City Council,Adults,Independent Sector Placements,Services,12/04/2018,8000113275,"3,990.48",Revenue,Redacted Personal Information,Adult Social Care Direct Payment
Peterborough City Council,Adults,Independent Sector Placements,Services,12/04/2018,8000113277,"1,316.44",Revenue,Redacted Personal Information,Adult Social Care Direct Payment
Peterborough City Council,Adults,Independent Sector Placements,Services,12/04/2018,8000113281,779.56,Revenue,Redacted Personal Information,Adult Social Care Direct Payment
Peterborough City Council,Adults,Independent Sector Placements,Services,12/04/2018,8000113282,959.6,Revenue,Redacted Personal Information,Adult Social Care Direct Payment
Peterborough City Council,Adults,Independent Sector Placements,Services,12/04/2018,8000113283,"1,167.48",Revenue,Redacted Personal Information,Adult Social Care Direct Payment
Peterborough City Council,Adults,Independent Sector Placements,Services,12/04/2018,8000113284,"1,156.60",Revenue,Redacted Personal Information,Adult Social Care Direct Payment
Peterborough City Council,Adults,Independent Sector Placements,Services,12/04/2018,8000113285,500,Revenue,Redacted Personal Information,Adult Social Care Direct Payment
Peterborough City Council,Adults,Independent Sector Placements,Services,12/04/2018,8000113286,"2,978.52",Revenue,Redacted Personal Information,Adult Social Care Direct Payment
Peterborough City Council,Adults,Independent Sector Placements,Services,12/04/2018,8000113287,"1,180.28",Revenue,Redacted Personal Information,Adult Social Care Direct Payment
Peterborough City Council,Adults,Independent Sector Placements,Services,12/04/2018,8000113289,"3,488.00",Revenue,Redacted Personal Information,Adult Social Care Direct Payment
Peterborough City Council,Adults,Independent Sector Placements,Services,12/04/2018,8000113290,898.96,Revenue,Redacted Personal Information,Adult Social Care Direct Payment
Peterborough City Council,Adults,Independent Sector Placements,Services,12/04/2018,8000113291,988.96,Revenue,Redacted Personal Information,Adult Social Care Direct Payment
Peterborough City Council,Adults,Independent Sector Placements,Services,12/04/2018,8000113292,"3,349.28",Revenue,Redacted Personal Information,Adult Social Care Direct Payment
Peterborough City Council,Adults,Independent Sector Placements,Services,12/04/2018,8000113293,579.68,Revenue,Redacted Personal Information,Adult Social Care Direct Payment
Peterborough City Council,Adults,Independent Sector Placements,Services,12/04/2018,8000113294,759.56,Revenue,Redacted Personal Information,Adult Social Care Direct Payment
Peterborough City Council,Adults,Independent Sector Placements,Services,12/04/2018,8000113295,"1,120.00",Revenue,Redacted Personal Information,Adult Social Care Direct Payment
Peterborough City Council,Adults,Independent Sector Placements,Services,12/04/2018,8000113296,858.4,Revenue,Redacted Personal Information,Adult Social Care Direct Payment
Peterborough City Council,Adults,Independent Sector Placements,Services,12/04/2018,8000113297,587.2,Revenue,Redacted Personal Information,Adult Social Care Direct Payment
Peterborough City Council,Adults,Independent Sector Placements,Services,12/04/2018,8000113299,"1,041.76",Revenue,Redacted Personal Information,Adult Social Care Direct Payment
Peterborough City Council,Adults,Independent Sector Placements,Services,12/04/2018,8000113300,"9,339.00",Revenue,Redacted Personal Information,Adult Social Care Direct Payment
Peterborough City Council,Adults,Independent Sector Placements,Services,12/04/2018,8000113302,"1,895.24",Revenue,Redacted Personal Information,Adult Social Care Direct Payment
Peterborough City Council,Adults,Independent Sector Placements,Services,12/04/2018,8000113304,956.76,Revenue,Redacted Personal Information,Adult Social Care Direct Payment
Peterborough City Council,Adults,Independent Sector Placements,Services,12/04/2018,8000113305,"1,455.80",Revenue,Redacted Personal Information,Adult Social Care Direct Payment
Peterborough City Council,Adults,Independent Sector Placements,Services,12/04/2018,8000113306,858.48,Revenue,Redacted Personal Information,Adult Social Care Direct Payment
Peterborough City Council,Adults,Independent Sector Placements,Services,12/04/2018,8000113307,701.64,Revenue,Redacted Personal Information,Adult Social Care Direct Payment
Peterborough City Council,Adults,Independent Sector Placements,Services,12/04/2018,8000113308,547.32,Revenue,Redacted Personal Information,Adult Social Care Direct Payment
Peterborough City Council,Adults,Independent Sector Placements,Services,12/04/2018,8000113310,792.48,Revenue,Redacted Personal Information,Adult Social Care Direct Payment
Peterborough City Council,Adults,Independent Sector Placements,Services,12/04/2018,8000113311,601.48,Revenue,Redacted Personal Information,Adult Social Care Direct Payment
Peterborough City Council,Adults,Independent Sector Placements,Services,12/04/2018,8000113312,"1,576.24",Revenue,Redacted Personal Information,Adult Social Care Direct Payment
Peterborough City Council,Adults,Independent Sector Placements,Services,12/04/2018,8000113315,"1,694.40",Revenue,Redacted Personal Information,Adult Social Care Direct Payment
Peterborough City Council,Adults,Independent Sector Placements,Services,12/04/2018,8000113316,750,Revenue,Redacted Personal Information,Adult Social Care Direct Payment
Peterborough City Council,Adults,Independent Sector Placements,Services,12/04/2018,8000113317,"6,428.49",Revenue,Redacted Personal Information,Adult Social Care Direct Payment
Peterborough City Council,Adults,Independent Sector Placements,Services,12/04/2018,8000113320,659.08,Revenue,Redacted Personal Information,Adult Social Care Direct Payment
Peterborough City Council,Adults,Independent Sector Placements,Services,12/04/2018,8000113323,"1,998.52",Revenue,Redacted Personal Information,Adult Social Care Direct Payment
Peterborough City Council,Adults,Independent Sector Placements,Services,12/04/2018,8000113325,978.48,Revenue,Redacted Personal Information,Adult Social Care Direct Payment
Peterborough City Council,Adults,Independent Sector Placements,Services,12/04/2018,8000113326,705.6,Revenue,Redacted Personal Information,Adult Social Care Direct Payment
Peterborough City Council,Adults,Independent Sector Placements,Services,12/04/2018,8000113327,554.64,Revenue,Redacted Personal Information,Adult Social Care Direct Payment
Peterborough City Council,Adults,Independent Sector Placements,Services,12/04/2018,8000113330,"1,984.44",Revenue,Redacted Personal Information,Adult Social Care Direct Payment
Peterborough City Council,Adults,Independent Sector Placements,Services,12/04/2018,8000113334,733.36,Revenue,Redacted Personal Information,Adult Social Care Direct Payment
Peterborough City Council,Adults,Independent Sector Placements,Services,12/04/2018,8000113335,616.36,Revenue,Redacted Personal Information,Adult Social Care Direct Payment
Peterborough City Council,Adults,Independent Sector Placements,Services,12/04/2018,8000113336,891.04,Revenue,Redacted Personal Information,Adult Social Care Direct Payment
Peterborough City Council,Adults,Independent Sector Placements,Services,12/04/2018,8000113337,"2,580.68",Revenue,Redacted Personal Information,Adult Social Care Direct Payment
Peterborough City Council,Adults,Independent Sector Placements,Services,12/04/2018,8000113338,895.32,Revenue,Redacted Personal Information,Adult Social Care Direct Payment
Peterborough City Council,Adults,Independent Sector Placements,Services,12/04/2018,8000113339,"3,411.04",Revenue,Redacted Personal Information,Adult Social Care Direct Payment
Peterborough City Council,Adults,Independent Sector Placements,Services,12/04/2018,8000113342,504,Revenue,Redacted Personal Information,Adult Social Care Direct Payment
Peterborough City Council,Adults,Independent Sector Placements,Services,12/04/2018,8000113343,"2,034.48",Revenue,Redacted Personal Information,Adult Social Care Direct Payment
Peterborough City Council,Adults,Independent Sector Placements,Services,12/04/2018,8000113344,864.2,Revenue,Redacted Personal Information,Adult Social Care Direct Payment
Peterborough City Council,Adults,Independent Sector Placements,Services,12/04/2018,8000113349,"1,073.00",Revenue,Redacted Personal Information,Adult Social Care Direct Payment
Peterborough City Council,Adults,Independent Sector Placements,Services,12/04/2018,8000113351,673.12,Revenue,Redacted Personal Information,Adult Social Care Direct Payment
Peterborough City Council,Adults,Independent Sector Placements,Services,12/04/2018,8000113354,"2,033.44",Revenue,Redacted Personal Information,Adult Social Care Direct Payment
Peterborough City Council,Adults,Independent Sector Placements,Services,12/04/2018,8000113356,960,Revenue,Redacted Personal Information,Adult Social Care Direct Payment
Peterborough City Council,Adults,Independent Sector Placements,Services,12/04/2018,8000113357,637.84,Revenue,Redacted Personal Information,Adult Social Care Direct Payment
Peterborough City Council,Adults,Independent Sector Placements,Services,12/04/2018,8000113363,844.48,Revenue,Redacted Personal Information,Adult Social Care Direct Payment
Peterborough City Council,Adults,Independent Sector Placements,Services,12/04/2018,8000113364,706.48,Revenue,Redacted Personal Information,Adult Social Care Direct Payment
Peterborough City Council,Adults,Independent Sector Placements,Services,12/04/2018,8000113365,802.68,Revenue,Redacted Personal Information,Adult Social Care Direct Payment
Peterborough City Council,Adults,Independent Sector Placements,Services,12/04/2018,8000113366,907.8,Revenue,Redacted Personal Information,Adult Social Care Direct Payment
Peterborough City Council,Adults,Independent Sector Placements,Services,12/04/2018,8000113368,602.48,Revenue,Redacted Personal Information,Adult Social Care Direct Payment
Peterborough City Council,Adults,Independent Sector Placements,Services,12/04/2018,8000113369,"4,621.12",Revenue,Redacted Personal Information,Adult Social Care Direct Payment
Peterborough City Council,Adults,Independent Sector Placements,Services,12/04/2018,8000113372,714.4,Revenue,Redacted Personal Information,Adult Social Care Direct Payment
Peterborough City Council,Adults,Independent Sector Placements,Services,12/04/2018,8000113373,"1,330.28",Revenue,Redacted Personal Information,Adult Social Care Direct Payment
Peterborough City Council,Adults,Independent Sector Placements,Services,12/04/2018,8000113374,786.48,Revenue,Redacted Personal Information,Adult Social Care Direct Payment
Peterborough City Council,Adults,Independent Sector Placements,Services,12/04/2018,8000113375,900.48,Revenue,Redacted Personal Information,Adult Social Care Direct Payment
Peterborough City Council,Adults,Independent Sector Placements,Services,12/04/2018,8000113376,"1,585.04",Revenue,Redacted Personal Information,Adult Social Care Direct Payment
Peterborough City Council,Adults,Independent Sector Placements,Services,12/04/2018,8000113377,618.48,Revenue,Redacted Personal Information,Adult Social Care Direct Payment
Peterborough City Council,Adults,Independent Sector Placements,Services,12/04/2018,8000113378,"2,106.16",Revenue,Redacted Personal Information,Adult Social Care Direct Payment
Peterborough City Council,Adults,Independent Sector Placements,Services,12/04/2018,8000113379,"1,568.68",Revenue,Redacted Personal Information,Adult Social Care Direct Payment
Peterborough City Council,Adults,Independent Sector Placements,Services,12/04/2018,8000113380,606.48,Revenue,Redacted Personal Information,Adult Social Care Direct Payment
Peterborough City Council,Adults,Independent Sector Placements,Services,12/04/2018,8000113382,925.04,Revenue,Redacted Personal Information,Adult Social Care Direct Payment
Peterborough City Council,Adults,Independent Sector Placements,Services,12/04/2018,8000113387,"1,547.56",Revenue,Redacted Personal Information,Adult Social Care Direct Payment
Peterborough City Council,Adults,Independent Sector Placements,Services,12/04/2018,8000113388,"5,017.80",Revenue,Redacted Personal Information,Adult Social Care Direct Payment
Peterborough City Council,Adults,Independent Sector Placements,Services,12/04/2018,8000113389,969.76,Revenue,Redacted Personal Information,Adult Social Care Direct Payment
Peterborough City Council,Adults,Independent Sector Placements,Services,12/04/2018,8000113390,"1,426.52",Revenue,Redacted Personal Information,Adult Social Care Direct Payment
Peterborough City Council,Adults,Independent Sector Placements,Services,12/04/2018,8000113392,"1,107.60",Revenue,Redacted Personal Information,Adult Social Care Direct Payment
Peterborough City Council,Adults,Independent Sector Placements,Services,12/04/2018,8000113393,795.56,Revenue,Redacted Personal Information,Adult Social Care Direct Payment
Peterborough City Council,Adults,Independent Sector Placements,Services,12/04/2018,8000113394,978.4,Revenue,Redacted Personal Information,Adult Social Care Direct Payment
Peterborough City Council,Adults,Independent Sector Placements,Services,12/04/2018,8000113398,"2,573.28",Revenue,Redacted Personal Information,Adult Social Care Direct Payment
Peterborough City Council,Adults,Independent Sector Placements,Services,12/04/2018,8000113399,899.04,Revenue,Redacted Personal Information,Adult Social Care Direct Payment
Peterborough City Council,Adults,Independent Sector Placements,Services,12/04/2018,8000113401,"2,673.20",Revenue,Redacted Personal Information,Adult Social Care Direct Payment
Peterborough City Council,Adults,Independent Sector Placements,Services,12/04/2018,8000113402,"1,440.80",Revenue,Redacted Personal Information,Adult Social Care Direct Payment
Peterborough City Council,Adults,Independent Sector Placements,Services,12/04/2018,8000113403,"7,151.00",Revenue,Redacted Personal Information,Adult Social Care Direct Payment
Peterborough City Council,Adults,Independent Sector Placements,Services,12/04/2018,8000113404,"5,819.20",Revenue,Redacted Personal Information,Adult Social Care Direct Payment
Peterborough City Council,Adults,Independent Sector Placements,Services,12/04/2018,8000113405,862.4,Revenue,Redacted Personal Information,Adult Social Care Direct Payment
Peterborough City Council,Adults,Independent Sector Placements,Services,12/04/2018,8000113406,"5,237.40",Revenue,Redacted Personal Information,Adult Social Care Direct Payment
Peterborough City Council,Adults,Independent Sector Placements,Services,12/04/2018,8000113408,585.4,Revenue,Redacted Personal Information,Adult Social Care Direct Payment
Peterborough City Council,Adults,Independent Sector Placements,Services,12/04/2018,8000113409,658.56,Revenue,Redacted Personal Information,Adult Social Care Direct Payment
Peterborough City Council,Adults,Independent Sector Placements,Services,12/04/2018,8000113410,"2,120.36",Revenue,Redacted Personal Information,Adult Social Care Direct Payment
Peterborough City Council,Adults,Independent Sector Placements,Services,12/04/2018,8000113411,"7,057.56",Revenue,Redacted Personal Information,Adult Social Care Direct Payment
Peterborough City Council,Adults,Independent Sector Placements,Services,12/04/2018,8000113412,"2,513.80",Revenue,Redacted Personal Information,Adult Social Care Direct Payment
Peterborough City Council,Adults,Independent Sector Placements,Services,12/04/2018,8000113413,"1,397.52",Revenue,Redacted Personal Information,Adult Social Care Direct Payment
Peterborough City Council,Adults,Independent Sector Placements,Services,12/04/2018,8000113415,"2,339.56",Revenue,Redacted Personal Information,Adult Social Care Direct Payment
Peterborough City Council,Adults,Independent Sector Placements,Services,12/04/2018,8000113416,"1,780.40",Revenue,Redacted Personal Information,Adult Social Care Direct Payment
Peterborough City Council,Adults,Independent Sector Placements,Services,12/04/2018,8000113417,"1,421.60",Revenue,Redacted Personal Information,Adult Social Care Direct Payment
Peterborough City Council,Adults,Independent Sector Placements,Services,12/04/2018,8000113418,"1,025.32",Revenue,Redacted Personal Information,Adult Social Care Direct Payment
Peterborough City Council,Adults,Independent Sector Placements,Services,12/04/2018,8000113419,"1,739.40",Revenue,Redacted Personal Information,Adult Social Care Direct Payment
Peterborough City Council,Adults,Independent Sector Placements,Services,12/04/2018,8000113420,"1,596.48",Revenue,Redacted Personal Information,Adult Social Care Direct Payment
Peterborough City Council,Adults,Independent Sector Placements,Services,12/04/2018,8000113421,"5,783.16",Revenue,Redacted Personal Information,Adult Social Care Direct Payment
Peterborough City Council,Adults,Independent Sector Placements,Services,12/04/2018,8000113422,"2,623.40",Revenue,Redacted Personal Information,Adult Social Care Direct Payment
Peterborough City Council,Adults,Independent Sector Placements,Services,12/04/2018,8000113423,"1,290.08",Revenue,Redacted Personal Information,Adult Social Care Direct Payment
Peterborough City Council,Adults,Independent Sector Placements,Services,12/04/2018,8000113424,"2,576.24",Revenue,Redacted Personal Information,Adult Social Care Direct Payment
Peterborough City Council,Adults,Independent Sector Placements,Services,12/04/2018,8000113426,"1,629.24",Revenue,Redacted Personal Information,Adult Social Care Direct Payment
Peterborough City Council,Adults,Independent Sector Placements,Services,12/04/2018,8000113427,906.68,Revenue,Redacted Personal Information,Adult Social Care Direct Payment
Peterborough City Council,Adults,Independent Sector Placements,Services,12/04/2018,8000113429,"3,045.60",Revenue,Redacted Personal Information,Adult Social Care Direct Payment
Peterborough City Council,Adults,Independent Sector Placements,Services,12/04/2018,8000113430,"1,355.56",Revenue,Redacted Personal Information,Adult Social Care Direct Payment
Peterborough City Council,Adults,Independent Sector Placements,Services,12/04/2018,8000113431,652.56,Revenue,Redacted Personal Information,Adult Social Care Direct Payment
Peterborough City Council,Adults,Independent Sector Placements,Services,12/04/2018,8000113432,"1,340.40",Revenue,Redacted Personal Information,Adult Social Care Direct Payment
Peterborough City Council,Adults,Independent Sector Placements,Services,12/04/2018,8000113433,"1,436.00",Revenue,Redacted Personal Information,Adult Social Care Direct Payment
Peterborough City Council,Adults,Independent Sector Placements,Services,12/04/2018,8000113434,"1,982.44",Revenue,Redacted Personal Information,Adult Social Care Direct Payment
Peterborough City Council,Adults,Independent Sector Placements,Services,12/04/2018,8000113435,"2,654.32",Revenue,Redacted Personal Information,Adult Social Care Direct Payment
Peterborough City Council,Adults,Independent Sector Placements,Services,12/04/2018,8000113436,"3,502.88",Revenue,Redacted Personal Information,Adult Social Care Direct Payment
Peterborough City Council,Adults,Independent Sector Placements,Services,12/04/2018,8000113437,"1,625.00",Revenue,Redacted Personal Information,Adult Social Care Direct Payment
Peterborough City Council,Adults,Independent Sector Placements,Services,12/04/2018,8000113438,"2,585.52",Revenue,Redacted Personal Information,Adult Social Care Direct Payment
Peterborough City Council,Adults,Independent Sector Placements,Services,12/04/2018,8000113439,"2,451.24",Revenue,Redacted Personal Information,Adult Social Care Direct Payment
Peterborough City Council,Adults,Independent Sector Placements,Services,12/04/2018,8000113442,503.36,Revenue,Redacted Personal Information,Adult Social Care Direct Payment
Peterborough City Council,Adults,Independent Sector Placements,Services,12/04/2018,8000113443,705.36,Revenue,Redacted Personal Information,Adult Social Care Direct Payment
Peterborough City Council,Adults,Independent Sector Placements,Services,12/04/2018,8000113444,648.08,Revenue,Redacted Personal Information,Adult Social Care Direct Payment
Peterborough City Council,Adults,Independent Sector Placements,Services,12/04/2018,8000113445,"1,533.00",Revenue,Redacted Personal Information,Adult Social Care Direct Payment
Peterborough City Council,Adults,Independent Sector Placements,Services,12/04/2018,8000113446,883.36,Revenue,Redacted Personal Information,Adult Social Care Direct Payment
Peterborough City Council,Adults,Independent Sector Placements,Services,12/04/2018,8000113448,"1,090.80",Revenue,Redacted Personal Information,Adult Social Care Direct Payment
Peterborough City Council,Adults,Independent Sector Placements,Services,12/04/2018,8000113449,"2,176.00",Revenue,Redacted Personal Information,Adult Social Care Direct Payment
Peterborough City Council,Adults,Independent Sector Placements,Services,12/04/2018,8000113450,"1,394.48",Revenue,Redacted Personal Information,Adult Social Care Direct Payment
Peterborough City Council,Adults,Independent Sector Placements,Services,12/04/2018,8000113452,"1,716.32",Revenue,Redacted Personal Information,Adult Social Care Direct Payment
Peterborough City Council,Adults,Independent Sector Placements,Services,12/04/2018,8000113453,537.44,Revenue,Redacted Personal Information,Adult Social Care Direct Payment
Peterborough City Council,Adults,Independent Sector Placements,Services,12/04/2018,8000113454,541.4,Revenue,Redacted Personal Information,Adult Social Care Direct Payment
Peterborough City Council,Adults,Independent Sector Placements,Services,12/04/2018,8000113456,"1,735.40",Revenue,Redacted Personal Information,Adult Social Care Direct Payment
Peterborough City Council,Adults,Independent Sector Placements,Services,12/04/2018,8000113459,530.84,Revenue,Redacted Personal Information,Adult Social Care Direct Payment
Peterborough City Council,Adults,Independent Sector Placements,Services,12/04/2018,8000113460,709.8,Revenue,Redacted Personal Information,Adult Social Care Direct Payment
Peterborough City Council,Adults,Independent Sector Placements,Services,12/04/2018,8000113461,"1,341.44",Revenue,Redacted Personal Information,Adult Social Care Direct Payment
Peterborough City Council,Adults,Independent Sector Placements,Services,12/04/2018,8000113464,"1,562.00",Revenue,Redacted Personal Information,Adult Social Care Direct Payment
Peterborough City Council,Adults,Independent Sector Placements,Services,12/04/2018,8000113465,555.6,Revenue,Redacted Personal Information,Adult Social Care Direct Payment
Peterborough City Council,Adults,Independent Sector Placements,Services,12/04/2018,8000113466,897.6,Revenue,Redacted Personal Information,Adult Social Care Direct Payment
Peterborough City Council,Adults,Independent Sector Placements,Services,12/04/2018,8000113468,"2,310.00",Revenue,Redacted Personal Information,Adult Social Care Direct Payment
Peterborough City Council,Adults,Independent Sector Placements,Services,12/04/2018,8000113469,760.88,Revenue,Redacted Personal Information,Adult Social Care Direct Payment
Peterborough City Council,Adults,Independent Sector Placements,Services,12/04/2018,8000113470,725.08,Revenue,Redacted Personal Information,Adult Social Care Direct Payment
Peterborough City Council,Adults,Independent Sector Placements,Services,12/04/2018,8000113471,890.48,Revenue,Redacted Personal Information,Adult Social Care Direct Payment
Peterborough City Council,Adults,Independent Sector Placements,Services,12/04/2018,8000113472,"3,222.56",Revenue,Redacted Personal Information,Adult Social Care Direct Payment
Peterborough City Council,Adults,Independent Sector Placements,Services,12/04/2018,8000113473,"1,904.00",Revenue,Redacted Personal Information,Adult Social Care Direct Payment
Peterborough City Council,Adults,Independent Sector Placements,Services,12/04/2018,8000113475,811.24,Revenue,Redacted Personal Information,Adult Social Care Direct Payment
Peterborough City Council,Adults,Independent Sector Placements,Services,12/04/2018,8000113478,"2,430.48",Revenue,Redacted Personal Information,Adult Social Care Direct Payment
Peterborough City Council,Adults,Independent Sector Placements,Services,12/04/2018,8000113479,"1,678.12",Revenue,Redacted Personal Information,Adult Social Care Direct Payment
Peterborough City Council,Adults,Independent Sector Placements,Services,12/04/2018,8000113480,733.36,Revenue,Redacted Personal Information,Adult Social Care Direct Payment
Peterborough City Council,Adults,Independent Sector Placements,Services,12/04/2018,8000113481,"1,553.44",Revenue,Redacted Personal Information,Adult Social Care Direct Payment
Peterborough City Council,Adults,Independent Sector Placements,Services,12/04/2018,8000113482,780.72,Revenue,Redacted Personal Information,Adult Social Care Direct Payment
Peterborough City Council,Adults,Independent Sector Placements,Services,12/04/2018,8000113483,"1,979.16",Revenue,Redacted Personal Information,Adult Social Care Direct Payment
Peterborough City Council,Adults,Independent Sector Placements,Services,12/04/2018,8000113484,"5,668.24",Revenue,Redacted Personal Information,Adult Social Care Direct Payment
Peterborough City Council,Adults,Independent Sector Placements,Services,12/04/2018,8000113485,"1,612.08",Revenue,Redacted Personal Information,Adult Social Care Direct Payment
Peterborough City Council,Adults,Independent Sector Placements,Services,12/04/2018,8000113486,"4,944.48",Revenue,Redacted Personal Information,Adult Social Care Direct Payment
Peterborough City Council,Adults,Independent Sector Placements,Services,12/04/2018,8000113487,"5,231.44",Revenue,Redacted Personal Information,Adult Social Care Direct Payment
Peterborough City Council,Adults,Independent Sector Placements,Services,12/04/2018,8000113488,"6,292.08",Revenue,Redacted Personal Information,Adult Social Care Direct Payment
Peterborough City Council,Adults,Independent Sector Placements,Services,12/04/2018,8000113489,"1,604.60",Revenue,Redacted Personal Information,Adult Social Care Direct Payment
Peterborough City Council,Adults,Independent Sector Placements,Services,12/04/2018,8000113492,"7,350.08",Revenue,Redacted Personal Information,Adult Social Care Direct Payment
Peterborough City Council,Adults,Independent Sector Placements,Services,12/04/2018,8000113494,"3,293.68",Revenue,Redacted Personal Information,Adult Social Care Direct Payment
Peterborough City Council,Adults,Independent Sector Placements,Services,12/04/2018,8000113495,952,Revenue,Redacted Personal Information,Adult Social Care Direct Payment
Peterborough City Council,Adults,Independent Sector Placements,Services,12/04/2018,8000113497,"15,421.08",Revenue,Redacted Personal Information,Adult Social Care Direct Payment
Peterborough City Council,Adults,Independent Sector Placements,Services,12/04/2018,8000113499,"2,608.68",Revenue,Redacted Personal Information,Adult Social Care Direct Payment
Peterborough City Council,Adults,Independent Sector Placements,Services,12/04/2018,8000113500,"1,748.00",Revenue,Redacted Personal Information,Adult Social Care Direct Payment
Peterborough City Council,Adults,Independent Sector Placements,Services,12/04/2018,8000113501,"1,416.64",Revenue,Redacted Personal Information,Adult Social Care Direct Payment
Peterborough City Council,Adults,Independent Sector Placements,Services,12/04/2018,8000113502,"1,088.00",Revenue,Redacted Personal Information,Adult Social Care Direct Payment
Peterborough City Council,Adults,Independent Sector Placements,Services,12/04/2018,8000113503,"1,167.92",Revenue,Redacted Personal Information,Adult Social Care Direct Payment
Peterborough City Council,Adults,Independent Sector Placements,Services,12/04/2018,8000113504,"2,278.96",Revenue,Redacted Personal Information,Adult Social Care Direct Payment
Peterborough City Council,Adults,Independent Sector Placements,Services,12/04/2018,8000113505,"2,184.20",Revenue,Redacted Personal Information,Adult Social Care Direct Payment
Peterborough City Council,Adults,Independent Sector Placements,Services,12/04/2018,8000113506,"1,629.08",Revenue,Redacted Personal Information,Adult Social Care Direct Payment
Peterborough City Council,Adults,Independent Sector Placements,Services,12/04/2018,8000113508,"1,250.84",Revenue,Redacted Personal Information,Adult Social Care Direct Payment
Peterborough City Council,Adults,Independent Sector Placements,Services,12/04/2018,8000113510,717.2,Revenue,Redacted Personal Information,Adult Social Care Direct Payment
Peterborough City Council,Adults,Independent Sector Placements,Services,12/04/2018,8000113511,773.28,Revenue,Redacted Personal Information,Adult Social Care Direct Payment
Peterborough City Council,Adults,Independent Sector Placements,Services,12/04/2018,8000113512,554.64,Revenue,Redacted Personal Information,Adult Social Care Direct Payment
Peterborough City Council,Adults,Independent Sector Placements,Services,12/04/2018,8000113513,576,Revenue,Redacted Personal Information,Adult Social Care Direct Payment
Peterborough City Council,Adults,Independent Sector Placements,Services,12/04/2018,8000113514,"8,586.48",Revenue,Redacted Personal Information,Adult Social Care Direct Payment
Peterborough City Council,Adults,Independent Sector Placements,Services,12/04/2018,8000113515,914.84,Revenue,Redacted Personal Information,Adult Social Care Direct Payment
Peterborough City Council,Adults,Independent Sector Placements,Services,12/04/2018,8000113516,"6,439.28",Revenue,Redacted Personal Information,Adult Social Care Direct Payment
Peterborough City Council,Adults,Independent Sector Placements,Services,12/04/2018,8000113517,"2,400.88",Revenue,Redacted Personal Information,Adult Social Care Direct Payment
Peterborough City Council,Adults,Independent Sector Placements,Services,12/04/2018,8000113518,"1,063.92",Revenue,Redacted Personal Information,Adult Social Care Direct Payment
Peterborough City Council,Adults,Independent Sector Placements,Services,12/04/2018,8000113520,864.68,Revenue,Redacted Personal Information,Adult Social Care Direct Payment
Peterborough City Council,Adults,Independent Sector Placements,Services,12/04/2018,8000113521,"9,329.88",Revenue,Redacted Personal Information,Adult Social Care Direct Payment
Peterborough City Council,Adults,Independent Sector Placements,Services,12/04/2018,8000113522,"3,618.48",Revenue,Redacted Personal Information,Adult Social Care Direct Payment
Peterborough City Council,Adults,Independent Sector Placements,Services,12/04/2018,8000113524,"1,367.28",Revenue,Redacted Personal Information,Adult Social Care Direct Payment
Peterborough City Council,Adults,Independent Sector Placements,Services,12/04/2018,8000113525,"3,131.20",Revenue,Redacted Personal Information,Adult Social Care Direct Payment
Peterborough City Council,Adults,Independent Sector Placements,Services,12/04/2018,8000113526,"1,266.48",Revenue,Redacted Personal Information,Adult Social Care Direct Payment
Peterborough City Council,Adults,Independent Sector Placements,Services,12/04/2018,8000113527,"6,338.00",Revenue,Redacted Personal Information,Adult Social Care Direct Payment
Peterborough City Council,Adults,Independent Sector Placements,Services,12/04/2018,8000113528,716.8,Revenue,Redacted Personal Information,Adult Social Care Direct Payment
Peterborough City Council,Adults,Independent Sector Placements,Services,12/04/2018,8000113529,"10,074.40",Revenue,Redacted Personal Information,Adult Social Care Direct Payment
Peterborough City Council,Adults,Independent Sector Placements,Services,12/04/2018,8000113531,"1,366.96",Revenue,Redacted Personal Information,Adult Social Care Direct Payment
Peterborough City Council,Adults,Independent Sector Placements,Services,12/04/2018,8000113532,"2,342.76",Revenue,Redacted Personal Information,Adult Social Care Direct Payment
Peterborough City Council,Adults,Independent Sector Placements,Services,12/04/2018,8000113533,942.08,Revenue,Redacted Personal Information,Adult Social Care Direct Payment
Peterborough City Council,Adults,Independent Sector Placements,Services,12/04/2018,8000113534,"3,908.60",Revenue,Redacted Personal Information,Adult Social Care Direct Payment
Peterborough City Council,Adults,Independent Sector Placements,Services,12/04/2018,8000113535,"6,801.88",Revenue,Redacted Personal Information,Adult Social Care Direct Payment
Peterborough City Council,Adults,Independent Sector Placements,Services,12/04/2018,8000113536,"3,511.28",Revenue,Redacted Personal Information,Adult Social Care Direct Payment
Peterborough City Council,Adults,Independent Sector Placements,Services,12/04/2018,8000113537,"1,303.32",Revenue,Redacted Personal Information,Adult Social Care Direct Payment
Peterborough City Council,Adults,Independent Sector Placements,Services,12/04/2018,8000113538,528,Revenue,Redacted Personal Information,Adult Social Care Direct Payment
Peterborough City Council,Adults,Independent Sector Placements,Services,12/04/2018,8000113539,689.68,Revenue,Redacted Personal Information,Adult Social Care Direct Payment
Peterborough City Council,Adults,Independent Sector Placements,Services,12/04/2018,8000113540,"6,536.88",Revenue,Redacted Personal Information,Adult Social Care Direct Payment
Peterborough City Council,Adults,Independent Sector Placements,Services,12/04/2018,8000113542,"4,724.56",Revenue,Redacted Personal Information,Adult Social Care Direct Payment
Peterborough City Council,Adults,Independent Sector Placements,Services,12/04/2018,8000113543,"4,851.36",Revenue,Redacted Personal Information,Adult Social Care Direct Payment
Peterborough City Council,Adults,Independent Sector Placements,Services,12/04/2018,8000113544,"1,025.08",Revenue,Redacted Personal Information,Adult Social Care Direct Payment
Peterborough City Council,Adults,Independent Sector Placements,Services,12/04/2018,8000113546,"3,022.36",Revenue,Redacted Personal Information,Adult Social Care Direct Payment
Peterborough City Council,Adults,Independent Sector Placements,Services,12/04/2018,8000113547,"12,746.84",Revenue,Redacted Personal Information,Adult Social Care Direct Payment
Peterborough City Council,Adults,Independent Sector Placements,Services,12/04/2018,8000113548,"6,855.28",Revenue,Redacted Personal Information,Adult Social Care Direct Payment
Peterborough City Council,Adults,Independent Sector Placements,Services,12/04/2018,8000113550,"4,176.40",Revenue,Redacted Personal Information,Adult Social Care Direct Payment
Peterborough City Council,Adults,Independent Sector Placements,Services,12/04/2018,8000113551,652.08,Revenue,Redacted Personal Information,Adult Social Care Direct Payment
Peterborough City Council,Adults,Independent Sector Placements,Services,12/04/2018,8000113553,738.44,Revenue,Redacted Personal Information,Adult Social Care Direct Payment
Peterborough City Council,Adults,Independent Sector Placements,Services,12/04/2018,8000113554,566.08,Revenue,Redacted Personal Information,Adult Social Care Direct Payment
Peterborough City Council,Adults,Independent Sector Placements,Services,12/04/2018,8000113555,"1,587.88",Revenue,Redacted Personal Information,Adult Social Care Direct Payment
Peterborough City Council,Adults,Independent Sector Placements,Services,12/04/2018,8000113556,"2,288.52",Revenue,Redacted Personal Information,Adult Social Care Direct Payment
Peterborough City Council,Adults,Independent Sector Placements,Services,12/04/2018,8000113557,648,Revenue,Redacted Personal Information,Adult Social Care Direct Payment
Peterborough City Council,Adults,Independent Sector Placements,Services,12/04/2018,8000113558,"2,370.48",Revenue,Redacted Personal Information,Adult Social Care Direct Payment
Peterborough City Council,Adults,Independent Sector Placements,Services,12/04/2018,8000113559,800,Revenue,Redacted Personal Information,Adult Social Care Direct Payment
Peterborough City Council,Adults,Independent Sector Placements,Services,12/04/2018,8000113561,634.88,Revenue,Redacted Personal Information,Adult Social Care Direct Payment
Peterborough City Council,Adults,Independent Sector Placements,Services,12/04/2018,8000113562,"3,024.48",Revenue,Redacted Personal Information,Adult Social Care Direct Payment
Peterborough City Council,Adults,Independent Sector Placements,Services,12/04/2018,8000113563,"1,170.48",Revenue,Redacted Personal Information,Adult Social Care Direct Payment
Peterborough City Council,Adults,Independent Sector Placements,Services,12/04/2018,8000113564,"4,208.48",Revenue,Redacted Personal Information,Adult Social Care Direct Payment
Peterborough City Council,Adults,Independent Sector Placements,Services,12/04/2018,8000113565,"1,724.60",Revenue,Redacted Personal Information,Adult Social Care Direct Payment
Peterborough City Council,Adults,Independent Sector Placements,Services,12/04/2018,8000113566,574.4,Revenue,Redacted Personal Information,Adult Social Care Direct Payment
Peterborough City Council,Adults,Independent Sector Placements,Services,12/04/2018,8000113567,"5,569.12",Revenue,Redacted Personal Information,Adult Social Care Direct Payment
Peterborough City Council,Adults,Independent Sector Placements,Services,12/04/2018,8000113568,874.16,Revenue,Redacted Personal Information,Adult Social Care Direct Payment
Peterborough City Council,Adults,Independent Sector Placements,Services,12/04/2018,8000113569,"1,818.40",Revenue,Redacted Personal Information,Adult Social Care Direct Payment
Peterborough City Council,Adults,Independent Sector Placements,Services,12/04/2018,8000113572,"1,002.48",Revenue,Redacted Personal Information,Adult Social Care Direct Payment
Peterborough City Council,Adults,Independent Sector Placements,Services,12/04/2018,8000113573,669.12,Revenue,Redacted Personal Information,Adult Social Care Direct Payment
Peterborough City Council,Adults,Independent Sector Placements,Services,12/04/2018,8000113574,"6,075.64",Revenue,Redacted Personal Information,Adult Social Care Direct Payment
Peterborough City Council,Adults,Independent Sector Placements,Services,12/04/2018,8000113575,606.48,Revenue,Redacted Personal Information,Adult Social Care Direct Payment
Peterborough City Council,Adults,Independent Sector Placements,Services,12/04/2018,8000113576,"5,731.64",Revenue,Redacted Personal Information,Adult Social Care Direct Payment
Peterborough City Council,Adults,Independent Sector Placements,Services,12/04/2018,8000113577,"1,903.48",Revenue,Redacted Personal Information,Adult Social Care Direct Payment
Peterborough City Council,Adults,Independent Sector Placements,Services,12/04/2018,8000113578,"8,634.00",Revenue,Redacted Personal Information,Adult Social Care Direct Payment
Peterborough City Council,Adults,Independent Sector Placements,Services,12/04/2018,8000113579,"5,619.16",Revenue,Redacted Personal Information,Adult Social Care Direct Payment
Peterborough City Council,Adults,Independent Sector Placements,Services,12/04/2018,8000113580,627.48,Revenue,Redacted Personal Information,Adult Social Care Direct Payment
Peterborough City Council,Adults,Independent Sector Placements,Services,12/04/2018,8000113581,692.12,Revenue,Redacted Personal Information,Adult Social Care Direct Payment
Peterborough City Council,Adults,Independent Sector Placements,Services,12/04/2018,8000113582,"1,348.84",Revenue,Redacted Personal Information,Adult Social Care Direct Payment
Peterborough City Council,Adults,Independent Sector Placements,Services,12/04/2018,8000113584,"1,326.48",Revenue,Redacted Personal Information,Adult Social Care Direct Payment
Peterborough City Council,Adults,Independent Sector Placements,Services,12/04/2018,8000113585,"2,275.64",Revenue,Redacted Personal Information,Adult Social Care Direct Payment
Peterborough City Council,Adults,Independent Sector Placements,Services,12/04/2018,8000113587,"1,128.40",Revenue,Redacted Personal Information,Adult Social Care Direct Payment
